Workbook

Sheet Topics
A1: Topics | B1: Sheet Name (link to jump)
A2: Statistics | B2: Statistics
A3: Descriptive v Inferential | B3: Descriptive v Inferential
A4: Example of Statistics | B4: Example of Statistics
A5: Example of Inferential Stats | B5: Example of Inferential Stats
A6: Types of Data | B6: Data
A7: Scales of Measurement | B7: SofM
B8: SofM-2
A9: Cross Sectional Data | B9: CS Data
A10: Time Series Data | B10: TS Data
A11: Data Diagram | B11: Data Diagram
A12: Entering Data In Excel - Homework Example | B12: Entering Data In Excel

Sheet Detailed Topic List
A1: Video2: | B1: Excel 2013 Statistical Analysis #02: Install Data Analysis Add-in For Amazing Excel Statistical Tools
A3: Video3: | B3: Excel 2013 Statistical Analysis #03: Download & Install Power Query for Data Transformation Tools
A5: Video4: | B5: Excel 2013 Statistical Analysis #04: What Is / Are Statistics? Download Stock Data & Create Information
A6: Number | B6: Topic In Video and minute mark in Video. | C6: Time In Video | M6: Text
A7: =ROWS(A$7:A7) -> 1 | B7: =TRIM(REPLACE(M7,1,SEARCH(")",M7)+1,"")) -> What Is / Are Statistics? Define Statistics | C7: =TRIM(LEFT(M7,SEARCH(")",M7))) -> (00:21) | M7: (00:21) What Is / Are Statistics? Define Statistics
A8: =ROWS(A$7:A8) -> 2 | B8: =TRIM(REPLACE(M8,1,SEARCH(")",M8)+1,"")) -> Descriptive Statistics and Inferential Statistics | C8: (02:42) | M8: (02:42) Descriptive Statistics and Inferential Statistics
A9: =ROWS(A$7:A9) -> 3 | B9: Collect, analyze and present raw data on Yahoo Stock Price: Search the internet, download, create formulas and crate a Chart and present the information in a useful way. | C9: (05:00) | M9: (05:00) Collect, analyze and present raw data on Yahoo Stock Price: Search the internet, download, create formulas and crate a Chart and present the information in a useful way.
A10: =ROWS(A$7:A10) -> 4 | B10: Get Data from http://finance.yahoo.com/ | C10: (06:05) | M10: (06:05) Get Data from http://finance.yahoo.com/
A11: =ROWS(A$7:A11) -> 5 | B11: Copy and paste data from internet into an Excel spreadsheet. Learn about Paste Special, Text | C11: (06:43) | M11: (06:43) Copy and paste data from internet into an Excel spreadsheet. Learn about Paste Special, Text
A12: =ROWS(A$7:A12) -> 6 | B12: Download a “.csv” file. “.csv” and “.txt” file types (file extensions) are text files. When you open them, they look like Excel, but it is not. We can copy and paste into a real Excel file. Text files are common files types that allow raw data to be transferred from one system to another. Text files are intermediate steps between the original Database and your Excel Spreadhseet. | C12: (07:28) | M12: (07:28) Download a “.csv” file. “.csv” and “.txt” file types (file extensions) are text files. When you open them, they look like Excel, but it is not. We can copy and paste into a real Excel file. Text files are common files types that allow raw data to be transferred from one system to another. Text files are intermediate steps between the original Database and your Excel Spreadhseet.
A13: =ROWS(A$7:A13) -> 7 | B13: Control Panel, Folder Options, View Tab, Uncheck “Hide extensions for known file types” | C13: (07:46) | M13: (07:46) Control Panel, Folder Options, View Tab, Uncheck “Hide extensions for known file types”
A14: =ROWS(A$7:A14) -> 8 | B14: Highlight whole table keyboard is Ctrl + * | C14: (08:47) | M14: (08:47) Highlight whole table keyboard is Ctrl + *
A15: =ROWS(A$7:A15) -> 9 | B15: Calculate maximum stock price with MAX function, minimum stock price with MIN and Mean using the AVERAGE function. | C15: (09:50) | M15: (09:50) Calculate maximum stock price with MAX function, minimum stock price with MIN and Mean using the AVERAGE function.
A16: =ROWS(A$7:A16) -> 10 | B16: Keyboard shortcuts for highlighting ranges that are not next to each other (noncontiguous ranges): Ctrl + Mouse Click | C16: (11:30) | M16: (11:30) Keyboard shortcuts for highlighting ranges that are not next to each other (noncontiguous ranges): Ctrl + Mouse Click
A17: =ROWS(A$7:A17) -> 11 | B17: Create Line Chart from Historical Data | C17: (12:15) | M17: (12:15) Create Line Chart from Historical Data
A18: =ROWS(A$7:A18) -> 12 | B18: Page Setup | C18: (13:58) | M18: (13:58) Page Setup
A19: =ROWS(A$7:A19) -> 13 | B19: Example of Inferential Statistics | C19: (17:52) | M19: (17:52) Example of Inferential Statistics
A21: Video5: | B21: Excel 2013 Statistical Analysis #05: Data: Categorical, Quantitative, Nominal, Ordinal, Interval, Ratio
A22: Number | B22: Topic In Video and minute mark in Video. | C22: Time In Video | M22: Text
A23: =ROWS(A$23:A23) -> 1 | B23: =TRIM(REPLACE(M23,1,SEARCH(")",M23)+1,"")) -> Categorical Data vs. Quantitative Data | C23: =TRIM(LEFT(M23,SEARCH(")",M23))) -> (00:43) | M23: (00:43) Categorical Data vs. Quantitative Data
A24: =ROWS(A$23:A24) -> 2 | B24: =TRIM(REPLACE(M24,1,SEARCH(")",M24)+1,"")) -> Scales of Measurement (Levels of Measurement): Nominal, Ordinal, Interval, Ratio | C24: =TRIM(LEFT(M24,SEARCH(")",M24))) -> (02:00) | M24: (02:00) Scales of Measurement (Levels of Measurement): Nominal, Ordinal, Interval, Ratio
A25: =ROWS(A$23:A25) -> 3 | B25: Cross Sectional Data vs. Time Series Data | C25: (14:42) | M25: (14:42) Cross Sectional Data vs. Time Series Data
A26: =ROWS(A$23:A26) -> 4 | B26: Graphical Display of types of Data | C26: (15:48) | M26: (15:48) Graphical Display of types of Data
A27: =ROWS(A$23:A27) -> 5 | B27: How to Enter Data into the spreadsheet and use the Auto Complete (Auto Text) to your benefit | C27: (16:22) | M27: (16:22) How to Enter Data into the spreadsheet and use the Auto Complete (Auto Text) to your benefit
A28: =ROWS(A$23:A28) -> 6 | B28: How to create a new Excel Workbook to do your Homework from the Textbook | C28: (18:50) | M28: (18:50) How to create a new Excel Workbook to do your Homework from the Textbook

Sheet Keyboards
A1: Primary Key | B1: Action | C1: Keyboard Short Cut | D1: Category
A2: 1 | B2: Move the Active Worksheet up or down | C2: Ctrl + PageUp/PageDown | D2: Navigation
A3: 2 | B3: Put content in Cell and move selected Cell down | C3: Enter | D3: Entering Data in a Cell
A4: 3 | B4: Put content in Cell and keep Cell selected | C4: Ctrl + Enter | D4: Entering Data in a Cell
A5: 4 | B5: Undo | C5: Ctrl + Z | D5: Basic
A6: 5 | B6: Copy | C6: Ctrl + C | D6: Basic
A7: 6 | B7: Paste | C7: Ctrl + V | D7: Basic
A8: 7 | B8: Cut | C8: Ctrl + X | D8: Basic
A9: 8 | B9: Bold | C9: Ctrl + B | D9: Basic
A10: 9 | B10: Put Cell in Edit Mode | C10: F2 | D10: Formula Edit Mode Keys
A11: 10 | B11: Arrow to point to a formula Cell Reference | C11: Arrow Keys | D11: Formula Edit Mode Keys
A12: 11 | B12: SUM function | C12: Alt + = | D12: Formula Edit Mode Keys
A13: 12 | B13: Delete Cell content | C13: Delete | D13: Basic
A14: 13 | B14: Lock Cell Reference (make Absolute) | C14: F4 | D14: Formula Edit Mode Keys
A15: 14 | B15: Put content in Cell and move selected Cell to right | C15: Tab | D15: Entering Data in a Cell
A16: 15 | B16: Put content in Cell and move selected Cell to left | C16: Shift + Tab | D16: Entering Data in a Cell
A17: 16 | B17: Jump to bottom of data set (Current Range) | C17: Ctrl + Arrow | D17: Navigation
A18: 17 | B18: Select to bottom of data set (Current Range) | C18: Ctrl + Shift + Enter | D18: Formula Edit Mode Keys
A19: 18 | B19: Put content in Cell and move selected Cell up | C19: Shift + Enter | D19: Entering Data in a Cell
A20: 19 | B20: Jump Back to Active Cell | C20: Ctrl + Backspace | D20: Formula Edit Mode Keys
A21: 20 | B21: Open Create PivotTable dialog box | C21: Alt, N, V | D21: PivotTable
A22: 21 | B22: Format Chart Element with Task Pane | C22: Ctrl + 1 | D22: Chart
A23: 22 | B23: Open Format Cells dialog box | C23: Ctrl + 1 | D23: Format Cells
A24: 23 | B24: Jump to Cell A1 | C24: Ctrl + Home | D24: Navigation
A25: 24 | B25: Jump to last Cell used | C25: Ctrl + End | D25: Navigation
A26: 25 | B26: Open Control Panel | C26: Window + Pause/Break | D26: Window Key
A27: 26 | B27: Show Desktop | C27: Window + D or Window + M | D27: Window Key
A28: 27 | B28: Select Whole Table (Select Current Region) | C28: Ctrl + * (on Number Pad) or Ctrl + Shift + 8 | D28: Selection
A29: 28 | B29: Select Ranges not next to each other (noncontiguous ranges) | C29: Ctrl + Mouse Click | D29: Selection
A30: 29 | B30: Open Print Options and Print Preview view | C30: Ctrl + P | D30: Basic
A31: 30 | B31: Close Print Options and Print Preview view | C31: Esc | D31: Basic
A32: 31 | B32: New Workbook File | C32: Ctrl + N | D32: Basic
A33: 32 | B33: Save As Dialog Box | C33: F12 | D33: Basic

Sheet Statistics
A1: What are/is Statistics?
A2: What are Statistics?
A3: Numerical facts like:
A4: Percentages, averages, probability…
A5: Examples:
A6: 5% of the people who took the CPA exam earned a score of 90 or above.
A7: The average cost for a Toyota Camry last year was $23,000.
A8: The probability that you will get a six when you roll a die is 1/6 or 0.167.
A9: What is Statistics?
A10: The definition of statistics for our class is:
A11: Statistics is the art and science of collecting, analyzing, presenting and interpreting data to help make informed decisions.
A12: The definition of the type of data analysis that we will do:
A13: Raw Data ==>> Use Statistical Methods ==>> Useful information for Decision Makers

Sheet Descriptive v Inferential
A1: Statistics
A2: Descriptive Statistics:
A3: Raw Data that is summarized and presented
A4: Tabular: Table of information
A5: Graphical: Charts and Graphs
A6: Numerical: Like an average (mean) or proportion
A7: Define Terms:
A8: Population: The set of all elements of interest in a particular study
A9: (In many situations it is too costly to get data from all the elements in the population)
A10: Example ==>> Census: Collecting data for a population
A11: Sample: A subset of the population
A12: Example ==>> Sample survey: Collecting data for a sample
A13: Inferential Statistics:
A14: The process of using data obtained from a sample to make estimates and test hypotheses about the characteristics/attribute of a population
A15: Take a sample from the population and draw reasonable conclusions that can help to estimate the unknown future.

Sheet Example of Statistics
A1: Art & science of:
A2: collecting raw data
A3: analyzing raw data = raw data ==> useful information
A4: presenting newly created information (tabular, graphical, numeric)
A5: interpreting information
A6: to help make informed decisions

Sheet Example of Statistics (an)
A1: Art & science of: | H1: Max | I1: =MAX(G9:G4714) -> 118.75
A2: collecting raw data | H2: Min | I2: =MIN(G9:G4714) -> 0.66
A3: analyzing raw data = raw data ==> useful information | H3: Mean | I3: =AVERAGE(G9:G4714) -> 22.63241394
A4: presenting newly created information (tabular, graphical, numeric)
A5: interpreting information
A6: to help make informed decisions
A8: Date | B8: Open | C8: High | D8: Low | E8: Close | F8: Volume | G8: Adj Close
A9: 2014-12-19 | B9: 51.06 | C9: 51.47 | D9: 50.83 | E9: 50.88 | F9: 22996200 | G9: 50.88
A10: 2014-12-18 | B10: 50.93 | C10: 51.15 | D10: 50.44 | E10: 50.91 | F10: 15285000 | G10: 50.91
A11: 2014-12-17 | B11: 49.02 | C11: 50.25 | D11: 48.9 | E11: 50.12 | F11: 17002900 | G11: 50.12
A12: 2014-12-16 | B12: 49.5 | C12: 50.08 | D12: 48.81 | E12: 48.85 | F12: 21276700 | G12: 48.85
A13: 2014-12-15 | B13: 50.42 | C13: 50.92 | D13: 49.5 | E13: 49.82 | F13: 18101100 | G13: 49.82
A14: 2014-12-12 | B14: 49.54 | C14: 51.17 | D14: 49.48 | E14: 50.24 | F14: 20354600 | G14: 50.24
A15: 2014-12-11 | B15: 49.54 | C15: 50.58 | D15: 49.43 | E15: 49.94 | F15: 21024200 | G15: 49.94
A16: 2014-12-10 | B16: 50.33 | C16: 50.69 | D16: 49.19 | E16: 49.21 | F16: 16130100 | G16: 49.21
A17: 2014-12-09 | B17: 48.75 | C17: 50.53 | D17: 48.29 | E17: 50.51 | F17: 19604100 | G17: 50.51
A18: 2014-12-08 | B18: 50.52 | C18: 50.9 | D18: 49.22 | E18: 49.62 | F18: 18152400 | G18: 49.62
A19: 2014-12-05 | B19: 51.03 | C19: 51.25 | D19: 50.51 | E19: 50.99 | F19: 14867700 | G19: 50.99
A20: 2014-12-04 | B20: 50.19 | C20: 50.67 | D20: 49.9 | E20: 50.41 | F20: 12136700 | G20: 50.41
A21: 2014-12-03 | B21: 50.71 | C21: 50.97 | D21: 50.2 | E21: 50.28 | F21: 14221200 | G21: 50.28
A22: 2014-12-02 | B22: 50.27 | C22: 51.12 | D22: 50.01 | E22: 50.67 | F22: 16099900 | G22: 50.67
A23: 2014-12-01 | B23: 51.43 | C23: 51.43 | D23: 49.66 | E23: 50.1 | F23: 23063400 | G23: 50.1
A24: 2014-11-28 | B24: 51.87 | C24: 52 | D24: 51.64 | E24: 51.74 | F24: 8913700 | G24: 51.74
A25: 2014-11-26 | B25: 51.56 | C25: 52.26 | D25: 51.52 | E25: 51.93 | F25: 13428500 | G25: 51.93
A26: 2014-11-25 | B26: 51.98 | C26: 52.19 | D26: 51.6 | E26: 51.72 | F26: 14206900 | G26: 51.72
A27: 2014-11-24 | B27: 51.25 | C27: 51.83 | D27: 51.07 | E27: 51.83 | F27: 14631000 | G27: 51.83
A28: 2014-11-21 | B28: 51.99 | C28: 52.25 | D28: 50.99 | E28: 51.04 | F28: 22225300 | G28: 51.04
A29: 2014-11-20 | B29: 50.6 | C29: 52.23 | D29: 50.27 | E29: 51.25 | F29: 28902000 | G29: 51.25
A30: 2014-11-19 | B30: 51.24 | C30: 51.37 | D30: 50 | E30: 50.58 | F30: 29239200 | G30: 50.58
A31: 2014-11-18 | B31: 52.28 | C31: 52.62 | D31: 51.34 | E31: 51.75 | F31: 26833900 | G31: 51.75
A32: 2014-11-17 | B32: 51.83 | C32: 52.42 | D32: 50.94 | E32: 52.37 | F32: 38382400 | G32: 52.37
A33: 2014-11-14 | B33: 50.52 | C33: 51.95 | D33: 50.47 | E33: 51.75 | F33: 28813000 | G33: 51.75
A34: 2014-11-13 | B34: 50.96 | C34: 51.17 | D34: 49.95 | E34: 50.5 | F34: 35513400 | G34: 50.5
A35: 2014-11-12 | B35: 49.33 | C35: 50.63 | D35: 49.22 | E35: 50.6 | F35: 30514800 | G35: 50.6
A36: 2014-11-11 | B36: 48.57 | C36: 49.18 | D36: 48.1 | E36: 49.05 | F36: 31575300 | G36: 49.05
A37: 2014-11-10 | B37: 48.8 | C37: 49.63 | D37: 48.79 | E37: 49.41 | F37: 24671400 | G37: 49.41
A38: 2014-11-07 | B38: 47.9 | C38: 48.67 | D38: 47.86 | E38: 48.55 | F38: 24166700 | G38: 48.55
A39: 2014-11-06 | B39: 47.37 | C39: 47.98 | D39: 46.6 | E39: 47.93 | F39: 22636000 | G39: 47.93
A40: 2014-11-05 | B40: 47.62 | C40: 48.28 | D40: 47.32 | E40: 47.46 | F40: 33021500 | G40: 47.46
A41: 2014-11-04 | B41: 45.99 | C41: 47.13 | D41: 45.74 | E41: 47.08 | F41: 25051500 | G41: 47.08
A42: 2014-11-03 | B42: 46.05 | C42: 46.72 | D42: 45.94 | E42: 46.34 | F42: 17181500 | G42: 46.34
A43: 2014-10-31 | B43: 46.16 | C43: 46.52 | D43: 45.67 | E43: 46.05 | F43: 18446800 | G43: 46.05
A44: 2014-10-30 | B44: 45.21 | C44: 45.84 | D44: 45.13 | E44: 45.63 | F44: 16205500 | G44: 45.63
A45: 2014-10-29 | B45: 45.94 | C45: 45.98 | D45: 45.13 | E45: 45.43 | F45: 25389100 | G45: 45.43
A46: 2014-10-28 | B46: 45.01 | C46: 46.15 | D46: 44.88 | E46: 45.87 | F46: 36834900 | G46: 45.87
A47: 2014-10-27 | B47: 43.31 | C47: 44.82 | D47: 43.29 | E47: 44.7 | F47: 36596500 | G47: 44.7
A48: 2014-10-24 | B48: 42.53 | C48: 43.65 | D48: 42.4 | E48: 43.5 | F48: 33805800 | G48: 43.5
A49: 2014-10-23 | B49: 42.4 | C49: 42.83 | D49: 42.26 | E49: 42.6 | F49: 30653400 | G49: 42.6
A50: 2014-10-22 | B50: 42.42 | C50: 42.88 | D50: 41.77 | E50: 42 | F50: 69348900 | G50: 42
A51: 2014-10-21 | B51: 39.65 | C51: 40.48 | D51: 39.46 | E51: 40.18 | F51: 41955200 | G51: 40.18
A52: 2014-10-20 | B52: 38.47 | C52: 39.4 | D52: 38.25 | E52: 39.28 | F52: 17802400 | G52: 39.28
A53: 2014-10-17 | B53: 38.74 | C53: 38.98 | D53: 38.31 | E53: 38.45 | F53: 24107000 | G53: 38.45
A54: 2014-10-16 | B54: 36.95 | C54: 38.5 | D54: 36.92 | E54: 38.12 | F54: 26998500 | G54: 38.12
A55: 2014-10-15 | B55: 37.27 | C55: 38.08 | D55: 36.2 | E55: 37.82 | F55: 41973500 | G55: 37.82
A56: 2014-10-14 | B56: 38.66 | C56: 39 | D56: 37.71 | E56: 37.97 | F56: 38509000 | G56: 37.97
A57: 2014-10-13 | B57: 39.52 | C57: 40.07 | D57: 38.29 | E57: 38.38 | F57: 38841900 | G57: 38.38
A58: 2014-10-10 | B58: 40.73 | C58: 41.07 | D58: 39.59 | E58: 39.6 | F58: 36771500 | G58: 39.6
A59: 2014-10-09 | B59: 40.9 | C59: 41.25 | D59: 40.42 | E59: 41.1 | F59: 33519600 | G59: 41.1
A60: 2014-10-08 | B60: 41 | C60: 41.29 | D60: 40.1 | E60: 41.08 | F60: 26593500 | G60: 41.08
A61: 2014-10-07 | B61: 41.06 | C61: 41.29 | D61: 40.78 | E61: 40.93 | F61: 22538300 | G61: 40.93
A62: 2014-10-06 | B62: 41.2 | C62: 41.73 | D62: 41.04 | E62: 41.52 | F62: 23576100 | G62: 41.52
A63: 2014-10-03 | B63: 40.79 | C63: 41.69 | D63: 40.65 | E63: 41.03 | F63: 38191700 | G63: 41.03
A64: 2014-10-02 | B64: 40.24 | C64: 40.64 | D64: 39.69 | E64: 40.5 | F64: 24584400 | G64: 40.5
A65: 2014-10-01 | B65: 40.66 | C65: 41.24 | D65: 40.11 | E65: 40.32 | F65: 35172900 | G65: 40.32
A66: 2014-09-30 | B66: 40.58 | C66: 41.23 | D66: 40.44 | E66: 40.75 | F66: 30386500 | G66: 40.75
A67: 2014-09-29 | B67: 40.41 | C67: 41.09 | D67: 40.16 | E67: 40.52 | F67: 35883300 | G67: 40.52
A68: 2014-09-26 | B68: 39.01 | C68: 40.8 | D68: 39 | E68: 40.66 | F68: 62189200 | G68: 40.66
A69: 2014-09-25 | B69: 39.56 | C69: 39.8 | D69: 38.82 | E69: 38.95 | F69: 35916500 | G69: 38.95
A70: 2014-09-24 | B70: 39.26 | C70: 40.1 | D70: 38.91 | E70: 39.88 | F70: 49014100 | G70: 39.88
A71: 2014-09-23 | B71: 38.15 | C71: 39.27 | D71: 37.9 | E71: 39.05 | F71: 66105300 | G71: 39.05
A72: 2014-09-22 | B72: 39.77 | C72: 40.04 | D72: 38.22 | E72: 38.65 | F72: 109217100 | G72: 38.65
A73: 2014-09-19 | B73: 42.44 | C73: 43.19 | D73: 39.55 | E73: 40.93 | F73: 233872100 | G73: 40.93
A74: 2014-09-18 | B74: 43.05 | C74: 43.32 | D74: 41.42 | E74: 42.09 | F74: 93702100 | G74: 42.09
A75: 2014-09-17 | B75: 42.37 | C75: 42.96 | D75: 42.3 | E75: 42.59 | F75: 39495500 | G75: 42.59
A76: 2014-09-16 | B76: 42.61 | C76: 42.96 | D76: 41.69 | E76: 42.71 | F76: 61490700 | G76: 42.71
A77: 2014-09-15 | B77: 43.98 | C77: 44.01 | D77: 42.14 | E77: 42.55 | F77: 72409900 | G77: 42.55
A78: 2014-09-12 | B78: 41.73 | C78: 43.2 | D78: 41.5 | E78: 42.88 | F78: 69745500 | G78: 42.88
A79: 2014-09-11 | B79: 41.02 | C79: 41.56 | D79: 40.93 | E79: 41.26 | F79: 25203000 | G79: 41.26
A80: 2014-09-10 | B80: 41.05 | C80: 41.23 | D80: 40.33 | E80: 41.14 | F80: 30741800 | G80: 41.14
A81: 2014-09-09 | B81: 42.01 | C81: 42.06 | D81: 40.6 | E81: 40.78 | F81: 52683000 | G81: 40.78
A82: 2014-09-08 | B82: 40.34 | C82: 41.82 | D82: 40.26 | E82: 41.81 | F82: 75520200 | G82: 41.81
A83: 2014-09-05 | B83: 39.05 | C83: 39.8 | D83: 39.05 | E83: 39.59 | F83: 26200400 | G83: 39.59
A84: 2014-09-04 | B84: 39.14 | C84: 39.34 | D84: 38.96 | E84: 39.19 | F84: 14763300 | G84: 39.19
A85: 2014-09-03 | B85: 39.49 | C85: 39.6 | D85: 38.69 | E85: 38.87 | F85: 16092900 | G85: 38.87
A86: 2014-09-02 | B86: 38.9 | C86: 39.3 | D86: 38.79 | E86: 39.27 | F86: 19803300 | G86: 39.27
A87: 2014-08-29 | B87: 38.57 | C87: 38.67 | D87: 38.2 | E87: 38.51 | F87: 11634100 | G87: 38.51
A88: 2014-08-28 | B88: 38.09 | C88: 38.57 | D88: 37.9 | E88: 38.31 | F88: 16490600 | G88: 38.31
A89: 2014-08-27 | B89: 38.3 | C89: 38.72 | D89: 37.83 | E89: 38.18 | F89: 24843000 | G89: 38.18
A90: 2014-08-26 | B90: 37.76 | C90: 37.92 | D90: 37.56 | E90: 37.79 | F90: 9516800 | G90: 37.79
A91: 2014-08-25 | B91: 38.14 | C91: 38.22 | D91: 37.54 | E91: 37.71 | F91: 14356400 | G91: 37.71
A92: 2014-08-22 | B92: 37.7 | C92: 38.2 | D92: 37.64 | E92: 38.01 | F92: 14879100 | G92: 38.01
A93: 2014-08-21 | B93: 37.65 | C93: 37.75 | D93: 37.31 | E93: 37.64 | F93: 12254900 | G93: 37.64
A94: 2014-08-20 | B94: 37.61 | C94: 37.75 | D94: 37.31 | E94: 37.5 | F94: 12670300 | G94: 37.5
A95: 2014-08-19 | B95: 37.56 | C95: 37.94 | D95: 37.5 | E95: 37.83 | F95: 17084900 | G95: 37.83
A96: 2014-08-18 | B96: 36.77 | C96: 37.77 | D96: 36.75 | E96: 37.38 | F96: 20153200 | G96: 37.38
A97: 2014-08-15 | B97: 36.2 | C97: 36.57 | D97: 36.12 | E97: 36.47 | F97: 13338900 | G97: 36.47
A98: 2014-08-14 | B98: 36.32 | C98: 36.42 | D98: 36.17 | E98: 36.36 | F98: 8927300 | G98: 36.36
A99: 2014-08-13 | B99: 35.96 | C99: 36.45 | D99: 35.77 | E99: 36.19 | F99: 16532300 | G99: 36.19
A100: 2014-08-12 | B100: 35.8 | C100: 35.99 | D100: 35.15 | E100: 35.52 | F100: 12902700 | G100: 35.52
A101: 2014-08-11 | B101: 36.1 | C101: 36.15 | D101: 35.75 | E101: 35.79 | F101: 8660100 | G101: 35.79
A102: 2014-08-08 | B102: 35.73 | C102: 35.96 | D102: 35.4 | E102: 35.91 | F102: 10593700 | G102: 35.91
A103: 2014-08-07 | B103: 36 | C103: 36 | D103: 35.53 | E103: 35.66 | F103: 11306600 | G103: 35.66
A104: 2014-08-06 | B104: 35.58 | C104: 35.94 | D104: 35.44 | E104: 35.79 | F104: 11770500 | G104: 35.79
A105: 2014-08-05 | B105: 36.32 | C105: 36.42 | D105: 35.62 | E105: 35.7 | F105: 17636400 | G105: 35.7
A106: 2014-08-04 | B106: 35.71 | C106: 36.66 | D106: 35.65 | E106: 36.53 | F106: 13097200 | G106: 36.53
A107: 2014-08-01 | B107: 35.69 | C107: 36.08 | D107: 35.31 | E107: 35.62 | F107: 14573000 | G107: 35.62
A108: 2014-07-31 | B108: 36.26 | C108: 36.49 | D108: 35.68 | E108: 35.81 | F108: 17937400 | G108: 35.81
A109: 2014-07-30 | B109: 35.94 | C109: 36.99 | D109: 35.8 | E109: 36.6 | F109: 29876700 | G109: 36.6
A110: 2014-07-29 | B110: 35.91 | C110: 36.16 | D110: 35.67 | E110: 35.68 | F110: 11570900 | G110: 35.68
A111: 2014-07-28 | B111: 36.23 | C111: 36.23 | D111: 35.51 | E111: 35.9 | F111: 14607200 | G111: 35.9
A112: 2014-07-25 | B112: 36 | C112: 36.33 | D112: 35.75 | E112: 36.12 | F112: 20143800 | G112: 36.12
A113: 2014-07-24 | B113: 35.09 | C113: 36.55 | D113: 35.04 | E113: 36.17 | F113: 47391000 | G113: 36.17
A114: 2014-07-23 | B114: 33.78 | C114: 34.92 | D114: 33.68 | E114: 34.71 | F114: 38622500 | G114: 34.71
A115: 2014-07-22 | B115: 33.48 | C115: 33.84 | D115: 33.4 | E115: 33.6 | F115: 18153600 | G115: 33.6
A116: 2014-07-21 | B116: 33.35 | C116: 33.64 | D116: 33.16 | E116: 33.28 | F116: 18431000 | G116: 33.28
A117: 2014-07-18 | B117: 33.18 | C117: 33.35 | D117: 32.93 | E117: 33.33 | F117: 21540900 | G117: 33.33
A118: 2014-07-17 | B118: 33.82 | C118: 33.9 | D118: 32.98 | E118: 33.21 | F118: 37535900 | G118: 33.21
A119: 2014-07-16 | B119: 34.42 | C119: 34.45 | D119: 33.72 | E119: 33.79 | F119: 56260600 | G119: 33.79
A120: 2014-07-15 | B120: 35.72 | C120: 35.94 | D120: 35.2 | E120: 35.61 | F120: 36316600 | G120: 35.61
A121: 2014-07-14 | B121: 35.8 | C121: 35.95 | D121: 35.45 | E121: 35.7 | F121: 18680500 | G121: 35.7
A122: 2014-07-11 | B122: 34.95 | C122: 35.56 | D122: 34.78 | E122: 35.43 | F122: 18379500 | G122: 35.43
A123: 2014-07-10 | B123: 34.33 | C123: 34.97 | D123: 34.1 | E123: 34.93 | F123: 18064800 | G123: 34.93
A124: 2014-07-09 | B124: 34.68 | C124: 35.07 | D124: 34.68 | E124: 34.85 | F124: 12626900 | G124: 34.85
A125: 2014-07-08 | B125: 35.64 | C125: 35.66 | D125: 34.28 | E125: 34.53 | F125: 23096900 | G125: 34.53
A126: 2014-07-07 | B126: 36.15 | C126: 36.23 | D126: 35.48 | E126: 35.52 | F126: 15716800 | G126: 35.52
A127: 2014-07-03 | B127: 36.07 | C127: 36.15 | D127: 35.9 | E127: 36.14 | F127: 8604900 | G127: 36.14
A128: 2014-07-02 | B128: 35.62 | C128: 35.91 | D128: 35.4 | E128: 35.88 | F128: 16533600 | G128: 35.88
A129: 2014-07-01 | B129: 35.5 | C129: 35.7 | D129: 35.21 | E129: 35.35 | F129: 18609600 | G129: 35.35
A130: 2014-06-30 | B130: 34.93 | C130: 35.26 | D130: 34.85 | E130: 35.13 | F130: 20450100 | G130: 35.13
A131: 2014-06-27 | B131: 33.85 | C131: 34.55 | D131: 33.7 | E131: 34.25 | F131: 25500600 | G131: 34.25
A132: 2014-06-26 | B132: 33.25 | C132: 33.75 | D132: 33.02 | E132: 33.66 | F132: 16010000 | G132: 33.66
A133: 2014-06-25 | B133: 33.38 | C133: 33.65 | D133: 33.1 | E133: 33.25 | F133: 18074400 | G133: 33.25
A134: 2014-06-24 | B134: 33.79 | C134: 33.99 | D134: 33.35 | E134: 33.48 | F134: 14589800 | G134: 33.48
A135: 2014-06-23 | B135: 34.13 | C135: 34.22 | D135: 33.37 | E135: 33.64 | F135: 26206400 | G135: 33.64
A136: 2014-06-20 | B136: 34.81 | C136: 34.81 | D136: 33.97 | E136: 34.05 | F136: 21605800 | G136: 34.05
A137: 2014-06-19 | B137: 35.14 | C137: 35.2 | D137: 34.52 | E137: 34.68 | F137: 16200000 | G137: 34.68
A138: 2014-06-18 | B138: 34.67 | C138: 35.01 | D138: 34.26 | E138: 34.94 | F138: 17836000 | G138: 34.94
A139: 2014-06-17 | B139: 34.8 | C139: 34.94 | D139: 34.3 | E139: 34.43 | F139: 24402900 | G139: 34.43
A140: 2014-06-16 | B140: 35 | C140: 35.49 | D140: 34.77 | E140: 34.81 | F140: 32432300 | G140: 34.81
A141: 2014-06-13 | B141: 36.88 | C141: 37.06 | D141: 36.64 | E141: 36.94 | F141: 12926300 | G141: 36.94
A142: 2014-06-12 | B142: 36.5 | C142: 36.79 | D142: 36.34 | E142: 36.78 | F142: 12466100 | G142: 36.78
A143: 2014-06-11 | B143: 36.25 | C143: 36.84 | D143: 36.11 | E143: 36.63 | F143: 13321500 | G143: 36.63
A144: 2014-06-10 | B144: 35.87 | C144: 36.52 | D144: 35.86 | E144: 36.31 | F144: 9179300 | G144: 36.31
A145: 2014-06-09 | B145: 35.86 | C145: 36.32 | D145: 35.54 | E145: 36.04 | F145: 14390000 | G145: 36.04
A146: 2014-06-06 | B146: 35.06 | C146: 36.08 | D146: 35.05 | E146: 35.92 | F146: 18707200 | G146: 35.92
A147: 2014-06-05 | B147: 34.79 | C147: 34.99 | D147: 34.36 | E147: 34.94 | F147: 11192800 | G147: 34.94
A148: 2014-06-04 | B148: 34.48 | C148: 34.83 | D148: 34.26 | E148: 34.73 | F148: 9434100 | G148: 34.73
A149: 2014-06-03 | B149: 34.8 | C149: 34.97 | D149: 34.58 | E149: 34.65 | F149: 6557500 | G149: 34.65
A150: 2014-06-02 | B150: 34.69 | C150: 34.95 | D150: 34.28 | E150: 34.87 | F150: 9178900 | G150: 34.87
A151: 2014-05-30 | B151: 34.92 | C151: 34.93 | D151: 34.13 | E151: 34.65 | F151: 13153000 | G151: 34.65
A152: 2014-05-29 | B152: 34.9 | C152: 35.1 | D152: 34.67 | E152: 34.9 | F152: 9780800 | G152: 34.9
A153: 2014-05-28 | B153: 35.15 | C153: 35.17 | D153: 34.42 | E153: 34.78 | F153: 16960500 | G153: 34.78
A154: 2014-05-27 | B154: 35 | C154: 35.13 | D154: 34.73 | E154: 35.12 | F154: 13057000 | G154: 35.12
A155: 2014-05-23 | B155: 34.85 | C155: 35.08 | D155: 34.51 | E155: 35.02 | F155: 16294400 | G155: 35.02
A156: 2014-05-22 | B156: 34.6 | C156: 34.86 | D156: 34.26 | E156: 34.7 | F156: 17522800 | G156: 34.7
A157: 2014-05-21 | B157: 34 | C157: 34.39 | D157: 33.89 | E157: 34.36 | F157: 13804500 | G157: 34.36
A158: 2014-05-20 | B158: 33.99 | C158: 34.47 | D158: 33.67 | E158: 33.87 | F158: 18596700 | G158: 33.87
A159: 2014-05-19 | B159: 33.41 | C159: 33.99 | D159: 33.28 | E159: 33.89 | F159: 14845700 | G159: 33.89
A160: 2014-05-16 | B160: 33.66 | C160: 33.66 | D160: 33.1 | E160: 33.41 | F160: 18847100 | G160: 33.41
A161: 2014-05-15 | B161: 34.18 | C161: 34.19 | D161: 33.4 | E161: 33.8 | F161: 18879800 | G161: 33.8
A162: 2014-05-14 | B162: 34.48 | C162: 34.65 | D162: 33.98 | E162: 34.17 | F162: 17039000 | G162: 34.17
A163: 2014-05-13 | B163: 34.43 | C163: 34.69 | D163: 34.17 | E163: 34.4 | F163: 12477100 | G163: 34.4
A164: 2014-05-12 | B164: 33.99 | C164: 34.6 | D164: 33.87 | E164: 34.45 | F164: 22520600 | G164: 34.45
A165: 2014-05-09 | B165: 34.01 | C165: 34.1 | D165: 33.41 | E165: 33.76 | F165: 20303400 | G165: 33.76
A166: 2014-05-08 | B166: 33.88 | C166: 34.57 | D166: 33.61 | E166: 33.92 | F166: 30407700 | G166: 33.92
A167: 2014-05-07 | B167: 35.99 | C167: 35.99 | D167: 33.67 | E167: 34.07 | F167: 66062700 | G167: 34.07
A168: 2014-05-06 | B168: 36.94 | C168: 37.17 | D168: 36.48 | E168: 36.49 | F168: 19156000 | G168: 36.49
A169: 2014-05-05 | B169: 36.68 | C169: 37.05 | D169: 36.3 | E169: 36.91 | F169: 13129100 | G169: 36.91
A170: 2014-05-02 | B170: 36.59 | C170: 37.12 | D170: 36.21 | E170: 36.87 | F170: 22454100 | G170: 36.87
A171: 2014-05-01 | B171: 36.26 | C171: 36.69 | D171: 36 | E171: 36.51 | F171: 19474700 | G171: 36.51
A172: 2014-04-30 | B172: 35.89 | C172: 36.44 | D172: 35.25 | E172: 35.95 | F172: 23341500 | G172: 35.95
A173: 2014-04-29 | B173: 34.37 | C173: 35.89 | D173: 34.12 | E173: 35.83 | F173: 28736000 | G173: 35.83
A174: 2014-04-28 | B174: 34.67 | C174: 35 | D174: 33.65 | E174: 33.99 | F174: 31019200 | G174: 33.99
A175: 2014-04-25 | B175: 35.03 | C175: 35.1 | D175: 34.29 | E175: 34.48 | F175: 19401600 | G175: 34.48
A176: 2014-04-24 | B176: 35.82 | C176: 35.82 | D176: 34.77 | E176: 35.24 | F176: 17242300 | G176: 35.24
A177: 2014-04-23 | B177: 36.08 | C177: 36.19 | D177: 35.4 | E177: 35.44 | F177: 19051700 | G177: 35.44
A178: 2014-04-22 | B178: 36.71 | C178: 36.85 | D178: 36.11 | E178: 36.14 | F178: 17915200 | G178: 36.14
A179: 2014-04-21 | B179: 36.6 | C179: 36.65 | D179: 35.89 | E179: 36.4 | F179: 16685400 | G179: 36.4
A180: 2014-04-17 | B180: 36.29 | C180: 36.6 | D180: 35.55 | E180: 36.38 | F180: 28932700 | G180: 36.38
A181: 2014-04-16 | B181: 36.98 | C181: 37.3 | D181: 35.81 | E181: 36.35 | F181: 61599100 | G181: 36.35
A182: 2014-04-15 | B182: 33.93 | C182: 34.28 | D182: 32.64 | E182: 34.21 | F182: 50600400 | G182: 34.21
A183: 2014-04-14 | B183: 33.55 | C183: 34.04 | D183: 33.04 | E183: 33.45 | F183: 26322600 | G183: 33.45
A184: 2014-04-11 | B184: 32.64 | C184: 33.48 | D184: 32.15 | E184: 32.87 | F184: 28040700 | G184: 32.87
A185: 2014-04-10 | B185: 34.88 | C185: 34.98 | D185: 33.09 | E185: 33.4 | F185: 34024900 | G185: 33.4
A186: 2014-04-09 | B186: 34.19 | C186: 35 | D186: 33.95 | E186: 34.87 | F186: 21651200 | G186: 34.87
A187: 2014-04-08 | B187: 33.1 | C187: 34.43 | D187: 33.02 | E187: 33.83 | F187: 35486100 | G187: 33.83
A188: 2014-04-07 | B188: 34.11 | C188: 34.37 | D188: 32.53 | E188: 33.07 | F188: 47770200 | G188: 33.07
A189: 2014-04-04 | B189: 36.01 | C189: 36.05 | D189: 33.83 | E189: 34.26 | F189: 41049900 | G189: 34.26
A190: 2014-04-03 | B190: 36.66 | C190: 36.79 | D190: 35.51 | E190: 35.76 | F190: 16827800 | G190: 35.76
A191: 2014-04-02 | B191: 36.68 | C191: 36.86 | D191: 36.56 | E191: 36.64 | F191: 14522800 | G191: 36.64
A192: 2014-04-01 | B192: 36.16 | C192: 36.86 | D192: 36.15 | E192: 36.49 | F192: 15734000 | G192: 36.49
A193: 2014-03-31 | B193: 36.46 | C193: 36.58 | D193: 35.73 | E193: 35.9 | F193: 15153200 | G193: 35.9
A194: 2014-03-28 | B194: 35.77 | C194: 36.73 | D194: 35.53 | E194: 35.9 | F194: 18292900 | G194: 35.9
A195: 2014-03-27 | B195: 35.5 | C195: 36.15 | D195: 35.05 | E195: 35.59 | F195: 21929600 | G195: 35.59
A196: 2014-03-26 | B196: 36.24 | C196: 36.74 | D196: 35.45 | E196: 35.45 | F196: 20938800 | G196: 35.45
A197: 2014-03-25 | B197: 37 | C197: 37.07 | D197: 35.86 | E197: 35.93 | F197: 31715100 | G197: 35.93
A198: 2014-03-24 | B198: 38 | C198: 38.04 | D198: 36.28 | E198: 36.68 | F198: 29589000 | G198: 36.68
A199: 2014-03-21 | B199: 38.1 | C199: 38.27 | D199: 37.73 | E199: 37.94 | F199: 16044200 | G199: 37.94
A200: 2014-03-20 | B200: 38.37 | C200: 38.47 | D200: 37.42 | E200: 37.77 | F200: 19517000 | G200: 37.77
A201: 2014-03-19 | B201: 39.66 | C201: 39.94 | D201: 38.51 | E201: 38.61 | F201: 19324600 | G201: 38.61
... 4513 more rows

Sheet Example of Inferential Stats
A1: Production: Sampling box weight to see if filling machine is filling accurately (chapter 9)
A2: H0 : Mu = 10 grams
A3: H1 : Mu <> 10 grams
A4: Historical Average = | B4: 10 | C4: grams
A5: Historical Standard Deviation = | B5: 0.5 | C5: grams
A6: Level of Significance = | B6: 0.05
A7: Level of Significance Divided by 2 = | B7: =B6/2 -> 0.025
A8: Sample Mean = AVERAGE = | B8: =AVERAGE(A22:A99) -> 9.915012821 | C8: grams
A9: Sample Standard Deviation = STDEV = | B9: =STDEV(A22:A99) -> 0.2282146115 | C9: grams
A10: Sample size = COUNT = | B10: =COUNT($A$22:$A$99) -> 78
A11: Standard Error | B11: =B5/SQRT(B10) -> 0.05661385171 | C11: grams
A12: z | B12: =(B8-B4)/B11 -> -1.501172892
A13: X | B13: =B12*B11+B4 -> 9.915012821 | C13: =D102 -> P(9.915) | H13: =VLOOKUP(B13,B103:C602,2) -> 0.7850629662
A14: p-value = | B14: =IF(B8<B4,2*NORMDIST(B8,B4,B5/SQRT(B10),1),2*(1-NORMDIST(B8,B4,B5/SQRT(B10),1))) -> 0.1333108494
A15: p-value = | B15: =2*(1-NORMSDIST(ABS(B12))) -> 0.1333108494
A16: =IF(B15>B6,"Because the p-value is greater than our alpha, it is reasonable to assume that the machine is filling accurately"," Because the p-value is less than or equal to our alpha, it is reasonable to assume that the machine is not filling accurately") -> Because the p-value is greater than our alpha, it is reasonable to assume that the machine is filling accurately
A21: Sample data
A22: =RANDBETWEEN(9500,10300)/1000 -> 10.173
A23: 10.277
A24: 10.237
A25: 10.2
A26: 10.237
A27: 10.03
A28: 9.747
A29: 9.533
A30: 9.651
A31: 9.901
A32: 9.649
A33: 10.029
A34: 9.584
A35: 10.174
A36: 9.69
A37: 10.25
A38: 9.893
A39: 9.664
A40: 10.012
A41: 9.566
A42: 9.749
A43: 10.149
A44: 10.098
A45: 10.095
A46: 9.556
A47: 9.573
A48: 9.754
A49: 9.898
A50: 10.145
A51: 10.031
A52: 9.936
A53: 9.885
A54: 9.922
A55: 10.23
A56: 9.661
A57: 10.116
A58: 10.019
A59: 9.896
A60: 9.543
A61: 10.092
A62: 9.813
A63: 9.513
A64: 10.038
A65: 9.771
A66: 9.962
A67: 9.692
A68: 9.886
A69: 9.621
A70: 9.556
A71: 9.655
A72: 9.676
A73: 10.28
A74: 10.11
A75: 9.862
A76: 9.95
A77: 9.842
A78: 10.238
A79: 10.194
A80: 10.275
A81: 9.977
A82: 10.075
A83: 9.795
A84: 9.607
A85: 9.866
A86: =RANDBETWEEN(9500,10300)/1000 -> 9.759
A87: 10.088
A88: 9.927
A89: 9.619
A90: 10.166
A91: 10.163
A92: 9.727
A93: 9.773
A94: 10.077
A95: 10.047
A96: 10.069
A97: 9.707
A98: 10.245
A99: 9.905
A101: Chart Data:
A102: z | B102: X | C102: P(Exactly x) | D102: ="P("&ROUND(B8,3)&")" -> P(9.915) | E102: P(alpha)
A103: =(B103-B$4)/B$11 -> -35.32704347 | B103: 8 | C103: =NORMDIST(B103,B$4,B$5,0) -> 0.0002676604515 | D103: =IF(C103<=B$14/2,C103,0) -> 0.0002676604515 | E103: =IF(C103<=B$6/2,C103,0) -> 0.0002676604515
A104: -35.15040825 | B104: =B103+0.01 -> 8.01 | C104: 0.0002898951208 | D104: 0.0002898951208 | E104: 0.0002898951208
A105: -34.97377303 | B105: =B104+0.01 -> 8.02 | C105: 0.0003138512681 | D105: 0.0003138512681 | E105: 0.0003138512681
A106: -34.79713781 | B106: 8.03 | C106: 0.0003396511989 | D106: 0.0003396511989 | E106: 0.0003396511989
A107: -34.6205026 | B107: 8.04 | C107: 0.000367424996 | D107: 0.000367424996 | E107: 0.000367424996
A108: -34.44386738 | B108: 8.05 | C108: 0.0003973109428 | D108: 0.0003973109428 | E108: 0.0003973109428
A109: -34.26723216 | B109: 8.06 | C109: 0.000429455963 | D109: 0.000429455963 | E109: 0.000429455963
A110: -34.09059694 | B110: 8.07 | C110: 0.0004640160793 | D110: 0.0004640160793 | E110: 0.0004640160793
A111: -33.91396173 | B111: 8.08 | C111: 0.0005011568898 | D111: 0.0005011568898 | E111: 0.0005011568898
A112: -33.73732651 | B112: 8.09 | C112: 0.0005410540629 | D112: 0.0005410540629 | E112: 0.0005410540629
A113: -33.56069129 | B113: 8.1 | C113: 0.0005838938516 | D113: 0.0005838938516 | E113: 0.0005838938516
A114: -33.38405607 | B114: 8.11 | C114: 0.0006298736258 | D114: 0.0006298736258 | E114: 0.0006298736258
A115: -33.20742086 | B115: 8.12 | C115: 0.000679202425 | D115: 0.000679202425 | E115: 0.000679202425
A116: -33.03078564 | B116: 8.13 | C116: 0.0007321015291 | D116: 0.0007321015291 | E116: 0.0007321015291
A117: -32.85415042 | B117: 8.14 | C117: 0.0007888050499 | D117: 0.0007888050499 | E117: 0.0007888050499
A118: -32.67751521 | B118: 8.15 | C118: 0.0008495605411 | D118: 0.0008495605411 | E118: 0.0008495605411
A119: -32.50087999 | B119: 8.16 | C119: 0.0009146296281 | D119: 0.0009146296281 | E119: 0.0009146296281
A120: -32.32424477 | B120: 8.17 | C120: 0.0009842886577 | D120: 0.0009842886577 | E120: 0.0009842886577
A121: -32.14760955 | B121: 8.18 | C121: 0.001058829366 | D121: 0.001058829366 | E121: 0.001058829366
A122: -31.97097434 | B122: 8.19 | C122: 0.001138559568 | D122: 0.001138559568 | E122: 0.001138559568
A123: -31.79433912 | B123: 8.2 | C123: 0.00122380386 | D123: 0.00122380386 | E123: 0.00122380386
A124: -31.6177039 | B124: 8.21 | C124: 0.001314904351 | D124: 0.001314904351 | E124: 0.001314904351
A125: -31.44106868 | B125: 8.22 | C125: 0.001412221401 | D125: 0.001412221401 | E125: 0.001412221401
A126: -31.26443347 | B126: 8.23 | C126: 0.001516134383 | D126: 0.001516134383 | E126: 0.001516134383
A127: -31.08779825 | B127: 8.24 | C127: 0.001627042462 | D127: 0.001627042462 | E127: 0.001627042462
A128: -30.91116303 | B128: 8.25 | C128: 0.00174536539 | D128: 0.00174536539 | E128: 0.00174536539
A129: -30.73452781 | B129: 8.26 | C129: 0.001871544314 | D129: 0.001871544314 | E129: 0.001871544314
A130: -30.5578926 | B130: 8.27 | C130: 0.002006042601 | D130: 0.002006042601 | E130: 0.002006042601
A131: -30.38125738 | B131: 8.28 | C131: 0.00214934668 | D131: 0.00214934668 | E131: 0.00214934668
A132: -30.20462216 | B132: 8.29 | C132: 0.002301966888 | D132: 0.002301966888 | E132: 0.002301966888
A133: -30.02798695 | B133: 8.3 | C133: 0.002464438337 | D133: 0.002464438337 | E133: 0.002464438337
A134: -29.85135173 | B134: 8.31 | C134: 0.002637321784 | D134: 0.002637321784 | E134: 0.002637321784
A135: -29.67471651 | B135: 8.32 | C135: 0.002821204514 | D135: 0.002821204514 | E135: 0.002821204514
A136: -29.49808129 | B136: 8.33 | C136: 0.00301670123 | D136: 0.00301670123 | E136: 0.00301670123
A137: -29.32144608 | B137: 8.34 | C137: 0.003224454944 | D137: 0.003224454944 | E137: 0.003224454944
A138: -29.14481086 | B138: 8.35 | C138: 0.003445137878 | D138: 0.003445137878 | E138: 0.003445137878
A139: -28.96817564 | B139: 8.36 | C139: 0.003679452362 | D139: 0.003679452362 | E139: 0.003679452362
A140: -28.79154042 | B140: 8.37 | C140: 0.003928131731 | D140: 0.003928131731 | E140: 0.003928131731
A141: -28.61490521 | B141: 8.38 | C141: 0.004191941226 | D141: 0.004191941226 | E141: 0.004191941226
A142: -28.43826999 | B142: 8.39 | C142: 0.004471678879 | D142: 0.004471678879 | E142: 0.004471678879
A143: -28.26163477 | B143: 8.4 | C143: 0.004768176403 | D143: 0.004768176403 | E143: 0.004768176403
A144: -28.08499955 | B144: 8.41 | C144: 0.005082300057 | D144: 0.005082300057 | E144: 0.005082300057
A145: -27.90836434 | B145: 8.42 | C145: 0.005414951514 | D145: 0.005414951514 | E145: 0.005414951514
A146: -27.73172912 | B146: 8.43 | C146: 0.005767068695 | D146: 0.005767068695 | E146: 0.005767068695
A147: -27.5550939 | B147: 8.44 | C147: 0.006139626602 | D147: 0.006139626602 | E147: 0.006139626602
A148: -27.37845869 | B148: 8.45 | C148: 0.006533638112 | D148: 0.006533638112 | E148: 0.006533638112
A149: -27.20182347 | B149: 8.46 | C149: 0.006950154756 | D149: 0.006950154756 | E149: 0.006950154756
A150: -27.02518825 | B150: 8.47 | C150: 0.007390267459 | D150: 0.007390267459 | E150: 0.007390267459
A151: -26.84855303 | B151: 8.48 | C151: 0.007855107258 | D151: 0.007855107258 | E151: 0.007855107258
A152: -26.67191782 | B152: 8.49 | C152: 0.008345845969 | D152: 0.008345845969 | E152: 0.008345845969
A153: -26.4952826 | B153: 8.5 | C153: 0.008863696824 | D153: 0.008863696824 | E153: 0.008863696824
A154: -26.31864738 | B154: 8.51 | C154: 0.009409915054 | D154: 0.009409915054 | E154: 0.009409915054
A155: -26.14201216 | B155: 8.52 | C155: 0.009985798427 | D155: 0.009985798427 | E155: 0.009985798427
A156: -25.96537695 | B156: 8.53 | C156: 0.01059268773 | D156: 0.01059268773 | E156: 0.01059268773
A157: -25.78874173 | B157: 8.54 | C157: 0.01123196719 | D157: 0.01123196719 | E157: 0.01123196719
A158: -25.61210651 | B158: 8.55 | C158: 0.01190506484 | D158: 0.01190506484 | E158: 0.01190506484
A159: -25.4354713 | B159: 8.56 | C159: 0.01261345279 | D159: 0.01261345279 | E159: 0.01261345279
A160: -25.25883608 | B160: 8.57 | C160: 0.01335864748 | D160: 0.01335864748 | E160: 0.01335864748
A161: -25.08220086 | B161: 8.58 | C161: 0.01414220977 | D161: 0.01414220977 | E161: 0.01414220977
A162: -24.90556564 | B162: 8.59 | C162: 0.01496574505 | D162: 0.01496574505 | E162: 0.01496574505
A163: -24.72893043 | B163: 8.6 | C163: 0.01583090317 | D163: 0.01583090317 | E163: 0.01583090317
A164: -24.55229521 | B164: 8.61 | C164: 0.01673937831 | D164: 0.01673937831 | E164: 0.01673937831
A165: -24.37565999 | B165: 8.62 | C165: 0.0176929088 | D165: 0.0176929088 | E165: 0.0176929088
A166: -24.19902477 | B166: 8.63 | C166: 0.01869327674 | D166: 0.01869327674 | E166: 0.01869327674
A167: =(B167-B$4)/B$11 -> -24.02238956 | B167: 8.64 | C167: =NORMDIST(B167,B$4,B$5,0) -> 0.01974230759 | D167: =IF(C167<=B$14/2,C167,0) -> 0.01974230759 | E167: =IF(C167<=B$6/2,C167,0) -> 0.01974230759
A168: -23.84575434 | B168: 8.65 | C168: 0.02084186963 | D168: 0.02084186963 | E168: 0.02084186963
A169: -23.66911912 | B169: =B168+0.01 -> 8.66 | C169: 0.02199387326 | D169: 0.02199387326 | E169: 0.02199387326
A170: -23.4924839 | B170: 8.67 | C170: 0.02320027023 | D170: 0.02320027023 | E170: 0.02320027023
A171: -23.31584869 | B171: 8.68 | C171: 0.0244630527 | D171: 0.0244630527 | E171: 0.0244630527
A172: -23.13921347 | B172: 8.69 | C172: 0.02578425222 | D172: 0.02578425222 | E172: 0
A173: -22.96257825 | B173: 8.7 | C173: 0.02716593847 | D173: 0.02716593847 | E173: 0
A174: -22.78594304 | B174: 8.71 | C174: 0.02861021799 | D174: 0.02861021799 | E174: 0
A175: -22.60930782 | B175: 8.72 | C175: 0.03011923265 | D175: 0.03011923265 | E175: 0
A176: -22.4326726 | B176: 8.73 | C176: 0.03169515805 | D176: 0.03169515805 | E176: 0
A177: -22.25603738 | B177: 8.74 | C177: 0.03334020167 | D177: 0.03334020167 | E177: 0
A178: -22.07940217 | B178: 8.75 | C178: 0.03505660099 | D178: 0.03505660099 | E178: 0
A179: -21.90276695 | B179: 8.76 | C179: 0.03684662129 | D179: 0.03684662129 | E179: 0
A180: -21.72613173 | B180: 8.77 | C180: 0.03871255346 | D180: 0.03871255346 | E180: 0
A181: -21.54949651 | B181: 8.78 | C181: 0.04065671148 | D181: 0.04065671148 | E181: 0
A182: -21.3728613 | B182: 8.79 | C182: 0.0426814298 | D182: 0.0426814298 | E182: 0
A183: -21.19622608 | B183: 8.8 | C183: 0.04478906059 | D183: 0.04478906059 | E183: 0
A184: -21.01959086 | B184: 8.81 | C184: 0.04698197072 | D184: 0.04698197072 | E184: 0
A185: -20.84295564 | B185: 8.82 | C185: 0.04926253861 | D185: 0.04926253861 | E185: 0
A186: -20.66632043 | B186: 8.83 | C186: 0.05163315094 | D186: 0.05163315094 | E186: 0
A187: -20.48968521 | B187: 8.84 | C187: 0.05409619909 | D187: 0.05409619909 | E187: 0
A188: -20.31304999 | B188: 8.85 | C188: 0.05665407548 | D188: 0.05665407548 | E188: 0
A189: -20.13641478 | B189: 8.86 | C189: 0.05930916969 | D189: 0.05930916969 | E189: 0
A190: -19.95977956 | B190: 8.87 | C190: 0.06206386443 | D190: 0.06206386443 | E190: 0
A191: -19.78314434 | B191: 8.88 | C191: 0.06492053129 | D191: 0.06492053129 | E191: 0
A192: -19.60650912 | B192: 8.89 | C192: 0.06788152636 | D192: 0 | E192: 0
A193: -19.42987391 | B193: 8.9 | C193: 0.07094918569 | D193: 0 | E193: 0
A194: -19.25323869 | B194: 8.91 | C194: 0.0741258205 | D194: 0 | E194: 0
A195: -19.07660347 | B195: 8.92 | C195: 0.07741371229 | D195: 0 | E195: 0
A196: -18.89996825 | B196: 8.93 | C196: 0.08081510785 | D196: 0 | E196: 0
A197: -18.72333304 | B197: 8.94 | C197: 0.08433221392 | D197: 0 | E197: 0
A198: -18.54669782 | B198: 8.95 | C198: 0.08796719196 | D198: 0 | E198: 0
A199: -18.3700626 | B199: 8.96 | C199: 0.09172215254 | D199: 0 | E199: 0
A200: -18.19342738 | B200: 8.97 | C200: 0.09559914976 | D200: 0 | E200: 0
A201: -18.01679217 | B201: 8.98 | C201: 0.09960017547 | D201: 0 | E201: 0
A202: -17.84015695 | B202: 8.99 | C202: 0.1037271534 | D202: 0 | E202: 0
A203: -17.66352173 | B203: 9 | C203: 0.107981933 | D203: 0 | E203: 0
A204: -17.48688652 | B204: 9.01 | C204: 0.1123662838 | D204: 0 | E204: 0
A205: -17.3102513 | B205: 9.02 | C205: 0.1168818887 | D205: 0 | E205: 0
... 397 more rows

Sheet Data
A1: Data
A2: Raw Data:
A3: Data stored in its smallest size in a Field (Variable):
A4: Store “1234 San Pablo Ave., Oakland, CA 94688” in its smallest bits:
A5: Address = 1234 San Pablo Ave.
A6: City = Oakland
A7: State = CA
A8: Zip = 94688
A9: Raw Data = The characteristics or attributes of the Elements
A10: Define Terms:
A11: Element: entities on which data are collected.
A12: Field Names (Variables): characteristics or attributes of interest for the elements.
A13: Records (Observations): The set of measurements collected for a particular element.
A14: Proper Data Set:
A15: 1) Fields in 1st row
A16: 2) First column is a Primary Key (no duplicates) which contains a unique list of Elements. Exception sometimes because we have a proper data set that we will subsequently summarize into a table with a unique list of elements.
A17: 3) Records or Observations are stored in rows
A18: 4) No empty field names, no completely empty rows or columns, try not to have empty cells in record
A19: 5) For Excel, you must have empty cells or Excel Column Headers (letters) or Excel Row Headers (numbers) all round the data set.
A20: Raw data is stored in a Proper Data Set so that the raw data is easily analyzed
A21: Scales of Measurement for Raw Data
A22: Scales of Measurement = the amount of information that is contained in the data and what sort of summarization, math and statistical techniques we can use.
A23: Nominal
A24: Names or labels or categories without rank
A25: Nothing intrinsic in category except a name
A26: Examples: Eye Color, County Name, Phone Type, Cola Name, Car Brand, or Car Brand where Toyota = 1, Honda = 2, etc.
A27: Using numbers is only for convenience of data storage, like in a database.
A28: Information contained in data = Name.
A29: No math operations on Nominal data
A30: Count only. Once we count we can then calculate the proportion that each got as compared to the total count.
A31: Can't use Bell Curve
A32: Ordinal
A33: Names or labels or categories with an order (ordinal) or rank
A34: Categories are ranked and have an order, but you don't know the distance between each ranking or ordered item
A35: Examples:
A36: Below Par, Par, Above Par
A37: Rating of 1, 2, 3, 4
A38: Rating of: *, **, ***, ****
A39: Rank in a class, a race or in voting: 1, 2, 3, 4
A40: In a race with rankings: You can say who got 1st, 2nd, 3rd, but you don't know by how much
A41: Jan, Feb, Mar…
A42: Information contained in data = Name and Rank, but not distance between each rank
A43: Usually you are counting
A44: Occasionally if the category is a number other calculations like average are okay
A45: Like for an average of rating your professor: 1, 2, 3, 4, 5
A46: Can't use Bell Curve
A47: Interval
A48: Data is numeric.
A49: Data are ranked and the distance between each rank is fixed.
A50: Usually a scale like temperature or IQ or timed racing results.
A51: If zero exists, it is just a point on the scale.
A52: Zero does not mean that nothing exists.
A53: Examples:
A54: Fahrenheit and Celsius temperature scales
A55: Zero is just a point on the scale, not the absence of molecular kinetic energy
A56: 0 just a point, 80 degree not twice as big as 40 degree.
A57: IQ Test or SAT score
A58: 0 does not mean total absences of smartness
A59: Information contained in data = Name and Rank, Distance between rankings
A60: Arithmetic like adding, subtraction, averages okay, but ratio is meaningless
A61: Subtracting two temperatures like 80-40 = 40 is okay
A62: 80/40 to say that 80 is twice as big as 40 is not okay
A63: You can use the Bell Curve.
A64: Ratio
A65: Data:
A66: Ranked
A67: The distance between each rank is fixed
A68: Zero means that nothing exists
A69: You can divide two numbers.
A70: Ratio (Ratio) means you can divided.
A71: Examples:
A72: Test in Stats Class 0 - 100 (0 means you got none correct)
A73: Kelvin temperature (0 means the absence of molecular movement and thus the absence of mass E = mc2)
A74: Total Score In Class, 642, 598, 437
A75: Voting Totals: 10786, 8801, 2022
A76: Dollars (Money), Weight, Height, Length
A77: Information contained in data: Name and Rank, Distance, and more (like % change)
A78: You can count and use any math operations and use the Bell Curve.
A79: You can divide two numbers and say something like one is double the other (because zero means nothing exists).
A80: Broad Classifications for Types of Data:
A81: Categorical Variables
A82: Data that is grouped by Categories
A83: Categories, labels or names are used to identify an attribute or characteristic of an element.
A84: Synonym for Categorical is Qualitative.
A85: Categorical Variables can be Nominal or Ordinal.
A86: Can be Non-numeric or numeric.
A87: Most of the time you are limited to counting.
A88: Quantitative Variables
A89: Numbers / Numeric
A90: A number that tells us how much or how many.
A91: Quantitative Variables can be Interval or Ratio.
A92: Types of Quantitative Variables:
A93: Discrete:
A94: Answers the question How Many?
A95: Involves Counting
A96: There are gaps between numbers, like: 1, 2, 3 or 1.2, 1.3, 1.4
A97: Continuous:
A98: Answers the question How Much?
A99: Involves Measuring
A100: The measurement depends on the measurement instrument
A101: There are no gaps between numbers
A102: Note: Money is continuous (stocks, bonds, interest are often tracked with partial pennies).
A103: Cross-Sectional and Time Series Data:
A104: Cross-Sectional
A105: Data collected at the same or nearly the same point in time.
A106: Time Series Data
A107: Data collected over time
A108: Useful for seeing trends in the past that may help us to estimate what trends there may be in the near future
A109: Sources of Data:
A110: Internal to an organization:
A111: Sales Records
A112: Employee records
A113: Customer Records
A114: Web site Records
A115: External Data Sources:
A116: Internet:
A117: http://finance.yahoo.com/market-overview/ (stock)
A118: http://bigcharts.com/historical/default.asp (stock)
A119: Facebook
A120: Twitter
A121: YouTube
A122: Government:
A123: http://nces.ed.gov/ (education)
A124: http://www.bea.gov/ (economic)
A125: http://www.ncdc.noaa.gov/ (weather)
A126: http://www.census.gov/data.html (census)
A127: http://www.bls.gov/data/ (labor)
A128: Industry Associations:
A129: National Association of Home Builders
A130: National Automobile Dealers Association
A131: National Association of Manufacturers
A132: Studies:
A133: Observational Study
A134: We simply observe what is happening
A135: We do not control any of the variables of interest
A136: Examples:
A137: Surveys
A138: Observing employees at work or customers in a store (how long they stay or how much they spend)
A139: Downloading stock data about Google or Yahoo.
A140: Experimental Study
A141: 1) Variable of interest is identified
A142: 2) One or more other variables are identified and controlled so that data can be obtained about how they influence the variable of interest
A143: Examples:
A144: Drug Studies to see if a drug may help a particular ailment
A145: Product Study to test a manufacturers claim
A146: Manufacturing study to test whether a new production method is faster
A147: Time and Costs of Useful Information
A148: Usually if cost of obtaining useful information from raw data is greater than benefits, don’t do it.
A149: Data Errors:
A150: Recoding Errors
A151: Respondent might misinterpret question
A152: Is value to big or too small to be reasonable?
A153: Is sample of data skewed?
A154: Is sample taken from a small subset of the population rather than from the whole population?
A155: Does sample represent the population?
A156: Unethical Statistics
A157: Running multiple samples until you get the result you want.
A158: Unrepresentative Samples
A159: Creating misleading charts

Sheet SofM
B1: Categorical | F1: Quantitative
B2: Nominal | D2: Ordinal | F2: Interval | H2: Ratio
A3: Student | B3: Phone | C3: Eye Color | D3: Rank In Class (1-38) | E3: Rating of Teacher (Bad, Okay, Good, Excellent) | F3: Body Temperature | G3: SAT Score (600 to 2400) | H3: Score On Final (0 - 100) | I3: Money In Bank
A4: Joe | B4: iPhone | C4: Green | D4: 12 | E4: Okay | F4: 98.2 | G4: 1509 | H4: 81 | I4: 6232
A5: Chin | B5: Samsung | C5: Brown | D5: 10 | E5: Good | F5: 99 | G5: 1777 | H5: 87 | I5: 5553
A6: Sioux | B6: iPhone | C6: Hazel | D6: 16 | E6: Okay | F6: 98.7 | G6: 1681 | H6: 84 | I6: 3131
B8: Categorical | F8: Quantitative
B9: Nominal: | D9: Ordinal: | F9: Interval: | H9: Ratio:
B10: Category | D10: Category | F10: Rank | H10: Rank
B11: No Rank | D11: Rank | F11: Know Distance | H11: Know Distance
D12: Don't Know Distance | F12: Between Each Rank | H12: Between Each Rank
D13: Between Each Rank | F13: Zero just a Point On Scale | H13: Zero = Nothing Exists
F14: Ratio Not Okay | H14: Ratio Okay

Sheet SofM-2
A1: Nominal | B1: When a variable (field) uses a category, label, or name to identify an attribute or characteristic of an element. There is no order or rank to the categories. You usually count how many are in each category. If you use a number as a category label, you cannot do arithmetic (+, -, *. /, ^) on it - you can only count. | H1: Ordinal | I1: When a variable (field) uses a category, label, or name to identify an attribute or characteristic of an element. There is an order or rank to the categories, but you do not know the distance between each ranked category. You usually count how many are in each category. In some cases when a number is used to represent the category, you can calculate an average. | O1: Interval | P1: The numeric data is ranked or ordered and has a fixed unit between each rank. Interval data is usually a scale such as temperature or some tests like IQ or SAT. If zero is in the scale, it is just a point on the scale and zero does not indicate that nothing exists. You can perform subtraction to see the difference between two numbers and you can calculate an average, but the ratio of two numbers (division) not meaningful (like to calculate % change). | X1: Ratio | Y1: The numeric data is ranked or ordered and has a fixed unit between each rank and zero means that nothing exists and division (ratio) is okay (like to calculate % change). | AJ1: interval | AM1: interval
A2: Categorical Data (Variable). Categories, labels or names are used to identify an attribute or characteristic of an element. Nominal or Ordinal. Non-numeric or numeric. Most of the time you are limited to counting. | O2: Quantitative Data (Variable). A number that tells us how much or how many. | AJ2: 300 | AM2: 1000
A4: Student | B4: Phone Type | C4: Phone Type No. | H4: Student | I4: Rate Instructor | J4: Rate Instructor | L4: Rate Instructor | M4: Frequency (Count) | O4: Fahrenheit | P4: Celsius | R4: Student | S4: SAT scores | U4: Category | V4: Frequency (Count) | X4: Kelvin | Z4: Customer Name | AA4: Amount in Bank | AC4: Category | AD4: Frequency (Count) | AI4: Lower | AJ4: Upper | AL4: Lower | AM4: Upper
A5: Student 01 | B5: Motorola | C5: =VLOOKUP(B5,{"iPhone",1;"Motorola",2;"Nokia",3;"Samsung",4;"Sony Erickson",5;"Sprint",6},2,0) -> 2 | H5: Student 01 | I5: OK | J5: =VLOOKUP(I5,{"Excellent",4;"Poor",1;"Good",3;"OK",2},2,0) -> 2 | L5: Excellent | O5: 220 | P5: =CONVERT(O5,"F","C") -> 104.4444444 | R5: Student 1 | S5: 1501 | U5: =AI5&" up tp "&AJ5 -> 600 up tp 900 | V5: =COUNTIFS($S$5:$S$17,">="&AI5,$S$5:$S$17,"<"&AJ5) -> 0 | X5: =CONVERT(O5,"F","K") -> 377.5944444 | Z5: Joe | AA5: 0 | AC5: =AL5&" up tp "&AM5 -> 0 up tp 1000 | AD5: =COUNTIFS($AA$5:$AA$14,">="&AL5,$AA$5:$AA$14,"<"&AM5) -> 5 | AI5: 600 | AJ5: =AI5+$AJ$2 -> 900 | AL5: 0 | AM5: =AL5+$AM$2 -> 1000
A6: Student 02 | B6: Motorola | C6: =VLOOKUP(B6,{"iPhone",1;"Motorola",2;"Nokia",3;"Samsung",4;"Sony Erickson",5;"Sprint",6},2,0) -> 2 | H6: Student 02 | I6: Poor | J6: =VLOOKUP(I6,{"Excellent",4;"Poor",1;"Good",3;"OK",2},2,0) -> 1 | L6: Good | O6: 219 | P6: 103.8888889 | R6: Student 2 | S6: 1499 | U6: 900 up tp 1200 | V6: 6 | X6: =CONVERT(O6,"F","K") -> 377.0388889 | Z6: Sioux | AA6: 500 | AC6: =AL6&" up tp "&AM6 -> 1000 up tp 2000 | AD6: =COUNTIFS($AA$5:$AA$14,">="&AL6,$AA$5:$AA$14,"<"&AM6) -> 1 | AI6: =AJ5 -> 900 | AJ6: 1200 | AL6: =AM5 -> 1000 | AM6: =AL6+$AM$2 -> 2000
A7: Student 03 | B7: Samsung | C7: =VLOOKUP(B7,{"iPhone",1;"Motorola",2;"Nokia",3;"Samsung",4;"Sony Erickson",5;"Sprint",6},2,0) -> 4 | H7: Student 03 | I7: Good | J7: =VLOOKUP(I7,{"Excellent",4;"Poor",1;"Good",3;"OK",2},2,0) -> 3 | L7: OK | O7: 218 | P7: 103.3333333 | R7: Student 3 | S7: 1018 | U7: 1200 up tp 1500 | V7: 1 | X7: 376.4833333 | Z7: Dean | AA7: 4589.7 | AC7: 2000 up tp 3000 | AD7: 1 | AI7: =AJ6 -> 1200 | AJ7: 1500 | AL7: =AM6 -> 2000 | AM7: =AL7+$AM$2 -> 3000
A8: Student 04 | B8: Nokia | C8: =VLOOKUP(B8,{"iPhone",1;"Motorola",2;"Nokia",3;"Samsung",4;"Sony Erickson",5;"Sprint",6},2,0) -> 3 | H8: Student 04 | I8: Good | J8: =VLOOKUP(I8,{"Excellent",4;"Poor",1;"Good",3;"OK",2},2,0) -> 3 | L8: Poor | O8: 217 | P8: 102.7777778 | R8: Student 4 | S8: 1718 | U8: 1500 up tp 1800 | V8: 3 | X8: 375.9277778 | Z8: Joe | AA8: 25.25 | AC8: 3000 up tp 4000 | AD8: 0 | AI8: 1500 | AJ8: 1800 | AL8: 3000 | AM8: 4000
A9: Student 05 | B9: Motorola | C9: =VLOOKUP(B9,{"iPhone",1;"Motorola",2;"Nokia",3;"Samsung",4;"Sony Erickson",5;"Sprint",6},2,0) -> 2 | H9: Student 05 | I9: OK | J9: =VLOOKUP(I9,{"Excellent",4;"Poor",1;"Good",3;"OK",2},2,0) -> 2 | O9: 216 | P9: 102.2222222 | R9: Student 5 | S9: 1953 | U9: 1800 up tp 2100 | V9: 2 | X9: 375.3722222 | Z9: Tina | AA9: 158 | AC9: 4000 up tp 5000 | AD9: 2 | AI9: 1800 | AJ9: 2100 | AL9: 4000 | AM9: 5000
A10: Student 06 | B10: Nokia | C10: =VLOOKUP(B10,{"iPhone",1;"Motorola",2;"Nokia",3;"Samsung",4;"Sony Erickson",5;"Sprint",6},2,0) -> 3 | H10: Student 06 | I10: Poor | J10: =VLOOKUP(I10,{"Excellent",4;"Poor",1;"Good",3;"OK",2},2,0) -> 1 | L10: Rate Instructor | M10: Frequency (Count) | O10: 215 | P10: 101.6666667 | R10: Student 6 | S10: 904 | U10: 2100 up tp 2400 | V10: 1 | X10: 374.8166667 | Z10: Amy | AA10: 4525.5 | AC10: 5000 up tp 6000 | AD10: 1 | AI10: 2100 | AJ10: 2400 | AL10: 5000 | AM10: 6000
A11: Student 07 | B11: Sprint | C11: =VLOOKUP(B11,{"iPhone",1;"Motorola",2;"Nokia",3;"Samsung",4;"Sony Erickson",5;"Sprint",6},2,0) -> 6 | H11: Student 07 | I11: Poor | J11: =VLOOKUP(I11,{"Excellent",4;"Poor",1;"Good",3;"OK",2},2,0) -> 1 | L11: 4 | O11: 214 | P11: 101.1111111 | R11: Student 7 | S11: 1697 | X11: 374.2611111 | Z11: Ming | AA11: 526.5
A12: Student 08 | B12: iPhone | C12: =VLOOKUP(B12,{"iPhone",1;"Motorola",2;"Nokia",3;"Samsung",4;"Sony Erickson",5;"Sprint",6},2,0) -> 1 | H12: Student 08 | I12: OK | J12: =VLOOKUP(I12,{"Excellent",4;"Poor",1;"Good",3;"OK",2},2,0) -> 2 | L12: 3 | O12: 213 | P12: 100.5555556 | R12: Student 8 | S12: 959 | U12: Average | V12: =AVERAGE(S5:S17) -> 1415.461538 | X12: 373.7055556 | Z12: Pham | AA12: 2258.2 | AC12: Average | AD12: =AVERAGE(AA5:AA14) -> 1931.05
A13: Student 09 | B13: Motorola | C13: =VLOOKUP(B13,{"iPhone",1;"Motorola",2;"Nokia",3;"Samsung",4;"Sony Erickson",5;"Sprint",6},2,0) -> 2 | H13: Student 09 | I13: Poor | J13: =VLOOKUP(I13,{"Excellent",4;"Poor",1;"Good",3;"OK",2},2,0) -> 1 | L13: 2 | O13: 212 | P13: 100 | R13: Student 9 | S13: 960 | X13: 373.15 | Z13: Phil | AA13: =AA12/2 -> 1129.1
A14: Student 10 | B14: iPhone | C14: =VLOOKUP(B14,{"iPhone",1;"Motorola",2;"Nokia",3;"Samsung",4;"Sony Erickson",5;"Sprint",6},2,0) -> 1 | H14: Student 10 | I14: Poor | J14: =VLOOKUP(I14,{"Excellent",4;"Poor",1;"Good",3;"OK",2},2,0) -> 1 | L14: 1 | O14: 211 | P14: 99.44444444 | R14: Student 10 | S14: 1808 | U14: Student 6 | V14: =VLOOKUP(U14,$R$5:$S$17,2,0) -> 904 | X14: 372.5944444 | Z14: Shelia | AA14: 5598.25 | AC14: =Z13 -> Phil | AD14: =VLOOKUP(AC14,$Z$5:$AA$14,2,0) -> 1129.1
A15: Student 11 | B15: Samsung | C15: =VLOOKUP(B15,{"iPhone",1;"Motorola",2;"Nokia",3;"Samsung",4;"Sony Erickson",5;"Sprint",6},2,0) -> 4 | H15: Student 11 | I15: Poor | J15: =VLOOKUP(I15,{"Excellent",4;"Poor",1;"Good",3;"OK",2},2,0) -> 1 | O15: 210 | P15: 98.88888889 | R15: Student 11 | S15: 2183 | U15: Student 10 | V15: 1808 | X15: 372.0388889 | AC15: =Z12 -> Pham | AD15: =VLOOKUP(AC15,$Z$5:$AA$14,2,0) -> 2258.2
A16: Student 12 | B16: Motorola | C16: =VLOOKUP(B16,{"iPhone",1;"Motorola",2;"Nokia",3;"Samsung",4;"Sony Erickson",5;"Sprint",6},2,0) -> 2 | H16: Student 12 | I16: OK | J16: =VLOOKUP(I16,{"Excellent",4;"Poor",1;"Good",3;"OK",2},2,0) -> 2 | L16: Average | O16: 209 | P16: 98.33333333 | R16: Student 12 | S16: 1124 | U16: Ratio | X16: 371.4833333 | AC16: Ratio
A17: Student 13 | B17: Samsung | C17: =VLOOKUP(B17,{"iPhone",1;"Motorola",2;"Nokia",3;"Samsung",4;"Sony Erickson",5;"Sprint",6},2,0) -> 4 | H17: Student 13 | I17: Excellent | J17: =VLOOKUP(I17,{"Excellent",4;"Poor",1;"Good",3;"OK",2},2,0) -> 4 | O17: 208 | P17: 97.77777778 | R17: Student 13 | S17: 1077 | U17: % Change | X17: 370.9277778 | AC17: % Change
A18: Student 14 | B18: iPhone | C18: =VLOOKUP(B18,{"iPhone",1;"Motorola",2;"Nokia",3;"Samsung",4;"Sony Erickson",5;"Sprint",6},2,0) -> 1 | H18: Student 14 | I18: Excellent | J18: =VLOOKUP(I18,{"Excellent",4;"Poor",1;"Good",3;"OK",2},2,0) -> 4 | O18: 207 | P18: 97.22222222 | U18: =V15&"/"&V14&" does not tell us that "&U15&" did twice as good as "&U14&"." -> 1808/904 does not tell us that Student 10 did twice as good as Student 6. | X18: 370.3722222 | AC18: =AD15&"/"&AD14&" tells us that "&AC15&" has twice as much as "&AC14&"." -> 2258.2/1129.1 tells us that Pham has twice as much as Phil.
A19: Student 15 | B19: Nokia | C19: =VLOOKUP(B19,{"iPhone",1;"Motorola",2;"Nokia",3;"Samsung",4;"Sony Erickson",5;"Sprint",6},2,0) -> 3 | H19: Student 15 | I19: Poor | J19: =VLOOKUP(I19,{"Excellent",4;"Poor",1;"Good",3;"OK",2},2,0) -> 1 | O19: 206 | P19: 96.66666667 | X19: 369.8166667
A20: Student 16 | B20: Nokia | C20: =VLOOKUP(B20,{"iPhone",1;"Motorola",2;"Nokia",3;"Samsung",4;"Sony Erickson",5;"Sprint",6},2,0) -> 3 | H20: Student 16 | I20: Poor | J20: =VLOOKUP(I20,{"Excellent",4;"Poor",1;"Good",3;"OK",2},2,0) -> 1 | O20: 205 | P20: 96.11111111 | X20: 369.2611111
A21: Student 17 | B21: Sprint | C21: =VLOOKUP(B21,{"iPhone",1;"Motorola",2;"Nokia",3;"Samsung",4;"Sony Erickson",5;"Sprint",6},2,0) -> 6 | H21: Student 17 | I21: Good | J21: =VLOOKUP(I21,{"Excellent",4;"Poor",1;"Good",3;"OK",2},2,0) -> 3 | O21: 204 | P21: 95.55555556 | U21: Ratio meaningless because zero does not mean that nothing exists. | X21: 368.7055556 | AC21: Ratio meaningful because zero means that nothing exists.
A22: Student 18 | B22: Sony Erickson | C22: =VLOOKUP(B22,{"iPhone",1;"Motorola",2;"Nokia",3;"Samsung",4;"Sony Erickson",5;"Sprint",6},2,0) -> 5 | H22: Student 18 | I22: Poor | J22: =VLOOKUP(I22,{"Excellent",4;"Poor",1;"Good",3;"OK",2},2,0) -> 1 | O22: 203 | P22: 95 | X22: 368.15
A23: Student 19 | B23: Nokia | C23: =VLOOKUP(B23,{"iPhone",1;"Motorola",2;"Nokia",3;"Samsung",4;"Sony Erickson",5;"Sprint",6},2,0) -> 3 | H23: Student 19 | I23: Excellent | J23: =VLOOKUP(I23,{"Excellent",4;"Poor",1;"Good",3;"OK",2},2,0) -> 4 | O23: 202 | P23: 94.44444444 | X23: 367.5944444
A24: Student 20 | B24: Nokia | C24: =VLOOKUP(B24,{"iPhone",1;"Motorola",2;"Nokia",3;"Samsung",4;"Sony Erickson",5;"Sprint",6},2,0) -> 3 | H24: Student 20 | I24: Poor | J24: =VLOOKUP(I24,{"Excellent",4;"Poor",1;"Good",3;"OK",2},2,0) -> 1 | O24: 201 | P24: 93.88888889 | X24: 367.0388889
A25: Student 21 | B25: iPhone | C25: =VLOOKUP(B25,{"iPhone",1;"Motorola",2;"Nokia",3;"Samsung",4;"Sony Erickson",5;"Sprint",6},2,0) -> 1 | H25: Student 21 | I25: OK | J25: =VLOOKUP(I25,{"Excellent",4;"Poor",1;"Good",3;"OK",2},2,0) -> 2 | O25: 200 | P25: 93.33333333 | X25: 366.4833333
A26: Student 22 | B26: iPhone | C26: =VLOOKUP(B26,{"iPhone",1;"Motorola",2;"Nokia",3;"Samsung",4;"Sony Erickson",5;"Sprint",6},2,0) -> 1 | H26: Student 22 | I26: OK | J26: =VLOOKUP(I26,{"Excellent",4;"Poor",1;"Good",3;"OK",2},2,0) -> 2 | O26: 199 | P26: 92.77777778 | X26: 365.9277778
A27: Student 23 | B27: Nokia | C27: =VLOOKUP(B27,{"iPhone",1;"Motorola",2;"Nokia",3;"Samsung",4;"Sony Erickson",5;"Sprint",6},2,0) -> 3 | H27: Student 23 | I27: OK | J27: =VLOOKUP(I27,{"Excellent",4;"Poor",1;"Good",3;"OK",2},2,0) -> 2 | O27: 198 | P27: 92.22222222 | X27: 365.3722222
A28: Student 24 | B28: Samsung | C28: =VLOOKUP(B28,{"iPhone",1;"Motorola",2;"Nokia",3;"Samsung",4;"Sony Erickson",5;"Sprint",6},2,0) -> 4 | H28: Student 24 | I28: Excellent | J28: =VLOOKUP(I28,{"Excellent",4;"Poor",1;"Good",3;"OK",2},2,0) -> 4 | O28: 197 | P28: 91.66666667 | X28: 364.8166667
A29: Student 25 | B29: iPhone | C29: =VLOOKUP(B29,{"iPhone",1;"Motorola",2;"Nokia",3;"Samsung",4;"Sony Erickson",5;"Sprint",6},2,0) -> 1 | H29: Student 25 | I29: OK | J29: =VLOOKUP(I29,{"Excellent",4;"Poor",1;"Good",3;"OK",2},2,0) -> 2 | O29: 196 | P29: 91.11111111 | X29: 364.2611111
A30: Student 26 | B30: iPhone | C30: =VLOOKUP(B30,{"iPhone",1;"Motorola",2;"Nokia",3;"Samsung",4;"Sony Erickson",5;"Sprint",6},2,0) -> 1 | H30: Student 26 | I30: OK | J30: =VLOOKUP(I30,{"Excellent",4;"Poor",1;"Good",3;"OK",2},2,0) -> 2 | O30: 195 | P30: 90.55555556 | X30: 363.7055556
A31: Student 27 | B31: iPhone | C31: =VLOOKUP(B31,{"iPhone",1;"Motorola",2;"Nokia",3;"Samsung",4;"Sony Erickson",5;"Sprint",6},2,0) -> 1 | H31: Student 27 | I31: Poor | J31: =VLOOKUP(I31,{"Excellent",4;"Poor",1;"Good",3;"OK",2},2,0) -> 1 | O31: 194 | P31: 90 | X31: 363.15
A32: Student 28 | B32: Sprint | C32: =VLOOKUP(B32,{"iPhone",1;"Motorola",2;"Nokia",3;"Samsung",4;"Sony Erickson",5;"Sprint",6},2,0) -> 6 | H32: Student 28 | I32: OK | J32: =VLOOKUP(I32,{"Excellent",4;"Poor",1;"Good",3;"OK",2},2,0) -> 2 | O32: 193 | P32: 89.44444444 | X32: 362.5944444
A33: Student 29 | B33: iPhone | C33: =VLOOKUP(B33,{"iPhone",1;"Motorola",2;"Nokia",3;"Samsung",4;"Sony Erickson",5;"Sprint",6},2,0) -> 1 | H33: Student 29 | I33: Good | J33: =VLOOKUP(I33,{"Excellent",4;"Poor",1;"Good",3;"OK",2},2,0) -> 3 | O33: 192 | P33: 88.88888889 | X33: 362.0388889
A34: Student 30 | B34: Sony Erickson | C34: =VLOOKUP(B34,{"iPhone",1;"Motorola",2;"Nokia",3;"Samsung",4;"Sony Erickson",5;"Sprint",6},2,0) -> 5 | H34: Student 30 | I34: Excellent | J34: =VLOOKUP(I34,{"Excellent",4;"Poor",1;"Good",3;"OK",2},2,0) -> 4 | O34: 191 | P34: 88.33333333 | X34: 361.4833333
A35: Student 31 | B35: Samsung | C35: =VLOOKUP(B35,{"iPhone",1;"Motorola",2;"Nokia",3;"Samsung",4;"Sony Erickson",5;"Sprint",6},2,0) -> 4 | H35: Student 31 | I35: Excellent | J35: =VLOOKUP(I35,{"Excellent",4;"Poor",1;"Good",3;"OK",2},2,0) -> 4 | O35: 190 | P35: 87.77777778 | X35: 360.9277778
A36: Student 32 | B36: Nokia | C36: =VLOOKUP(B36,{"iPhone",1;"Motorola",2;"Nokia",3;"Samsung",4;"Sony Erickson",5;"Sprint",6},2,0) -> 3 | H36: Student 32 | I36: OK | J36: =VLOOKUP(I36,{"Excellent",4;"Poor",1;"Good",3;"OK",2},2,0) -> 2 | O36: 189 | P36: 87.22222222 | X36: 360.3722222
A37: Student 33 | B37: iPhone | C37: =VLOOKUP(B37,{"iPhone",1;"Motorola",2;"Nokia",3;"Samsung",4;"Sony Erickson",5;"Sprint",6},2,0) -> 1 | H37: Student 33 | I37: Good | J37: =VLOOKUP(I37,{"Excellent",4;"Poor",1;"Good",3;"OK",2},2,0) -> 3 | O37: 188 | P37: 86.66666667 | X37: 359.8166667
A38: Student 34 | B38: Nokia | C38: =VLOOKUP(B38,{"iPhone",1;"Motorola",2;"Nokia",3;"Samsung",4;"Sony Erickson",5;"Sprint",6},2,0) -> 3 | H38: Student 34 | I38: Poor | J38: =VLOOKUP(I38,{"Excellent",4;"Poor",1;"Good",3;"OK",2},2,0) -> 1 | O38: 187 | P38: 86.11111111 | X38: 359.2611111
A39: Student 35 | B39: iPhone | C39: =VLOOKUP(B39,{"iPhone",1;"Motorola",2;"Nokia",3;"Samsung",4;"Sony Erickson",5;"Sprint",6},2,0) -> 1 | H39: Student 35 | I39: Poor | J39: =VLOOKUP(I39,{"Excellent",4;"Poor",1;"Good",3;"OK",2},2,0) -> 1 | O39: 186 | P39: 85.55555556 | X39: 358.7055556
A40: Student 36 | B40: Samsung | C40: =VLOOKUP(B40,{"iPhone",1;"Motorola",2;"Nokia",3;"Samsung",4;"Sony Erickson",5;"Sprint",6},2,0) -> 4 | H40: Student 36 | I40: Poor | J40: =VLOOKUP(I40,{"Excellent",4;"Poor",1;"Good",3;"OK",2},2,0) -> 1 | O40: 185 | P40: 85 | X40: 358.15
A41: Student 37 | B41: Sony Erickson | C41: =VLOOKUP(B41,{"iPhone",1;"Motorola",2;"Nokia",3;"Samsung",4;"Sony Erickson",5;"Sprint",6},2,0) -> 5 | H41: Student 37 | I41: Excellent | J41: =VLOOKUP(I41,{"Excellent",4;"Poor",1;"Good",3;"OK",2},2,0) -> 4 | O41: 184 | P41: 84.44444444 | X41: 357.5944444
A42: Student 38 | B42: iPhone | C42: =VLOOKUP(B42,{"iPhone",1;"Motorola",2;"Nokia",3;"Samsung",4;"Sony Erickson",5;"Sprint",6},2,0) -> 1 | H42: Student 38 | I42: Poor | J42: =VLOOKUP(I42,{"Excellent",4;"Poor",1;"Good",3;"OK",2},2,0) -> 1 | O42: 183 | P42: 83.88888889 | X42: 357.0388889
A43: Student 39 | B43: Sony Erickson | C43: =VLOOKUP(B43,{"iPhone",1;"Motorola",2;"Nokia",3;"Samsung",4;"Sony Erickson",5;"Sprint",6},2,0) -> 5 | H43: Student 39 | I43: OK | J43: =VLOOKUP(I43,{"Excellent",4;"Poor",1;"Good",3;"OK",2},2,0) -> 2 | O43: 182 | P43: 83.33333333 | X43: 356.4833333
A44: Student 40 | B44: Nokia | C44: =VLOOKUP(B44,{"iPhone",1;"Motorola",2;"Nokia",3;"Samsung",4;"Sony Erickson",5;"Sprint",6},2,0) -> 3 | H44: Student 40 | I44: Poor | J44: =VLOOKUP(I44,{"Excellent",4;"Poor",1;"Good",3;"OK",2},2,0) -> 1 | O44: 181 | P44: 82.77777778 | X44: 355.9277778
A45: Student 41 | B45: Nokia | C45: =VLOOKUP(B45,{"iPhone",1;"Motorola",2;"Nokia",3;"Samsung",4;"Sony Erickson",5;"Sprint",6},2,0) -> 3 | H45: Student 41 | I45: Excellent | J45: =VLOOKUP(I45,{"Excellent",4;"Poor",1;"Good",3;"OK",2},2,0) -> 4 | O45: 180 | P45: 82.22222222 | X45: 355.3722222
A46: Student 42 | B46: Sony Erickson | C46: =VLOOKUP(B46,{"iPhone",1;"Motorola",2;"Nokia",3;"Samsung",4;"Sony Erickson",5;"Sprint",6},2,0) -> 5 | H46: Student 42 | I46: OK | J46: =VLOOKUP(I46,{"Excellent",4;"Poor",1;"Good",3;"OK",2},2,0) -> 2 | O46: 179 | P46: 81.66666667 | X46: 354.8166667
A47: Student 43 | B47: Sprint | C47: =VLOOKUP(B47,{"iPhone",1;"Motorola",2;"Nokia",3;"Samsung",4;"Sony Erickson",5;"Sprint",6},2,0) -> 6 | H47: Student 43 | I47: OK | J47: =VLOOKUP(I47,{"Excellent",4;"Poor",1;"Good",3;"OK",2},2,0) -> 2 | O47: 178 | P47: 81.11111111 | X47: 354.2611111
A48: Student 44 | B48: Nokia | C48: =VLOOKUP(B48,{"iPhone",1;"Motorola",2;"Nokia",3;"Samsung",4;"Sony Erickson",5;"Sprint",6},2,0) -> 3 | H48: Student 44 | I48: Poor | J48: =VLOOKUP(I48,{"Excellent",4;"Poor",1;"Good",3;"OK",2},2,0) -> 1 | O48: 177 | P48: 80.55555556 | X48: 353.7055556
A49: Student 45 | B49: Nokia | C49: =VLOOKUP(B49,{"iPhone",1;"Motorola",2;"Nokia",3;"Samsung",4;"Sony Erickson",5;"Sprint",6},2,0) -> 3 | H49: Student 45 | I49: Poor | J49: =VLOOKUP(I49,{"Excellent",4;"Poor",1;"Good",3;"OK",2},2,0) -> 1 | O49: 176 | P49: 80 | X49: 353.15
A50: Student 46 | B50: Motorola | C50: =VLOOKUP(B50,{"iPhone",1;"Motorola",2;"Nokia",3;"Samsung",4;"Sony Erickson",5;"Sprint",6},2,0) -> 2 | H50: Student 46 | I50: Poor | J50: =VLOOKUP(I50,{"Excellent",4;"Poor",1;"Good",3;"OK",2},2,0) -> 1 | O50: 175 | P50: 79.44444444 | X50: 352.5944444
A51: Student 47 | B51: Samsung | C51: =VLOOKUP(B51,{"iPhone",1;"Motorola",2;"Nokia",3;"Samsung",4;"Sony Erickson",5;"Sprint",6},2,0) -> 4 | H51: Student 47 | I51: OK | J51: =VLOOKUP(I51,{"Excellent",4;"Poor",1;"Good",3;"OK",2},2,0) -> 2 | O51: 174 | P51: 78.88888889 | X51: 352.0388889
A52: Student 48 | B52: iPhone | C52: =VLOOKUP(B52,{"iPhone",1;"Motorola",2;"Nokia",3;"Samsung",4;"Sony Erickson",5;"Sprint",6},2,0) -> 1 | H52: Student 48 | I52: Good | J52: =VLOOKUP(I52,{"Excellent",4;"Poor",1;"Good",3;"OK",2},2,0) -> 3 | O52: 173 | P52: 78.33333333 | X52: 351.4833333
A53: Student 49 | B53: Nokia | C53: =VLOOKUP(B53,{"iPhone",1;"Motorola",2;"Nokia",3;"Samsung",4;"Sony Erickson",5;"Sprint",6},2,0) -> 3 | H53: Student 49 | I53: Good | J53: =VLOOKUP(I53,{"Excellent",4;"Poor",1;"Good",3;"OK",2},2,0) -> 3 | O53: 172 | P53: 77.77777778 | X53: 350.9277778
A54: Student 50 | B54: Nokia | C54: =VLOOKUP(B54,{"iPhone",1;"Motorola",2;"Nokia",3;"Samsung",4;"Sony Erickson",5;"Sprint",6},2,0) -> 3 | H54: Student 50 | I54: OK | J54: =VLOOKUP(I54,{"Excellent",4;"Poor",1;"Good",3;"OK",2},2,0) -> 2 | O54: 171 | P54: 77.22222222 | X54: 350.3722222
A55: Student 51 | B55: Sprint | C55: =VLOOKUP(B55,{"iPhone",1;"Motorola",2;"Nokia",3;"Samsung",4;"Sony Erickson",5;"Sprint",6},2,0) -> 6 | H55: Student 51 | I55: Excellent | J55: =VLOOKUP(I55,{"Excellent",4;"Poor",1;"Good",3;"OK",2},2,0) -> 4 | O55: 170 | P55: 76.66666667 | X55: 349.8166667
A56: Student 52 | B56: Nokia | C56: =VLOOKUP(B56,{"iPhone",1;"Motorola",2;"Nokia",3;"Samsung",4;"Sony Erickson",5;"Sprint",6},2,0) -> 3 | H56: Student 52 | I56: Poor | J56: =VLOOKUP(I56,{"Excellent",4;"Poor",1;"Good",3;"OK",2},2,0) -> 1 | O56: 169 | P56: 76.11111111 | X56: 349.2611111
A57: Student 53 | B57: Nokia | C57: =VLOOKUP(B57,{"iPhone",1;"Motorola",2;"Nokia",3;"Samsung",4;"Sony Erickson",5;"Sprint",6},2,0) -> 3 | H57: Student 53 | I57: Excellent | J57: =VLOOKUP(I57,{"Excellent",4;"Poor",1;"Good",3;"OK",2},2,0) -> 4 | O57: 168 | P57: 75.55555556 | X57: 348.7055556
A58: Student 54 | B58: Sprint | C58: =VLOOKUP(B58,{"iPhone",1;"Motorola",2;"Nokia",3;"Samsung",4;"Sony Erickson",5;"Sprint",6},2,0) -> 6 | H58: Student 54 | I58: Good | J58: =VLOOKUP(I58,{"Excellent",4;"Poor",1;"Good",3;"OK",2},2,0) -> 3 | O58: 167 | P58: 75 | X58: 348.15
A59: Student 55 | B59: Sony Erickson | C59: =VLOOKUP(B59,{"iPhone",1;"Motorola",2;"Nokia",3;"Samsung",4;"Sony Erickson",5;"Sprint",6},2,0) -> 5 | H59: Student 55 | I59: Poor | J59: =VLOOKUP(I59,{"Excellent",4;"Poor",1;"Good",3;"OK",2},2,0) -> 1 | O59: 166 | P59: 74.44444444 | X59: 347.5944444
A60: Student 56 | B60: Nokia | C60: =VLOOKUP(B60,{"iPhone",1;"Motorola",2;"Nokia",3;"Samsung",4;"Sony Erickson",5;"Sprint",6},2,0) -> 3 | H60: Student 56 | I60: Poor | J60: =VLOOKUP(I60,{"Excellent",4;"Poor",1;"Good",3;"OK",2},2,0) -> 1 | O60: 165 | P60: 73.88888889 | X60: 347.0388889
A61: Student 57 | B61: iPhone | C61: =VLOOKUP(B61,{"iPhone",1;"Motorola",2;"Nokia",3;"Samsung",4;"Sony Erickson",5;"Sprint",6},2,0) -> 1 | H61: Student 57 | I61: Good | J61: =VLOOKUP(I61,{"Excellent",4;"Poor",1;"Good",3;"OK",2},2,0) -> 3 | O61: 164 | P61: 73.33333333 | X61: 346.4833333
A62: Student 58 | B62: Samsung | C62: =VLOOKUP(B62,{"iPhone",1;"Motorola",2;"Nokia",3;"Samsung",4;"Sony Erickson",5;"Sprint",6},2,0) -> 4 | H62: Student 58 | I62: Poor | J62: =VLOOKUP(I62,{"Excellent",4;"Poor",1;"Good",3;"OK",2},2,0) -> 1 | O62: 163 | P62: 72.77777778 | X62: 345.9277778
A63: Student 59 | B63: Motorola | C63: =VLOOKUP(B63,{"iPhone",1;"Motorola",2;"Nokia",3;"Samsung",4;"Sony Erickson",5;"Sprint",6},2,0) -> 2 | H63: Student 59 | I63: OK | J63: =VLOOKUP(I63,{"Excellent",4;"Poor",1;"Good",3;"OK",2},2,0) -> 2 | O63: 162 | P63: 72.22222222 | X63: 345.3722222
A64: Student 60 | B64: iPhone | C64: =VLOOKUP(B64,{"iPhone",1;"Motorola",2;"Nokia",3;"Samsung",4;"Sony Erickson",5;"Sprint",6},2,0) -> 1 | H64: Student 60 | I64: Poor | J64: =VLOOKUP(I64,{"Excellent",4;"Poor",1;"Good",3;"OK",2},2,0) -> 1 | O64: 161 | P64: 71.66666667 | X64: 344.8166667
A65: Student 61 | B65: Sony Erickson | C65: =VLOOKUP(B65,{"iPhone",1;"Motorola",2;"Nokia",3;"Samsung",4;"Sony Erickson",5;"Sprint",6},2,0) -> 5 | H65: Student 61 | I65: Poor | J65: =VLOOKUP(I65,{"Excellent",4;"Poor",1;"Good",3;"OK",2},2,0) -> 1 | O65: 160 | P65: 71.11111111 | X65: 344.2611111
A66: Student 62 | B66: Nokia | C66: =VLOOKUP(B66,{"iPhone",1;"Motorola",2;"Nokia",3;"Samsung",4;"Sony Erickson",5;"Sprint",6},2,0) -> 3 | H66: Student 62 | I66: OK | J66: =VLOOKUP(I66,{"Excellent",4;"Poor",1;"Good",3;"OK",2},2,0) -> 2 | O66: 159 | P66: 70.55555556 | X66: 343.7055556
A67: Student 63 | B67: Nokia | C67: =VLOOKUP(B67,{"iPhone",1;"Motorola",2;"Nokia",3;"Samsung",4;"Sony Erickson",5;"Sprint",6},2,0) -> 3 | H67: Student 63 | I67: Poor | J67: =VLOOKUP(I67,{"Excellent",4;"Poor",1;"Good",3;"OK",2},2,0) -> 1 | O67: 158 | P67: 70 | X67: 343.15
A68: Student 64 | B68: iPhone | C68: =VLOOKUP(B68,{"iPhone",1;"Motorola",2;"Nokia",3;"Samsung",4;"Sony Erickson",5;"Sprint",6},2,0) -> 1 | H68: Student 64 | I68: Poor | J68: =VLOOKUP(I68,{"Excellent",4;"Poor",1;"Good",3;"OK",2},2,0) -> 1 | O68: 157 | P68: 69.44444444 | X68: 342.5944444
A69: Student 65 | B69: iPhone | C69: =VLOOKUP(B69,{"iPhone",1;"Motorola",2;"Nokia",3;"Samsung",4;"Sony Erickson",5;"Sprint",6},2,0) -> 1 | H69: Student 65 | I69: Poor | J69: =VLOOKUP(I69,{"Excellent",4;"Poor",1;"Good",3;"OK",2},2,0) -> 1 | O69: 156 | P69: =CONVERT(O69,"F","C") -> 68.88888889 | X69: 342.0388889
A70: Student 66 | B70: iPhone | C70: =VLOOKUP(B70,{"iPhone",1;"Motorola",2;"Nokia",3;"Samsung",4;"Sony Erickson",5;"Sprint",6},2,0) -> 1 | H70: Student 66 | I70: Poor | J70: =VLOOKUP(I70,{"Excellent",4;"Poor",1;"Good",3;"OK",2},2,0) -> 1 | O70: 155 | P70: 68.33333333 | X70: =CONVERT(O70,"F","K") -> 341.4833333
A71: Student 67 | B71: iPhone | C71: =VLOOKUP(B71,{"iPhone",1;"Motorola",2;"Nokia",3;"Samsung",4;"Sony Erickson",5;"Sprint",6},2,0) -> 1 | H71: Student 67 | I71: OK | J71: =VLOOKUP(I71,{"Excellent",4;"Poor",1;"Good",3;"OK",2},2,0) -> 2 | O71: 154 | P71: 67.77777778 | X71: 340.9277778
A72: Student 68 | B72: Sprint | C72: =VLOOKUP(B72,{"iPhone",1;"Motorola",2;"Nokia",3;"Samsung",4;"Sony Erickson",5;"Sprint",6},2,0) -> 6 | H72: Student 68 | I72: Poor | J72: =VLOOKUP(I72,{"Excellent",4;"Poor",1;"Good",3;"OK",2},2,0) -> 1 | O72: 153 | P72: 67.22222222 | X72: 340.3722222
A73: Student 69 | B73: iPhone | C73: =VLOOKUP(B73,{"iPhone",1;"Motorola",2;"Nokia",3;"Samsung",4;"Sony Erickson",5;"Sprint",6},2,0) -> 1 | H73: Student 69 | I73: Poor | J73: =VLOOKUP(I73,{"Excellent",4;"Poor",1;"Good",3;"OK",2},2,0) -> 1 | O73: 152 | P73: 66.66666667 | X73: 339.8166667
A74: Student 70 | B74: Nokia | C74: =VLOOKUP(B74,{"iPhone",1;"Motorola",2;"Nokia",3;"Samsung",4;"Sony Erickson",5;"Sprint",6},2,0) -> 3 | H74: Student 70 | I74: Poor | J74: =VLOOKUP(I74,{"Excellent",4;"Poor",1;"Good",3;"OK",2},2,0) -> 1 | O74: 151 | P74: 66.11111111 | X74: 339.2611111
A75: Student 71 | B75: Motorola | C75: =VLOOKUP(B75,{"iPhone",1;"Motorola",2;"Nokia",3;"Samsung",4;"Sony Erickson",5;"Sprint",6},2,0) -> 2 | H75: Student 71 | I75: Poor | J75: =VLOOKUP(I75,{"Excellent",4;"Poor",1;"Good",3;"OK",2},2,0) -> 1 | O75: 150 | P75: 65.55555556 | X75: 338.7055556
A76: Student 72 | B76: Sprint | C76: =VLOOKUP(B76,{"iPhone",1;"Motorola",2;"Nokia",3;"Samsung",4;"Sony Erickson",5;"Sprint",6},2,0) -> 6 | H76: Student 72 | I76: Good | J76: =VLOOKUP(I76,{"Excellent",4;"Poor",1;"Good",3;"OK",2},2,0) -> 3 | O76: 149 | P76: 65 | X76: 338.15
A77: Student 73 | B77: iPhone | C77: =VLOOKUP(B77,{"iPhone",1;"Motorola",2;"Nokia",3;"Samsung",4;"Sony Erickson",5;"Sprint",6},2,0) -> 1 | H77: Student 73 | I77: OK | J77: =VLOOKUP(I77,{"Excellent",4;"Poor",1;"Good",3;"OK",2},2,0) -> 2 | O77: 148 | P77: 64.44444444 | X77: 337.5944444
A78: Student 74 | B78: Sony Erickson | C78: =VLOOKUP(B78,{"iPhone",1;"Motorola",2;"Nokia",3;"Samsung",4;"Sony Erickson",5;"Sprint",6},2,0) -> 5 | H78: Student 74 | I78: Excellent | J78: =VLOOKUP(I78,{"Excellent",4;"Poor",1;"Good",3;"OK",2},2,0) -> 4 | O78: 147 | P78: 63.88888889 | X78: 337.0388889
A79: Student 75 | B79: Nokia | C79: =VLOOKUP(B79,{"iPhone",1;"Motorola",2;"Nokia",3;"Samsung",4;"Sony Erickson",5;"Sprint",6},2,0) -> 3 | H79: Student 75 | I79: Poor | J79: =VLOOKUP(I79,{"Excellent",4;"Poor",1;"Good",3;"OK",2},2,0) -> 1 | O79: 146 | P79: 63.33333333 | X79: 336.4833333
A80: Student 76 | B80: Motorola | C80: =VLOOKUP(B80,{"iPhone",1;"Motorola",2;"Nokia",3;"Samsung",4;"Sony Erickson",5;"Sprint",6},2,0) -> 2 | H80: Student 76 | I80: Good | J80: =VLOOKUP(I80,{"Excellent",4;"Poor",1;"Good",3;"OK",2},2,0) -> 3 | O80: 145 | P80: 62.77777778 | X80: 335.9277778
A81: Student 77 | B81: iPhone | C81: =VLOOKUP(B81,{"iPhone",1;"Motorola",2;"Nokia",3;"Samsung",4;"Sony Erickson",5;"Sprint",6},2,0) -> 1 | H81: Student 77 | I81: Poor | J81: =VLOOKUP(I81,{"Excellent",4;"Poor",1;"Good",3;"OK",2},2,0) -> 1 | O81: 144 | P81: 62.22222222 | X81: 335.3722222
A82: Student 78 | B82: Motorola | C82: =VLOOKUP(B82,{"iPhone",1;"Motorola",2;"Nokia",3;"Samsung",4;"Sony Erickson",5;"Sprint",6},2,0) -> 2 | H82: Student 78 | I82: OK | J82: =VLOOKUP(I82,{"Excellent",4;"Poor",1;"Good",3;"OK",2},2,0) -> 2 | O82: 143 | P82: 61.66666667 | X82: 334.8166667
A83: Student 79 | B83: Nokia | C83: =VLOOKUP(B83,{"iPhone",1;"Motorola",2;"Nokia",3;"Samsung",4;"Sony Erickson",5;"Sprint",6},2,0) -> 3 | H83: Student 79 | I83: Good | J83: =VLOOKUP(I83,{"Excellent",4;"Poor",1;"Good",3;"OK",2},2,0) -> 3 | O83: 142 | P83: 61.11111111 | X83: 334.2611111
A84: Student 80 | B84: Motorola | C84: =VLOOKUP(B84,{"iPhone",1;"Motorola",2;"Nokia",3;"Samsung",4;"Sony Erickson",5;"Sprint",6},2,0) -> 2 | H84: Student 80 | I84: Poor | J84: =VLOOKUP(I84,{"Excellent",4;"Poor",1;"Good",3;"OK",2},2,0) -> 1 | O84: 141 | P84: 60.55555556 | X84: 333.7055556
A85: Student 81 | B85: Nokia | C85: =VLOOKUP(B85,{"iPhone",1;"Motorola",2;"Nokia",3;"Samsung",4;"Sony Erickson",5;"Sprint",6},2,0) -> 3 | H85: Student 81 | I85: Poor | J85: =VLOOKUP(I85,{"Excellent",4;"Poor",1;"Good",3;"OK",2},2,0) -> 1 | O85: 140 | P85: 60 | X85: 333.15
A86: Student 82 | B86: Sprint | C86: =VLOOKUP(B86,{"iPhone",1;"Motorola",2;"Nokia",3;"Samsung",4;"Sony Erickson",5;"Sprint",6},2,0) -> 6 | H86: Student 82 | I86: Poor | J86: =VLOOKUP(I86,{"Excellent",4;"Poor",1;"Good",3;"OK",2},2,0) -> 1 | O86: 139 | P86: 59.44444444 | X86: 332.5944444
A87: Student 83 | B87: Sprint | C87: =VLOOKUP(B87,{"iPhone",1;"Motorola",2;"Nokia",3;"Samsung",4;"Sony Erickson",5;"Sprint",6},2,0) -> 6 | H87: Student 83 | I87: Poor | J87: =VLOOKUP(I87,{"Excellent",4;"Poor",1;"Good",3;"OK",2},2,0) -> 1 | O87: 138 | P87: 58.88888889 | X87: 332.0388889
A88: Student 84 | B88: iPhone | C88: =VLOOKUP(B88,{"iPhone",1;"Motorola",2;"Nokia",3;"Samsung",4;"Sony Erickson",5;"Sprint",6},2,0) -> 1 | H88: Student 84 | I88: Poor | J88: =VLOOKUP(I88,{"Excellent",4;"Poor",1;"Good",3;"OK",2},2,0) -> 1 | O88: 137 | P88: 58.33333333 | X88: 331.4833333
A89: Student 85 | B89: iPhone | C89: =VLOOKUP(B89,{"iPhone",1;"Motorola",2;"Nokia",3;"Samsung",4;"Sony Erickson",5;"Sprint",6},2,0) -> 1 | H89: Student 85 | I89: Good | J89: =VLOOKUP(I89,{"Excellent",4;"Poor",1;"Good",3;"OK",2},2,0) -> 3 | O89: 136 | P89: 57.77777778 | X89: 330.9277778
A90: Student 86 | B90: iPhone | C90: =VLOOKUP(B90,{"iPhone",1;"Motorola",2;"Nokia",3;"Samsung",4;"Sony Erickson",5;"Sprint",6},2,0) -> 1 | H90: Student 86 | I90: OK | J90: =VLOOKUP(I90,{"Excellent",4;"Poor",1;"Good",3;"OK",2},2,0) -> 2 | O90: 135 | P90: 57.22222222 | X90: 330.3722222
A91: Student 87 | B91: iPhone | C91: =VLOOKUP(B91,{"iPhone",1;"Motorola",2;"Nokia",3;"Samsung",4;"Sony Erickson",5;"Sprint",6},2,0) -> 1 | H91: Student 87 | I91: OK | J91: =VLOOKUP(I91,{"Excellent",4;"Poor",1;"Good",3;"OK",2},2,0) -> 2 | O91: 134 | P91: 56.66666667 | X91: 329.8166667
A92: Student 88 | B92: Sprint | C92: =VLOOKUP(B92,{"iPhone",1;"Motorola",2;"Nokia",3;"Samsung",4;"Sony Erickson",5;"Sprint",6},2,0) -> 6 | H92: Student 88 | I92: Good | J92: =VLOOKUP(I92,{"Excellent",4;"Poor",1;"Good",3;"OK",2},2,0) -> 3 | O92: 133 | P92: 56.11111111 | X92: 329.2611111
A93: Student 89 | B93: Motorola | C93: =VLOOKUP(B93,{"iPhone",1;"Motorola",2;"Nokia",3;"Samsung",4;"Sony Erickson",5;"Sprint",6},2,0) -> 2 | H93: Student 89 | I93: Poor | J93: =VLOOKUP(I93,{"Excellent",4;"Poor",1;"Good",3;"OK",2},2,0) -> 1 | O93: 132 | P93: 55.55555556 | X93: 328.7055556
A94: Student 90 | B94: Sony Erickson | C94: =VLOOKUP(B94,{"iPhone",1;"Motorola",2;"Nokia",3;"Samsung",4;"Sony Erickson",5;"Sprint",6},2,0) -> 5 | H94: Student 90 | I94: OK | J94: =VLOOKUP(I94,{"Excellent",4;"Poor",1;"Good",3;"OK",2},2,0) -> 2 | O94: 131 | P94: 55 | X94: 328.15
A95: Student 91 | B95: Motorola | C95: =VLOOKUP(B95,{"iPhone",1;"Motorola",2;"Nokia",3;"Samsung",4;"Sony Erickson",5;"Sprint",6},2,0) -> 2 | H95: Student 91 | I95: Poor | J95: =VLOOKUP(I95,{"Excellent",4;"Poor",1;"Good",3;"OK",2},2,0) -> 1 | O95: 130 | P95: 54.44444444 | X95: 327.5944444
A96: Student 92 | B96: Samsung | C96: =VLOOKUP(B96,{"iPhone",1;"Motorola",2;"Nokia",3;"Samsung",4;"Sony Erickson",5;"Sprint",6},2,0) -> 4 | H96: Student 92 | I96: Good | J96: =VLOOKUP(I96,{"Excellent",4;"Poor",1;"Good",3;"OK",2},2,0) -> 3 | O96: 129 | P96: 53.88888889 | X96: 327.0388889
A97: Student 93 | B97: Nokia | C97: =VLOOKUP(B97,{"iPhone",1;"Motorola",2;"Nokia",3;"Samsung",4;"Sony Erickson",5;"Sprint",6},2,0) -> 3 | H97: Student 93 | I97: Good | J97: =VLOOKUP(I97,{"Excellent",4;"Poor",1;"Good",3;"OK",2},2,0) -> 3 | O97: 128 | P97: 53.33333333 | X97: 326.4833333
A98: Student 94 | B98: Sony Erickson | C98: =VLOOKUP(B98,{"iPhone",1;"Motorola",2;"Nokia",3;"Samsung",4;"Sony Erickson",5;"Sprint",6},2,0) -> 5 | H98: Student 94 | I98: Poor | J98: =VLOOKUP(I98,{"Excellent",4;"Poor",1;"Good",3;"OK",2},2,0) -> 1 | O98: 127 | P98: 52.77777778 | X98: 325.9277778
A99: Student 95 | B99: iPhone | C99: =VLOOKUP(B99,{"iPhone",1;"Motorola",2;"Nokia",3;"Samsung",4;"Sony Erickson",5;"Sprint",6},2,0) -> 1 | H99: Student 95 | I99: OK | J99: =VLOOKUP(I99,{"Excellent",4;"Poor",1;"Good",3;"OK",2},2,0) -> 2 | O99: 126 | P99: 52.22222222 | X99: 325.3722222
A100: Student 96 | B100: Nokia | C100: =VLOOKUP(B100,{"iPhone",1;"Motorola",2;"Nokia",3;"Samsung",4;"Sony Erickson",5;"Sprint",6},2,0) -> 3 | H100: Student 96 | I100: Poor | J100: =VLOOKUP(I100,{"Excellent",4;"Poor",1;"Good",3;"OK",2},2,0) -> 1 | O100: 125 | P100: 51.66666667 | X100: 324.8166667
A101: Student 97 | B101: iPhone | C101: =VLOOKUP(B101,{"iPhone",1;"Motorola",2;"Nokia",3;"Samsung",4;"Sony Erickson",5;"Sprint",6},2,0) -> 1 | H101: Student 97 | I101: Poor | J101: =VLOOKUP(I101,{"Excellent",4;"Poor",1;"Good",3;"OK",2},2,0) -> 1 | O101: 124 | P101: 51.11111111 | X101: 324.2611111
A102: Student 98 | B102: Nokia | C102: =VLOOKUP(B102,{"iPhone",1;"Motorola",2;"Nokia",3;"Samsung",4;"Sony Erickson",5;"Sprint",6},2,0) -> 3 | H102: Student 98 | I102: Poor | J102: =VLOOKUP(I102,{"Excellent",4;"Poor",1;"Good",3;"OK",2},2,0) -> 1 | O102: 123 | P102: 50.55555556 | X102: 323.7055556
A103: Student 99 | B103: Sony Erickson | C103: =VLOOKUP(B103,{"iPhone",1;"Motorola",2;"Nokia",3;"Samsung",4;"Sony Erickson",5;"Sprint",6},2,0) -> 5 | H103: Student 99 | I103: Poor | J103: =VLOOKUP(I103,{"Excellent",4;"Poor",1;"Good",3;"OK",2},2,0) -> 1 | O103: 122 | P103: 50 | X103: 323.15
A104: Student 100 | B104: Sprint | C104: =VLOOKUP(B104,{"iPhone",1;"Motorola",2;"Nokia",3;"Samsung",4;"Sony Erickson",5;"Sprint",6},2,0) -> 6 | H104: Student 100 | I104: Poor | J104: =VLOOKUP(I104,{"Excellent",4;"Poor",1;"Good",3;"OK",2},2,0) -> 1 | O104: 121 | P104: 49.44444444 | X104: 322.5944444
A105: Student 101 | B105: Nokia | C105: =VLOOKUP(B105,{"iPhone",1;"Motorola",2;"Nokia",3;"Samsung",4;"Sony Erickson",5;"Sprint",6},2,0) -> 3 | H105: Student 101 | I105: Poor | J105: =VLOOKUP(I105,{"Excellent",4;"Poor",1;"Good",3;"OK",2},2,0) -> 1 | O105: 120 | P105: 48.88888889 | X105: 322.0388889
A106: Student 102 | B106: iPhone | C106: =VLOOKUP(B106,{"iPhone",1;"Motorola",2;"Nokia",3;"Samsung",4;"Sony Erickson",5;"Sprint",6},2,0) -> 1 | H106: Student 102 | I106: Poor | J106: =VLOOKUP(I106,{"Excellent",4;"Poor",1;"Good",3;"OK",2},2,0) -> 1 | O106: 119 | P106: 48.33333333 | X106: 321.4833333
A107: Student 103 | B107: Sprint | C107: =VLOOKUP(B107,{"iPhone",1;"Motorola",2;"Nokia",3;"Samsung",4;"Sony Erickson",5;"Sprint",6},2,0) -> 6 | H107: Student 103 | I107: Poor | J107: =VLOOKUP(I107,{"Excellent",4;"Poor",1;"Good",3;"OK",2},2,0) -> 1 | O107: 118 | P107: 47.77777778 | X107: 320.9277778
A108: Student 104 | B108: Sony Erickson | C108: =VLOOKUP(B108,{"iPhone",1;"Motorola",2;"Nokia",3;"Samsung",4;"Sony Erickson",5;"Sprint",6},2,0) -> 5 | H108: Student 104 | I108: Poor | J108: =VLOOKUP(I108,{"Excellent",4;"Poor",1;"Good",3;"OK",2},2,0) -> 1 | O108: 117 | P108: 47.22222222 | X108: 320.3722222
A109: Student 105 | B109: Motorola | C109: =VLOOKUP(B109,{"iPhone",1;"Motorola",2;"Nokia",3;"Samsung",4;"Sony Erickson",5;"Sprint",6},2,0) -> 2 | H109: Student 105 | I109: Poor | J109: =VLOOKUP(I109,{"Excellent",4;"Poor",1;"Good",3;"OK",2},2,0) -> 1 | O109: 116 | P109: 46.66666667 | X109: 319.8166667
A110: Student 106 | B110: Nokia | C110: =VLOOKUP(B110,{"iPhone",1;"Motorola",2;"Nokia",3;"Samsung",4;"Sony Erickson",5;"Sprint",6},2,0) -> 3 | H110: Student 106 | I110: Poor | J110: =VLOOKUP(I110,{"Excellent",4;"Poor",1;"Good",3;"OK",2},2,0) -> 1 | O110: 115 | P110: 46.11111111 | X110: 319.2611111
A111: Student 107 | B111: iPhone | C111: =VLOOKUP(B111,{"iPhone",1;"Motorola",2;"Nokia",3;"Samsung",4;"Sony Erickson",5;"Sprint",6},2,0) -> 1 | H111: Student 107 | I111: OK | J111: =VLOOKUP(I111,{"Excellent",4;"Poor",1;"Good",3;"OK",2},2,0) -> 2 | O111: 114 | P111: 45.55555556 | X111: 318.7055556
A112: Student 108 | B112: Nokia | C112: =VLOOKUP(B112,{"iPhone",1;"Motorola",2;"Nokia",3;"Samsung",4;"Sony Erickson",5;"Sprint",6},2,0) -> 3 | H112: Student 108 | I112: Excellent | J112: =VLOOKUP(I112,{"Excellent",4;"Poor",1;"Good",3;"OK",2},2,0) -> 4 | O112: 113 | P112: 45 | X112: 318.15
A113: Student 109 | B113: Nokia | C113: =VLOOKUP(B113,{"iPhone",1;"Motorola",2;"Nokia",3;"Samsung",4;"Sony Erickson",5;"Sprint",6},2,0) -> 3 | H113: Student 109 | I113: Poor | J113: =VLOOKUP(I113,{"Excellent",4;"Poor",1;"Good",3;"OK",2},2,0) -> 1 | O113: 112 | P113: 44.44444444 | X113: 317.5944444
A114: Student 110 | B114: Motorola | C114: =VLOOKUP(B114,{"iPhone",1;"Motorola",2;"Nokia",3;"Samsung",4;"Sony Erickson",5;"Sprint",6},2,0) -> 2 | H114: Student 110 | I114: Excellent | J114: =VLOOKUP(I114,{"Excellent",4;"Poor",1;"Good",3;"OK",2},2,0) -> 4 | O114: 111 | P114: 43.88888889 | X114: 317.0388889
A115: Student 111 | B115: iPhone | C115: =VLOOKUP(B115,{"iPhone",1;"Motorola",2;"Nokia",3;"Samsung",4;"Sony Erickson",5;"Sprint",6},2,0) -> 1 | H115: Student 111 | I115: OK | J115: =VLOOKUP(I115,{"Excellent",4;"Poor",1;"Good",3;"OK",2},2,0) -> 2 | O115: 110 | P115: 43.33333333 | X115: 316.4833333
A116: Student 112 | B116: Nokia | C116: =VLOOKUP(B116,{"iPhone",1;"Motorola",2;"Nokia",3;"Samsung",4;"Sony Erickson",5;"Sprint",6},2,0) -> 3 | H116: Student 112 | I116: Good | J116: =VLOOKUP(I116,{"Excellent",4;"Poor",1;"Good",3;"OK",2},2,0) -> 3 | O116: 109 | P116: 42.77777778 | X116: 315.9277778
A117: Student 113 | B117: Nokia | C117: =VLOOKUP(B117,{"iPhone",1;"Motorola",2;"Nokia",3;"Samsung",4;"Sony Erickson",5;"Sprint",6},2,0) -> 3 | H117: Student 113 | I117: Poor | J117: =VLOOKUP(I117,{"Excellent",4;"Poor",1;"Good",3;"OK",2},2,0) -> 1 | O117: 108 | P117: 42.22222222 | X117: 315.3722222
A118: Student 114 | B118: Nokia | C118: =VLOOKUP(B118,{"iPhone",1;"Motorola",2;"Nokia",3;"Samsung",4;"Sony Erickson",5;"Sprint",6},2,0) -> 3 | H118: Student 114 | I118: Good | J118: =VLOOKUP(I118,{"Excellent",4;"Poor",1;"Good",3;"OK",2},2,0) -> 3 | O118: 107 | P118: 41.66666667 | X118: 314.8166667
A119: Student 115 | B119: Motorola | C119: =VLOOKUP(B119,{"iPhone",1;"Motorola",2;"Nokia",3;"Samsung",4;"Sony Erickson",5;"Sprint",6},2,0) -> 2 | H119: Student 115 | I119: OK | J119: =VLOOKUP(I119,{"Excellent",4;"Poor",1;"Good",3;"OK",2},2,0) -> 2 | O119: 106 | P119: 41.11111111 | X119: 314.2611111
A120: Student 116 | B120: Sprint | C120: =VLOOKUP(B120,{"iPhone",1;"Motorola",2;"Nokia",3;"Samsung",4;"Sony Erickson",5;"Sprint",6},2,0) -> 6 | H120: Student 116 | I120: OK | J120: =VLOOKUP(I120,{"Excellent",4;"Poor",1;"Good",3;"OK",2},2,0) -> 2 | O120: 105 | P120: 40.55555556 | X120: 313.7055556
A121: Student 117 | B121: Sprint | C121: =VLOOKUP(B121,{"iPhone",1;"Motorola",2;"Nokia",3;"Samsung",4;"Sony Erickson",5;"Sprint",6},2,0) -> 6 | H121: Student 117 | I121: Poor | J121: =VLOOKUP(I121,{"Excellent",4;"Poor",1;"Good",3;"OK",2},2,0) -> 1 | O121: 104 | P121: 40 | X121: 313.15
A122: Student 118 | B122: Sprint | C122: =VLOOKUP(B122,{"iPhone",1;"Motorola",2;"Nokia",3;"Samsung",4;"Sony Erickson",5;"Sprint",6},2,0) -> 6 | H122: Student 118 | I122: Excellent | J122: =VLOOKUP(I122,{"Excellent",4;"Poor",1;"Good",3;"OK",2},2,0) -> 4 | O122: 103 | P122: 39.44444444 | X122: 312.5944444
A123: Student 119 | B123: Nokia | C123: =VLOOKUP(B123,{"iPhone",1;"Motorola",2;"Nokia",3;"Samsung",4;"Sony Erickson",5;"Sprint",6},2,0) -> 3 | H123: Student 119 | I123: Excellent | J123: =VLOOKUP(I123,{"Excellent",4;"Poor",1;"Good",3;"OK",2},2,0) -> 4 | O123: 102 | P123: 38.88888889 | X123: 312.0388889
A124: Student 120 | B124: Nokia | C124: =VLOOKUP(B124,{"iPhone",1;"Motorola",2;"Nokia",3;"Samsung",4;"Sony Erickson",5;"Sprint",6},2,0) -> 3 | H124: Student 120 | I124: Excellent | J124: =VLOOKUP(I124,{"Excellent",4;"Poor",1;"Good",3;"OK",2},2,0) -> 4 | O124: 101 | P124: 38.33333333 | X124: 311.4833333
A125: Student 121 | B125: Sprint | C125: =VLOOKUP(B125,{"iPhone",1;"Motorola",2;"Nokia",3;"Samsung",4;"Sony Erickson",5;"Sprint",6},2,0) -> 6 | H125: Student 121 | I125: Excellent | J125: =VLOOKUP(I125,{"Excellent",4;"Poor",1;"Good",3;"OK",2},2,0) -> 4 | O125: 100 | P125: 37.77777778 | X125: 310.9277778
A126: Student 122 | B126: Nokia | C126: =VLOOKUP(B126,{"iPhone",1;"Motorola",2;"Nokia",3;"Samsung",4;"Sony Erickson",5;"Sprint",6},2,0) -> 3 | H126: Student 122 | I126: OK | J126: =VLOOKUP(I126,{"Excellent",4;"Poor",1;"Good",3;"OK",2},2,0) -> 2 | O126: 99 | P126: 37.22222222 | X126: 310.3722222
A127: Student 123 | B127: Samsung | C127: =VLOOKUP(B127,{"iPhone",1;"Motorola",2;"Nokia",3;"Samsung",4;"Sony Erickson",5;"Sprint",6},2,0) -> 4 | H127: Student 123 | I127: Good | J127: =VLOOKUP(I127,{"Excellent",4;"Poor",1;"Good",3;"OK",2},2,0) -> 3 | O127: 98 | P127: 36.66666667 | X127: 309.8166667
A128: Student 124 | B128: Samsung | C128: =VLOOKUP(B128,{"iPhone",1;"Motorola",2;"Nokia",3;"Samsung",4;"Sony Erickson",5;"Sprint",6},2,0) -> 4 | H128: Student 124 | I128: Poor | J128: =VLOOKUP(I128,{"Excellent",4;"Poor",1;"Good",3;"OK",2},2,0) -> 1 | O128: 97 | P128: 36.11111111 | X128: 309.2611111
A129: Student 125 | B129: Samsung | C129: =VLOOKUP(B129,{"iPhone",1;"Motorola",2;"Nokia",3;"Samsung",4;"Sony Erickson",5;"Sprint",6},2,0) -> 4 | H129: Student 125 | I129: Poor | J129: =VLOOKUP(I129,{"Excellent",4;"Poor",1;"Good",3;"OK",2},2,0) -> 1 | O129: 96 | P129: 35.55555556 | X129: 308.7055556
A130: Student 126 | B130: Samsung | C130: =VLOOKUP(B130,{"iPhone",1;"Motorola",2;"Nokia",3;"Samsung",4;"Sony Erickson",5;"Sprint",6},2,0) -> 4 | H130: Student 126 | I130: Excellent | J130: =VLOOKUP(I130,{"Excellent",4;"Poor",1;"Good",3;"OK",2},2,0) -> 4 | O130: 95 | P130: 35 | X130: 308.15
A131: Student 127 | B131: Motorola | C131: =VLOOKUP(B131,{"iPhone",1;"Motorola",2;"Nokia",3;"Samsung",4;"Sony Erickson",5;"Sprint",6},2,0) -> 2 | H131: Student 127 | I131: Poor | J131: =VLOOKUP(I131,{"Excellent",4;"Poor",1;"Good",3;"OK",2},2,0) -> 1 | O131: 94 | P131: 34.44444444 | X131: 307.5944444
A132: Student 128 | B132: Sony Erickson | C132: =VLOOKUP(B132,{"iPhone",1;"Motorola",2;"Nokia",3;"Samsung",4;"Sony Erickson",5;"Sprint",6},2,0) -> 5 | H132: Student 128 | I132: Poor | J132: =VLOOKUP(I132,{"Excellent",4;"Poor",1;"Good",3;"OK",2},2,0) -> 1 | O132: 93 | P132: 33.88888889 | X132: 307.0388889
A133: Student 129 | B133: Motorola | C133: =VLOOKUP(B133,{"iPhone",1;"Motorola",2;"Nokia",3;"Samsung",4;"Sony Erickson",5;"Sprint",6},2,0) -> 2 | H133: Student 129 | I133: OK | J133: =VLOOKUP(I133,{"Excellent",4;"Poor",1;"Good",3;"OK",2},2,0) -> 2 | O133: 92 | P133: =CONVERT(O133,"F","C") -> 33.33333333 | X133: 306.4833333
A134: Student 130 | B134: iPhone | C134: =VLOOKUP(B134,{"iPhone",1;"Motorola",2;"Nokia",3;"Samsung",4;"Sony Erickson",5;"Sprint",6},2,0) -> 1 | H134: Student 130 | I134: Poor | J134: =VLOOKUP(I134,{"Excellent",4;"Poor",1;"Good",3;"OK",2},2,0) -> 1 | O134: 91 | P134: 32.77777778 | X134: =CONVERT(O134,"F","K") -> 305.9277778
A135: Student 131 | B135: iPhone | C135: =VLOOKUP(B135,{"iPhone",1;"Motorola",2;"Nokia",3;"Samsung",4;"Sony Erickson",5;"Sprint",6},2,0) -> 1 | H135: Student 131 | I135: Poor | J135: =VLOOKUP(I135,{"Excellent",4;"Poor",1;"Good",3;"OK",2},2,0) -> 1 | O135: 90 | P135: 32.22222222 | X135: 305.3722222
A136: Student 132 | B136: Sprint | C136: =VLOOKUP(B136,{"iPhone",1;"Motorola",2;"Nokia",3;"Samsung",4;"Sony Erickson",5;"Sprint",6},2,0) -> 6 | H136: Student 132 | I136: Poor | J136: =VLOOKUP(I136,{"Excellent",4;"Poor",1;"Good",3;"OK",2},2,0) -> 1 | O136: 89 | P136: 31.66666667 | X136: 304.8166667
A137: Student 133 | B137: Samsung | C137: =VLOOKUP(B137,{"iPhone",1;"Motorola",2;"Nokia",3;"Samsung",4;"Sony Erickson",5;"Sprint",6},2,0) -> 4 | H137: Student 133 | I137: OK | J137: =VLOOKUP(I137,{"Excellent",4;"Poor",1;"Good",3;"OK",2},2,0) -> 2 | O137: 88 | P137: 31.11111111 | X137: 304.2611111
A138: Student 134 | B138: Nokia | C138: =VLOOKUP(B138,{"iPhone",1;"Motorola",2;"Nokia",3;"Samsung",4;"Sony Erickson",5;"Sprint",6},2,0) -> 3 | H138: Student 134 | I138: Poor | J138: =VLOOKUP(I138,{"Excellent",4;"Poor",1;"Good",3;"OK",2},2,0) -> 1 | O138: 87 | P138: 30.55555556 | X138: 303.7055556
A139: Student 135 | B139: Motorola | C139: =VLOOKUP(B139,{"iPhone",1;"Motorola",2;"Nokia",3;"Samsung",4;"Sony Erickson",5;"Sprint",6},2,0) -> 2 | H139: Student 135 | I139: OK | J139: =VLOOKUP(I139,{"Excellent",4;"Poor",1;"Good",3;"OK",2},2,0) -> 2 | O139: 86 | P139: 30 | X139: 303.15
A140: Student 136 | B140: Nokia | C140: =VLOOKUP(B140,{"iPhone",1;"Motorola",2;"Nokia",3;"Samsung",4;"Sony Erickson",5;"Sprint",6},2,0) -> 3 | H140: Student 136 | I140: Poor | J140: =VLOOKUP(I140,{"Excellent",4;"Poor",1;"Good",3;"OK",2},2,0) -> 1 | O140: 85 | P140: 29.44444444 | X140: 302.5944444
A141: Student 137 | B141: Motorola | C141: =VLOOKUP(B141,{"iPhone",1;"Motorola",2;"Nokia",3;"Samsung",4;"Sony Erickson",5;"Sprint",6},2,0) -> 2 | H141: Student 137 | I141: Poor | J141: =VLOOKUP(I141,{"Excellent",4;"Poor",1;"Good",3;"OK",2},2,0) -> 1 | O141: 84 | P141: 28.88888889 | X141: 302.0388889
A142: Student 138 | B142: Sony Erickson | C142: =VLOOKUP(B142,{"iPhone",1;"Motorola",2;"Nokia",3;"Samsung",4;"Sony Erickson",5;"Sprint",6},2,0) -> 5 | H142: Student 138 | I142: OK | J142: =VLOOKUP(I142,{"Excellent",4;"Poor",1;"Good",3;"OK",2},2,0) -> 2 | O142: 83 | P142: 28.33333333 | X142: 301.4833333
A143: Student 139 | B143: Samsung | C143: =VLOOKUP(B143,{"iPhone",1;"Motorola",2;"Nokia",3;"Samsung",4;"Sony Erickson",5;"Sprint",6},2,0) -> 4 | H143: Student 139 | I143: Excellent | J143: =VLOOKUP(I143,{"Excellent",4;"Poor",1;"Good",3;"OK",2},2,0) -> 4 | O143: 82 | P143: 27.77777778 | X143: 300.9277778
A144: Student 140 | B144: Nokia | C144: =VLOOKUP(B144,{"iPhone",1;"Motorola",2;"Nokia",3;"Samsung",4;"Sony Erickson",5;"Sprint",6},2,0) -> 3 | H144: Student 140 | I144: OK | J144: =VLOOKUP(I144,{"Excellent",4;"Poor",1;"Good",3;"OK",2},2,0) -> 2 | O144: 81 | P144: 27.22222222 | X144: 300.3722222
A145: Student 141 | B145: iPhone | C145: =VLOOKUP(B145,{"iPhone",1;"Motorola",2;"Nokia",3;"Samsung",4;"Sony Erickson",5;"Sprint",6},2,0) -> 1 | H145: Student 141 | I145: Poor | J145: =VLOOKUP(I145,{"Excellent",4;"Poor",1;"Good",3;"OK",2},2,0) -> 1 | O145: 80 | P145: 26.66666667 | X145: 299.8166667
A146: Student 142 | B146: Motorola | C146: =VLOOKUP(B146,{"iPhone",1;"Motorola",2;"Nokia",3;"Samsung",4;"Sony Erickson",5;"Sprint",6},2,0) -> 2 | H146: Student 142 | I146: Poor | J146: =VLOOKUP(I146,{"Excellent",4;"Poor",1;"Good",3;"OK",2},2,0) -> 1 | O146: 79 | P146: 26.11111111 | X146: 299.2611111
A147: Student 143 | B147: iPhone | C147: =VLOOKUP(B147,{"iPhone",1;"Motorola",2;"Nokia",3;"Samsung",4;"Sony Erickson",5;"Sprint",6},2,0) -> 1 | H147: Student 143 | I147: Poor | J147: =VLOOKUP(I147,{"Excellent",4;"Poor",1;"Good",3;"OK",2},2,0) -> 1 | O147: 78 | P147: 25.55555556 | X147: 298.7055556
A148: Student 144 | B148: Samsung | C148: =VLOOKUP(B148,{"iPhone",1;"Motorola",2;"Nokia",3;"Samsung",4;"Sony Erickson",5;"Sprint",6},2,0) -> 4 | H148: Student 144 | I148: Poor | J148: =VLOOKUP(I148,{"Excellent",4;"Poor",1;"Good",3;"OK",2},2,0) -> 1 | O148: 77 | P148: 25 | X148: 298.15
A149: Student 145 | B149: Motorola | C149: =VLOOKUP(B149,{"iPhone",1;"Motorola",2;"Nokia",3;"Samsung",4;"Sony Erickson",5;"Sprint",6},2,0) -> 2 | H149: Student 145 | I149: OK | J149: =VLOOKUP(I149,{"Excellent",4;"Poor",1;"Good",3;"OK",2},2,0) -> 2 | O149: 76 | P149: 24.44444444 | X149: 297.5944444
A150: Student 146 | B150: Nokia | C150: =VLOOKUP(B150,{"iPhone",1;"Motorola",2;"Nokia",3;"Samsung",4;"Sony Erickson",5;"Sprint",6},2,0) -> 3 | H150: Student 146 | I150: Poor | J150: =VLOOKUP(I150,{"Excellent",4;"Poor",1;"Good",3;"OK",2},2,0) -> 1 | O150: 75 | P150: 23.88888889 | X150: 297.0388889
A151: Student 147 | B151: Motorola | C151: =VLOOKUP(B151,{"iPhone",1;"Motorola",2;"Nokia",3;"Samsung",4;"Sony Erickson",5;"Sprint",6},2,0) -> 2 | H151: Student 147 | I151: Poor | J151: =VLOOKUP(I151,{"Excellent",4;"Poor",1;"Good",3;"OK",2},2,0) -> 1 | O151: 74 | P151: 23.33333333 | X151: 296.4833333
A152: Student 148 | B152: Samsung | C152: =VLOOKUP(B152,{"iPhone",1;"Motorola",2;"Nokia",3;"Samsung",4;"Sony Erickson",5;"Sprint",6},2,0) -> 4 | H152: Student 148 | I152: OK | J152: =VLOOKUP(I152,{"Excellent",4;"Poor",1;"Good",3;"OK",2},2,0) -> 2 | O152: 73 | P152: 22.77777778 | X152: 295.9277778
A153: Student 149 | B153: Sprint | C153: =VLOOKUP(B153,{"iPhone",1;"Motorola",2;"Nokia",3;"Samsung",4;"Sony Erickson",5;"Sprint",6},2,0) -> 6 | H153: Student 149 | I153: Poor | J153: =VLOOKUP(I153,{"Excellent",4;"Poor",1;"Good",3;"OK",2},2,0) -> 1 | O153: 72 | P153: 22.22222222 | X153: 295.3722222
A154: Student 150 | B154: Samsung | C154: =VLOOKUP(B154,{"iPhone",1;"Motorola",2;"Nokia",3;"Samsung",4;"Sony Erickson",5;"Sprint",6},2,0) -> 4 | H154: Student 150 | I154: Excellent | J154: =VLOOKUP(I154,{"Excellent",4;"Poor",1;"Good",3;"OK",2},2,0) -> 4 | O154: 71 | P154: 21.66666667 | X154: 294.8166667
A155: Student 151 | B155: Sony Erickson | C155: =VLOOKUP(B155,{"iPhone",1;"Motorola",2;"Nokia",3;"Samsung",4;"Sony Erickson",5;"Sprint",6},2,0) -> 5 | H155: Student 151 | I155: Excellent | J155: =VLOOKUP(I155,{"Excellent",4;"Poor",1;"Good",3;"OK",2},2,0) -> 4 | O155: 70 | P155: 21.11111111 | X155: 294.2611111
A156: Student 152 | B156: Nokia | C156: =VLOOKUP(B156,{"iPhone",1;"Motorola",2;"Nokia",3;"Samsung",4;"Sony Erickson",5;"Sprint",6},2,0) -> 3 | H156: Student 152 | I156: Excellent | J156: =VLOOKUP(I156,{"Excellent",4;"Poor",1;"Good",3;"OK",2},2,0) -> 4 | O156: 69 | P156: 20.55555556 | X156: 293.7055556
A157: Student 153 | B157: iPhone | C157: =VLOOKUP(B157,{"iPhone",1;"Motorola",2;"Nokia",3;"Samsung",4;"Sony Erickson",5;"Sprint",6},2,0) -> 1 | H157: Student 153 | I157: OK | J157: =VLOOKUP(I157,{"Excellent",4;"Poor",1;"Good",3;"OK",2},2,0) -> 2 | O157: 68 | P157: 20 | X157: 293.15
A158: Student 154 | B158: Sprint | C158: =VLOOKUP(B158,{"iPhone",1;"Motorola",2;"Nokia",3;"Samsung",4;"Sony Erickson",5;"Sprint",6},2,0) -> 6 | H158: Student 154 | I158: Poor | J158: =VLOOKUP(I158,{"Excellent",4;"Poor",1;"Good",3;"OK",2},2,0) -> 1 | O158: 67 | P158: 19.44444444 | X158: 292.5944444
A159: Student 155 | B159: iPhone | C159: =VLOOKUP(B159,{"iPhone",1;"Motorola",2;"Nokia",3;"Samsung",4;"Sony Erickson",5;"Sprint",6},2,0) -> 1 | H159: Student 155 | I159: OK | J159: =VLOOKUP(I159,{"Excellent",4;"Poor",1;"Good",3;"OK",2},2,0) -> 2 | O159: 66 | P159: 18.88888889 | X159: 292.0388889
A160: Student 156 | B160: iPhone | C160: =VLOOKUP(B160,{"iPhone",1;"Motorola",2;"Nokia",3;"Samsung",4;"Sony Erickson",5;"Sprint",6},2,0) -> 1 | H160: Student 156 | I160: Poor | J160: =VLOOKUP(I160,{"Excellent",4;"Poor",1;"Good",3;"OK",2},2,0) -> 1 | O160: 65 | P160: 18.33333333 | X160: 291.4833333
A161: Student 157 | B161: Samsung | C161: =VLOOKUP(B161,{"iPhone",1;"Motorola",2;"Nokia",3;"Samsung",4;"Sony Erickson",5;"Sprint",6},2,0) -> 4 | H161: Student 157 | I161: Poor | J161: =VLOOKUP(I161,{"Excellent",4;"Poor",1;"Good",3;"OK",2},2,0) -> 1 | O161: 64 | P161: 17.77777778 | X161: 290.9277778
A162: Student 158 | B162: Nokia | C162: =VLOOKUP(B162,{"iPhone",1;"Motorola",2;"Nokia",3;"Samsung",4;"Sony Erickson",5;"Sprint",6},2,0) -> 3 | H162: Student 158 | I162: Poor | J162: =VLOOKUP(I162,{"Excellent",4;"Poor",1;"Good",3;"OK",2},2,0) -> 1 | O162: 63 | P162: 17.22222222 | X162: 290.3722222
A163: Student 159 | B163: Nokia | C163: =VLOOKUP(B163,{"iPhone",1;"Motorola",2;"Nokia",3;"Samsung",4;"Sony Erickson",5;"Sprint",6},2,0) -> 3 | H163: Student 159 | I163: Poor | J163: =VLOOKUP(I163,{"Excellent",4;"Poor",1;"Good",3;"OK",2},2,0) -> 1 | O163: 62 | P163: 16.66666667 | X163: 289.8166667
A164: Student 160 | B164: iPhone | C164: =VLOOKUP(B164,{"iPhone",1;"Motorola",2;"Nokia",3;"Samsung",4;"Sony Erickson",5;"Sprint",6},2,0) -> 1 | H164: Student 160 | I164: Poor | J164: =VLOOKUP(I164,{"Excellent",4;"Poor",1;"Good",3;"OK",2},2,0) -> 1 | O164: 61 | P164: 16.11111111 | X164: 289.2611111
A165: Student 161 | B165: Sony Erickson | C165: =VLOOKUP(B165,{"iPhone",1;"Motorola",2;"Nokia",3;"Samsung",4;"Sony Erickson",5;"Sprint",6},2,0) -> 5 | H165: Student 161 | I165: OK | J165: =VLOOKUP(I165,{"Excellent",4;"Poor",1;"Good",3;"OK",2},2,0) -> 2 | O165: 60 | P165: 15.55555556 | X165: 288.7055556
A166: Student 162 | B166: Nokia | C166: =VLOOKUP(B166,{"iPhone",1;"Motorola",2;"Nokia",3;"Samsung",4;"Sony Erickson",5;"Sprint",6},2,0) -> 3 | H166: Student 162 | I166: Poor | J166: =VLOOKUP(I166,{"Excellent",4;"Poor",1;"Good",3;"OK",2},2,0) -> 1 | O166: 59 | P166: 15 | X166: 288.15
A167: Student 163 | B167: Sprint | C167: =VLOOKUP(B167,{"iPhone",1;"Motorola",2;"Nokia",3;"Samsung",4;"Sony Erickson",5;"Sprint",6},2,0) -> 6 | H167: Student 163 | I167: Poor | J167: =VLOOKUP(I167,{"Excellent",4;"Poor",1;"Good",3;"OK",2},2,0) -> 1 | O167: 58 | P167: 14.44444444 | X167: 287.5944444
A168: Student 164 | B168: Nokia | C168: =VLOOKUP(B168,{"iPhone",1;"Motorola",2;"Nokia",3;"Samsung",4;"Sony Erickson",5;"Sprint",6},2,0) -> 3 | H168: Student 164 | I168: Excellent | J168: =VLOOKUP(I168,{"Excellent",4;"Poor",1;"Good",3;"OK",2},2,0) -> 4 | O168: 57 | P168: 13.88888889 | X168: 287.0388889
A169: Student 165 | B169: Samsung | C169: =VLOOKUP(B169,{"iPhone",1;"Motorola",2;"Nokia",3;"Samsung",4;"Sony Erickson",5;"Sprint",6},2,0) -> 4 | H169: Student 165 | I169: Good | J169: =VLOOKUP(I169,{"Excellent",4;"Poor",1;"Good",3;"OK",2},2,0) -> 3 | O169: 56 | P169: 13.33333333 | X169: 286.4833333
A170: Student 166 | B170: iPhone | C170: =VLOOKUP(B170,{"iPhone",1;"Motorola",2;"Nokia",3;"Samsung",4;"Sony Erickson",5;"Sprint",6},2,0) -> 1 | H170: Student 166 | I170: OK | J170: =VLOOKUP(I170,{"Excellent",4;"Poor",1;"Good",3;"OK",2},2,0) -> 2 | O170: 55 | P170: 12.77777778 | X170: 285.9277778
A171: Student 167 | B171: Samsung | C171: =VLOOKUP(B171,{"iPhone",1;"Motorola",2;"Nokia",3;"Samsung",4;"Sony Erickson",5;"Sprint",6},2,0) -> 4 | H171: Student 167 | I171: Good | J171: =VLOOKUP(I171,{"Excellent",4;"Poor",1;"Good",3;"OK",2},2,0) -> 3 | O171: 54 | P171: 12.22222222 | X171: 285.3722222
A172: Student 168 | B172: Motorola | C172: =VLOOKUP(B172,{"iPhone",1;"Motorola",2;"Nokia",3;"Samsung",4;"Sony Erickson",5;"Sprint",6},2,0) -> 2 | H172: Student 168 | I172: OK | J172: =VLOOKUP(I172,{"Excellent",4;"Poor",1;"Good",3;"OK",2},2,0) -> 2 | O172: 53 | P172: 11.66666667 | X172: 284.8166667
A173: Student 169 | B173: Sony Erickson | C173: =VLOOKUP(B173,{"iPhone",1;"Motorola",2;"Nokia",3;"Samsung",4;"Sony Erickson",5;"Sprint",6},2,0) -> 5 | H173: Student 169 | I173: Poor | J173: =VLOOKUP(I173,{"Excellent",4;"Poor",1;"Good",3;"OK",2},2,0) -> 1 | O173: 52 | P173: 11.11111111 | X173: 284.2611111
A174: Student 170 | B174: Nokia | C174: =VLOOKUP(B174,{"iPhone",1;"Motorola",2;"Nokia",3;"Samsung",4;"Sony Erickson",5;"Sprint",6},2,0) -> 3 | H174: Student 170 | I174: Poor | J174: =VLOOKUP(I174,{"Excellent",4;"Poor",1;"Good",3;"OK",2},2,0) -> 1 | O174: 51 | P174: 10.55555556 | X174: 283.7055556
A175: Student 171 | B175: Nokia | C175: =VLOOKUP(B175,{"iPhone",1;"Motorola",2;"Nokia",3;"Samsung",4;"Sony Erickson",5;"Sprint",6},2,0) -> 3 | H175: Student 171 | I175: OK | J175: =VLOOKUP(I175,{"Excellent",4;"Poor",1;"Good",3;"OK",2},2,0) -> 2 | O175: 50 | P175: 10 | X175: 283.15
A176: Student 172 | B176: Nokia | C176: =VLOOKUP(B176,{"iPhone",1;"Motorola",2;"Nokia",3;"Samsung",4;"Sony Erickson",5;"Sprint",6},2,0) -> 3 | H176: Student 172 | I176: OK | J176: =VLOOKUP(I176,{"Excellent",4;"Poor",1;"Good",3;"OK",2},2,0) -> 2 | O176: 49 | P176: 9.444444444 | X176: 282.5944444
A177: Student 173 | B177: Nokia | C177: =VLOOKUP(B177,{"iPhone",1;"Motorola",2;"Nokia",3;"Samsung",4;"Sony Erickson",5;"Sprint",6},2,0) -> 3 | H177: Student 173 | I177: Poor | J177: =VLOOKUP(I177,{"Excellent",4;"Poor",1;"Good",3;"OK",2},2,0) -> 1 | O177: 48 | P177: 8.888888889 | X177: 282.0388889
A178: Student 174 | B178: iPhone | C178: =VLOOKUP(B178,{"iPhone",1;"Motorola",2;"Nokia",3;"Samsung",4;"Sony Erickson",5;"Sprint",6},2,0) -> 1 | H178: Student 174 | I178: OK | J178: =VLOOKUP(I178,{"Excellent",4;"Poor",1;"Good",3;"OK",2},2,0) -> 2 | O178: 47 | P178: 8.333333333 | X178: 281.4833333
A179: Student 175 | B179: Motorola | C179: =VLOOKUP(B179,{"iPhone",1;"Motorola",2;"Nokia",3;"Samsung",4;"Sony Erickson",5;"Sprint",6},2,0) -> 2 | H179: Student 175 | I179: Good | J179: =VLOOKUP(I179,{"Excellent",4;"Poor",1;"Good",3;"OK",2},2,0) -> 3 | O179: 46 | P179: 7.777777778 | X179: 280.9277778
A180: Student 176 | B180: Sprint | C180: =VLOOKUP(B180,{"iPhone",1;"Motorola",2;"Nokia",3;"Samsung",4;"Sony Erickson",5;"Sprint",6},2,0) -> 6 | H180: Student 176 | I180: Poor | J180: =VLOOKUP(I180,{"Excellent",4;"Poor",1;"Good",3;"OK",2},2,0) -> 1 | O180: 45 | P180: 7.222222222 | X180: 280.3722222
A181: Student 177 | B181: iPhone | C181: =VLOOKUP(B181,{"iPhone",1;"Motorola",2;"Nokia",3;"Samsung",4;"Sony Erickson",5;"Sprint",6},2,0) -> 1 | H181: Student 177 | I181: Excellent | J181: =VLOOKUP(I181,{"Excellent",4;"Poor",1;"Good",3;"OK",2},2,0) -> 4 | O181: 44 | P181: 6.666666667 | X181: 279.8166667
A182: Student 178 | B182: Motorola | C182: =VLOOKUP(B182,{"iPhone",1;"Motorola",2;"Nokia",3;"Samsung",4;"Sony Erickson",5;"Sprint",6},2,0) -> 2 | H182: Student 178 | I182: Poor | J182: =VLOOKUP(I182,{"Excellent",4;"Poor",1;"Good",3;"OK",2},2,0) -> 1 | O182: 43 | P182: 6.111111111 | X182: 279.2611111
A183: Student 179 | B183: Nokia | C183: =VLOOKUP(B183,{"iPhone",1;"Motorola",2;"Nokia",3;"Samsung",4;"Sony Erickson",5;"Sprint",6},2,0) -> 3 | H183: Student 179 | I183: Poor | J183: =VLOOKUP(I183,{"Excellent",4;"Poor",1;"Good",3;"OK",2},2,0) -> 1 | O183: 42 | P183: 5.555555556 | X183: 278.7055556
A184: Student 180 | B184: iPhone | C184: =VLOOKUP(B184,{"iPhone",1;"Motorola",2;"Nokia",3;"Samsung",4;"Sony Erickson",5;"Sprint",6},2,0) -> 1 | H184: Student 180 | I184: Poor | J184: =VLOOKUP(I184,{"Excellent",4;"Poor",1;"Good",3;"OK",2},2,0) -> 1 | O184: 41 | P184: 5 | X184: 278.15
A185: Student 181 | B185: iPhone | C185: =VLOOKUP(B185,{"iPhone",1;"Motorola",2;"Nokia",3;"Samsung",4;"Sony Erickson",5;"Sprint",6},2,0) -> 1 | H185: Student 181 | I185: OK | J185: =VLOOKUP(I185,{"Excellent",4;"Poor",1;"Good",3;"OK",2},2,0) -> 2 | O185: 40 | P185: 4.444444444 | X185: 277.5944444
A186: Student 182 | B186: iPhone | C186: =VLOOKUP(B186,{"iPhone",1;"Motorola",2;"Nokia",3;"Samsung",4;"Sony Erickson",5;"Sprint",6},2,0) -> 1 | H186: Student 182 | I186: Poor | J186: =VLOOKUP(I186,{"Excellent",4;"Poor",1;"Good",3;"OK",2},2,0) -> 1 | O186: 39 | P186: 3.888888889 | X186: 277.0388889
A187: Student 183 | B187: Sprint | C187: =VLOOKUP(B187,{"iPhone",1;"Motorola",2;"Nokia",3;"Samsung",4;"Sony Erickson",5;"Sprint",6},2,0) -> 6 | H187: Student 183 | I187: Poor | J187: =VLOOKUP(I187,{"Excellent",4;"Poor",1;"Good",3;"OK",2},2,0) -> 1 | O187: 38 | P187: 3.333333333 | X187: 276.4833333
A188: Student 184 | B188: Nokia | C188: =VLOOKUP(B188,{"iPhone",1;"Motorola",2;"Nokia",3;"Samsung",4;"Sony Erickson",5;"Sprint",6},2,0) -> 3 | H188: Student 184 | I188: Poor | J188: =VLOOKUP(I188,{"Excellent",4;"Poor",1;"Good",3;"OK",2},2,0) -> 1 | O188: 37 | P188: 2.777777778 | X188: 275.9277778
A189: Student 185 | B189: iPhone | C189: =VLOOKUP(B189,{"iPhone",1;"Motorola",2;"Nokia",3;"Samsung",4;"Sony Erickson",5;"Sprint",6},2,0) -> 1 | H189: Student 185 | I189: Poor | J189: =VLOOKUP(I189,{"Excellent",4;"Poor",1;"Good",3;"OK",2},2,0) -> 1 | O189: 36 | P189: 2.222222222 | X189: 275.3722222
A190: Student 186 | B190: iPhone | C190: =VLOOKUP(B190,{"iPhone",1;"Motorola",2;"Nokia",3;"Samsung",4;"Sony Erickson",5;"Sprint",6},2,0) -> 1 | H190: Student 186 | I190: OK | J190: =VLOOKUP(I190,{"Excellent",4;"Poor",1;"Good",3;"OK",2},2,0) -> 2 | O190: 35 | P190: 1.666666667 | X190: 274.8166667
A191: Student 187 | B191: Sprint | C191: =VLOOKUP(B191,{"iPhone",1;"Motorola",2;"Nokia",3;"Samsung",4;"Sony Erickson",5;"Sprint",6},2,0) -> 6 | H191: Student 187 | I191: Poor | J191: =VLOOKUP(I191,{"Excellent",4;"Poor",1;"Good",3;"OK",2},2,0) -> 1 | O191: 34 | P191: 1.111111111 | X191: 274.2611111
A192: Student 188 | B192: Motorola | C192: =VLOOKUP(B192,{"iPhone",1;"Motorola",2;"Nokia",3;"Samsung",4;"Sony Erickson",5;"Sprint",6},2,0) -> 2 | H192: Student 188 | I192: Poor | J192: =VLOOKUP(I192,{"Excellent",4;"Poor",1;"Good",3;"OK",2},2,0) -> 1 | O192: 33 | P192: 0.5555555556 | X192: 273.7055556
A193: Student 189 | B193: iPhone | C193: =VLOOKUP(B193,{"iPhone",1;"Motorola",2;"Nokia",3;"Samsung",4;"Sony Erickson",5;"Sprint",6},2,0) -> 1 | H193: Student 189 | I193: Good | J193: =VLOOKUP(I193,{"Excellent",4;"Poor",1;"Good",3;"OK",2},2,0) -> 3 | O193: 32 | P193: 0 | X193: 273.15
A194: Student 190 | B194: iPhone | C194: =VLOOKUP(B194,{"iPhone",1;"Motorola",2;"Nokia",3;"Samsung",4;"Sony Erickson",5;"Sprint",6},2,0) -> 1 | H194: Student 190 | I194: Good | J194: =VLOOKUP(I194,{"Excellent",4;"Poor",1;"Good",3;"OK",2},2,0) -> 3 | O194: 31 | P194: -0.5555555556 | X194: 272.5944444
A195: Student 191 | B195: iPhone | C195: =VLOOKUP(B195,{"iPhone",1;"Motorola",2;"Nokia",3;"Samsung",4;"Sony Erickson",5;"Sprint",6},2,0) -> 1 | H195: Student 191 | I195: OK | J195: =VLOOKUP(I195,{"Excellent",4;"Poor",1;"Good",3;"OK",2},2,0) -> 2 | O195: 30 | P195: -1.111111111 | X195: 272.0388889
A196: Student 192 | B196: Sony Erickson | C196: =VLOOKUP(B196,{"iPhone",1;"Motorola",2;"Nokia",3;"Samsung",4;"Sony Erickson",5;"Sprint",6},2,0) -> 5 | H196: Student 192 | I196: Good | J196: =VLOOKUP(I196,{"Excellent",4;"Poor",1;"Good",3;"OK",2},2,0) -> 3 | O196: 29 | P196: -1.666666667 | X196: 271.4833333
A197: Student 193 | B197: iPhone | C197: =VLOOKUP(B197,{"iPhone",1;"Motorola",2;"Nokia",3;"Samsung",4;"Sony Erickson",5;"Sprint",6},2,0) -> 1 | H197: Student 193 | I197: Poor | J197: =VLOOKUP(I197,{"Excellent",4;"Poor",1;"Good",3;"OK",2},2,0) -> 1 | O197: 28 | P197: =CONVERT(O197,"F","C") -> -2.222222222 | X197: 270.9277778
A198: Student 194 | B198: Motorola | C198: =VLOOKUP(B198,{"iPhone",1;"Motorola",2;"Nokia",3;"Samsung",4;"Sony Erickson",5;"Sprint",6},2,0) -> 2 | H198: Student 194 | I198: OK | J198: =VLOOKUP(I198,{"Excellent",4;"Poor",1;"Good",3;"OK",2},2,0) -> 2 | O198: 27 | P198: -2.777777778 | X198: =CONVERT(O198,"F","K") -> 270.3722222
A199: Student 195 | B199: iPhone | C199: =VLOOKUP(B199,{"iPhone",1;"Motorola",2;"Nokia",3;"Samsung",4;"Sony Erickson",5;"Sprint",6},2,0) -> 1 | H199: Student 195 | I199: Good | J199: =VLOOKUP(I199,{"Excellent",4;"Poor",1;"Good",3;"OK",2},2,0) -> 3 | O199: 26 | P199: -3.333333333 | X199: 269.8166667
A200: Student 196 | B200: Nokia | C200: =VLOOKUP(B200,{"iPhone",1;"Motorola",2;"Nokia",3;"Samsung",4;"Sony Erickson",5;"Sprint",6},2,0) -> 3 | H200: Student 196 | I200: Poor | J200: =VLOOKUP(I200,{"Excellent",4;"Poor",1;"Good",3;"OK",2},2,0) -> 1 | O200: 25 | P200: -3.888888889 | X200: 269.2611111
A201: Student 197 | B201: Sony Erickson | C201: =VLOOKUP(B201,{"iPhone",1;"Motorola",2;"Nokia",3;"Samsung",4;"Sony Erickson",5;"Sprint",6},2,0) -> 5 | H201: Student 197 | I201: OK | J201: =VLOOKUP(I201,{"Excellent",4;"Poor",1;"Good",3;"OK",2},2,0) -> 2 | O201: 24 | P201: -4.444444444 | X201: 268.7055556
... 484 more rows

Sheet SofM-2 (an)
A1: Nominal | B1: When a variable (field) uses a category, label, or name to identify an attribute or characteristic of an element. There is no order or rank to the categories. You usually count how many are in each category. If you use a number as a category label, you cannot do arithmetic (+, -, *. /, ^) on it - you can only count. | H1: Ordinal | I1: When a variable (field) uses a category, label, or name to identify an attribute or characteristic of an element. There is an order or rank to the categories, but you do not know the distance between each ranked category. You usually count how many are in each category. In some cases when a number is used to represent the category, you can calculate an average. | O1: Interval | P1: The numeric data is ranked or ordered and has a fixed unit between each rank. Interval data is usually a scale such as temperature or some tests like IQ or SAT. If zero is in the scale, it is just a point on the scale and zero does not indicate that nothing exists. You can perform subtraction to see the difference between two numbers and you can calculate an average, but the ratio of two numbers (division) not meaningful (like to calculate % change). | X1: Ratio | Y1: The numeric data is ranked or ordered and has a fixed unit between each rank and zero means that nothing exists and division (ratio) is okay (like to calculate % change). | AJ1: interval | AM1: interval
A2: Categorical Data (Variable). Categories, labels or names are used to identify an attribute or characteristic of an element. Nominal or Ordinal. Non-numeric or numeric. Most of the time you are limited to counting. | O2: Quantitative Data (Variable). A number that tells us how much or how many. | AJ2: 300 | AM2: 1000
A4: Student | B4: Phone Type | C4: Phone Type No. | E4: Phone Type | F4: Count of Phone Type | H4: Student | I4: Rate Instructor | J4: Rate Instructor | L4: Rate Instructor | M4: Frequency (Count) | O4: Fahrenheit | P4: Celsius | R4: Student | S4: SAT scores | U4: Category | V4: Frequency (Count) | X4: Kelvin | Z4: Customer Name | AA4: Amount in Bank | AC4: Category | AD4: Frequency (Count) | AI4: Lower | AJ4: Upper | AL4: Lower | AM4: Upper
A5: Student 01 | B5: Motorola | C5: =VLOOKUP(B5,{"iPhone",1;"Motorola",2;"Nokia",3;"Samsung",4;"Sony Erickson",5;"Sprint",6},2,0) -> 2 | E5: iPhone | F5: 104 | H5: Student 01 | I5: OK | J5: =VLOOKUP(I5,{"Excellent",4;"Poor",1;"Good",3;"OK",2},2,0) -> 2 | L5: Excellent | M5: =COUNTIFS($I$5:$I$389,L5) -> 56 | O5: 220 | P5: =CONVERT(O5,"F","C") -> 104.4444444 | R5: Student 1 | S5: 1501 | U5: =AI5&" up tp "&AJ5 -> 600 up tp 900 | V5: =COUNTIFS($S$5:$S$17,">="&AI5,$S$5:$S$17,"<"&AJ5) -> 0 | X5: =CONVERT(O5,"F","K") -> 377.5944444 | Z5: Joe | AA5: 0 | AC5: =AL5&" up tp "&AM5 -> 0 up tp 1000 | AD5: =COUNTIFS($AA$5:$AA$14,">="&AL5,$AA$5:$AA$14,"<"&AM5) -> 5 | AI5: 600 | AJ5: =AI5+$AJ$2 -> 900 | AL5: 0 | AM5: =AL5+$AM$2 -> 1000
A6: Student 02 | B6: Motorola | C6: =VLOOKUP(B6,{"iPhone",1;"Motorola",2;"Nokia",3;"Samsung",4;"Sony Erickson",5;"Sprint",6},2,0) -> 2 | E6: Motorola | F6: 52 | H6: Student 02 | I6: Poor | J6: =VLOOKUP(I6,{"Excellent",4;"Poor",1;"Good",3;"OK",2},2,0) -> 1 | L6: Good | M6: =COUNTIFS($I$5:$I$389,L6) -> 47 | O6: 219 | P6: 103.8888889 | R6: Student 2 | S6: 1499 | U6: 900 up tp 1200 | V6: 6 | X6: =CONVERT(O6,"F","K") -> 377.0388889 | Z6: Sioux | AA6: 500 | AC6: =AL6&" up tp "&AM6 -> 1000 up tp 2000 | AD6: =COUNTIFS($AA$5:$AA$14,">="&AL6,$AA$5:$AA$14,"<"&AM6) -> 1 | AI6: =AJ5 -> 900 | AJ6: 1200 | AL6: =AM5 -> 1000 | AM6: =AL6+$AM$2 -> 2000
A7: Student 03 | B7: Samsung | C7: =VLOOKUP(B7,{"iPhone",1;"Motorola",2;"Nokia",3;"Samsung",4;"Sony Erickson",5;"Sprint",6},2,0) -> 4 | E7: Nokia | F7: 89 | H7: Student 03 | I7: Good | J7: =VLOOKUP(I7,{"Excellent",4;"Poor",1;"Good",3;"OK",2},2,0) -> 3 | L7: OK | M7: 105 | O7: 218 | P7: 103.3333333 | R7: Student 3 | S7: 1018 | U7: 1200 up tp 1500 | V7: 1 | X7: 376.4833333 | Z7: Dean | AA7: 4589.7 | AC7: 2000 up tp 3000 | AD7: 1 | AI7: =AJ6 -> 1200 | AJ7: 1500 | AL7: =AM6 -> 2000 | AM7: =AL7+$AM$2 -> 3000
A8: Student 04 | B8: Nokia | C8: =VLOOKUP(B8,{"iPhone",1;"Motorola",2;"Nokia",3;"Samsung",4;"Sony Erickson",5;"Sprint",6},2,0) -> 3 | E8: Samsung | F8: 50 | H8: Student 04 | I8: Good | J8: =VLOOKUP(I8,{"Excellent",4;"Poor",1;"Good",3;"OK",2},2,0) -> 3 | L8: Poor | M8: 177 | O8: 217 | P8: 102.7777778 | R8: Student 4 | S8: 1718 | U8: 1500 up tp 1800 | V8: 3 | X8: 375.9277778 | Z8: Joe | AA8: 25.25 | AC8: 3000 up tp 4000 | AD8: 0 | AI8: 1500 | AJ8: 1800 | AL8: 3000 | AM8: 4000
A9: Student 05 | B9: Motorola | C9: =VLOOKUP(B9,{"iPhone",1;"Motorola",2;"Nokia",3;"Samsung",4;"Sony Erickson",5;"Sprint",6},2,0) -> 2 | E9: Sony Erickson | F9: 42 | H9: Student 05 | I9: OK | J9: =VLOOKUP(I9,{"Excellent",4;"Poor",1;"Good",3;"OK",2},2,0) -> 2 | O9: 216 | P9: 102.2222222 | R9: Student 5 | S9: 1953 | U9: 1800 up tp 2100 | V9: 2 | X9: 375.3722222 | Z9: Tina | AA9: 158 | AC9: 4000 up tp 5000 | AD9: 2 | AI9: 1800 | AJ9: 2100 | AL9: 4000 | AM9: 5000
A10: Student 06 | B10: Nokia | C10: =VLOOKUP(B10,{"iPhone",1;"Motorola",2;"Nokia",3;"Samsung",4;"Sony Erickson",5;"Sprint",6},2,0) -> 3 | E10: Sprint | F10: 48 | H10: Student 06 | I10: Poor | J10: =VLOOKUP(I10,{"Excellent",4;"Poor",1;"Good",3;"OK",2},2,0) -> 1 | L10: Rate Instructor | M10: Frequency (Count) | O10: 215 | P10: 101.6666667 | R10: Student 6 | S10: 904 | U10: 2100 up tp 2400 | V10: 1 | X10: 374.8166667 | Z10: Amy | AA10: 4525.5 | AC10: 5000 up tp 6000 | AD10: 1 | AI10: 2100 | AJ10: 2400 | AL10: 5000 | AM10: 6000
A11: Student 07 | B11: Sprint | C11: =VLOOKUP(B11,{"iPhone",1;"Motorola",2;"Nokia",3;"Samsung",4;"Sony Erickson",5;"Sprint",6},2,0) -> 6 | E11: Grand Total | F11: 385 | H11: Student 07 | I11: Poor | J11: =VLOOKUP(I11,{"Excellent",4;"Poor",1;"Good",3;"OK",2},2,0) -> 1 | L11: 4 | M11: =COUNTIFS($J$5:$J$389,L11) -> 56 | O11: 214 | P11: 101.1111111 | R11: Student 7 | S11: 1697 | X11: 374.2611111 | Z11: Ming | AA11: 526.5
A12: Student 08 | B12: iPhone | C12: =VLOOKUP(B12,{"iPhone",1;"Motorola",2;"Nokia",3;"Samsung",4;"Sony Erickson",5;"Sprint",6},2,0) -> 1 | H12: Student 08 | I12: OK | J12: =VLOOKUP(I12,{"Excellent",4;"Poor",1;"Good",3;"OK",2},2,0) -> 2 | L12: 3 | M12: =COUNTIFS($J$5:$J$389,L12) -> 47 | O12: 213 | P12: 100.5555556 | R12: Student 8 | S12: 959 | U12: Average | V12: =AVERAGE(S5:S17) -> 1415.461538 | X12: 373.7055556 | Z12: Pham | AA12: 2258.2 | AC12: Average | AD12: =AVERAGE(AA5:AA14) -> 1931.05
A13: Student 09 | B13: Motorola | C13: =VLOOKUP(B13,{"iPhone",1;"Motorola",2;"Nokia",3;"Samsung",4;"Sony Erickson",5;"Sprint",6},2,0) -> 2 | E13: Phone Type No. | F13: Count of Phone Type No. | H13: Student 09 | I13: Poor | J13: =VLOOKUP(I13,{"Excellent",4;"Poor",1;"Good",3;"OK",2},2,0) -> 1 | L13: 2 | M13: 105 | O13: 212 | P13: 100 | R13: Student 9 | S13: 960 | X13: 373.15 | Z13: Phil | AA13: =AA12/2 -> 1129.1
A14: Student 10 | B14: iPhone | C14: =VLOOKUP(B14,{"iPhone",1;"Motorola",2;"Nokia",3;"Samsung",4;"Sony Erickson",5;"Sprint",6},2,0) -> 1 | E14: 1 | F14: 104 | H14: Student 10 | I14: Poor | J14: =VLOOKUP(I14,{"Excellent",4;"Poor",1;"Good",3;"OK",2},2,0) -> 1 | L14: 1 | M14: 177 | O14: 211 | P14: 99.44444444 | R14: Student 10 | S14: 1808 | U14: Student 6 | V14: =VLOOKUP(U14,$R$5:$S$17,2,0) -> 904 | X14: 372.5944444 | Z14: Shelia | AA14: 5598.25 | AC14: =Z13 -> Phil | AD14: =VLOOKUP(AC14,$Z$5:$AA$14,2,0) -> 1129.1
A15: Student 11 | B15: Samsung | C15: =VLOOKUP(B15,{"iPhone",1;"Motorola",2;"Nokia",3;"Samsung",4;"Sony Erickson",5;"Sprint",6},2,0) -> 4 | E15: 2 | F15: 52 | H15: Student 11 | I15: Poor | J15: =VLOOKUP(I15,{"Excellent",4;"Poor",1;"Good",3;"OK",2},2,0) -> 1 | O15: 210 | P15: 98.88888889 | R15: Student 11 | S15: 2183 | U15: Student 10 | V15: 1808 | X15: 372.0388889 | AC15: =Z12 -> Pham | AD15: =VLOOKUP(AC15,$Z$5:$AA$14,2,0) -> 2258.2
A16: Student 12 | B16: Motorola | C16: =VLOOKUP(B16,{"iPhone",1;"Motorola",2;"Nokia",3;"Samsung",4;"Sony Erickson",5;"Sprint",6},2,0) -> 2 | E16: 3 | F16: 89 | H16: Student 12 | I16: OK | J16: =VLOOKUP(I16,{"Excellent",4;"Poor",1;"Good",3;"OK",2},2,0) -> 2 | L16: Average | M16: =AVERAGE(J5:J389) -> 1.953246753 | O16: 209 | P16: 98.33333333 | R16: Student 12 | S16: 1124 | U16: Ratio | V16: =V15/V14 -> 2 | X16: 371.4833333 | AC16: Ratio | AD16: =AD15/AD14 -> 2
A17: Student 13 | B17: Samsung | C17: =VLOOKUP(B17,{"iPhone",1;"Motorola",2;"Nokia",3;"Samsung",4;"Sony Erickson",5;"Sprint",6},2,0) -> 4 | E17: 4 | F17: 50 | H17: Student 13 | I17: Excellent | J17: =VLOOKUP(I17,{"Excellent",4;"Poor",1;"Good",3;"OK",2},2,0) -> 4 | O17: 208 | P17: 97.77777778 | R17: Student 13 | S17: 1077 | U17: % Change | V17: =V15/V14-1 -> 1 | X17: 370.9277778 | AC17: % Change | AD17: =AD15/AD14-1 -> 1
A18: Student 14 | B18: iPhone | C18: =VLOOKUP(B18,{"iPhone",1;"Motorola",2;"Nokia",3;"Samsung",4;"Sony Erickson",5;"Sprint",6},2,0) -> 1 | E18: 5 | F18: 42 | H18: Student 14 | I18: Excellent | J18: =VLOOKUP(I18,{"Excellent",4;"Poor",1;"Good",3;"OK",2},2,0) -> 4 | O18: 207 | P18: 97.22222222 | U18: =V15&"/"&V14&" does not tell us that "&U15&" did twice as good as "&U14&"." -> 1808/904 does not tell us that Student 10 did twice as good as Student 6. | X18: 370.3722222 | AC18: =AD15&"/"&AD14&" tells us that "&AC15&" has twice as much as "&AC14&"." -> 2258.2/1129.1 tells us that Pham has twice as much as Phil.
A19: Student 15 | B19: Nokia | C19: =VLOOKUP(B19,{"iPhone",1;"Motorola",2;"Nokia",3;"Samsung",4;"Sony Erickson",5;"Sprint",6},2,0) -> 3 | E19: 6 | F19: 48 | H19: Student 15 | I19: Poor | J19: =VLOOKUP(I19,{"Excellent",4;"Poor",1;"Good",3;"OK",2},2,0) -> 1 | O19: 206 | P19: 96.66666667 | X19: 369.8166667
A20: Student 16 | B20: Nokia | C20: =VLOOKUP(B20,{"iPhone",1;"Motorola",2;"Nokia",3;"Samsung",4;"Sony Erickson",5;"Sprint",6},2,0) -> 3 | E20: Grand Total | F20: 385 | H20: Student 16 | I20: Poor | J20: =VLOOKUP(I20,{"Excellent",4;"Poor",1;"Good",3;"OK",2},2,0) -> 1 | O20: 205 | P20: 96.11111111 | X20: 369.2611111
A21: Student 17 | B21: Sprint | C21: =VLOOKUP(B21,{"iPhone",1;"Motorola",2;"Nokia",3;"Samsung",4;"Sony Erickson",5;"Sprint",6},2,0) -> 6 | H21: Student 17 | I21: Good | J21: =VLOOKUP(I21,{"Excellent",4;"Poor",1;"Good",3;"OK",2},2,0) -> 3 | O21: 204 | P21: 95.55555556 | U21: Ratio meaningless because zero does not mean that nothing exists. | X21: 368.7055556 | AC21: Ratio meaningful because zero means that nothing exists.
A22: Student 18 | B22: Sony Erickson | C22: =VLOOKUP(B22,{"iPhone",1;"Motorola",2;"Nokia",3;"Samsung",4;"Sony Erickson",5;"Sprint",6},2,0) -> 5 | H22: Student 18 | I22: Poor | J22: =VLOOKUP(I22,{"Excellent",4;"Poor",1;"Good",3;"OK",2},2,0) -> 1 | O22: 203 | P22: 95 | X22: 368.15
A23: Student 19 | B23: Nokia | C23: =VLOOKUP(B23,{"iPhone",1;"Motorola",2;"Nokia",3;"Samsung",4;"Sony Erickson",5;"Sprint",6},2,0) -> 3 | H23: Student 19 | I23: Excellent | J23: =VLOOKUP(I23,{"Excellent",4;"Poor",1;"Good",3;"OK",2},2,0) -> 4 | O23: 202 | P23: 94.44444444 | X23: 367.5944444
A24: Student 20 | B24: Nokia | C24: =VLOOKUP(B24,{"iPhone",1;"Motorola",2;"Nokia",3;"Samsung",4;"Sony Erickson",5;"Sprint",6},2,0) -> 3 | H24: Student 20 | I24: Poor | J24: =VLOOKUP(I24,{"Excellent",4;"Poor",1;"Good",3;"OK",2},2,0) -> 1 | O24: 201 | P24: 93.88888889 | X24: 367.0388889
A25: Student 21 | B25: iPhone | C25: =VLOOKUP(B25,{"iPhone",1;"Motorola",2;"Nokia",3;"Samsung",4;"Sony Erickson",5;"Sprint",6},2,0) -> 1 | H25: Student 21 | I25: OK | J25: =VLOOKUP(I25,{"Excellent",4;"Poor",1;"Good",3;"OK",2},2,0) -> 2 | O25: 200 | P25: 93.33333333 | X25: 366.4833333
A26: Student 22 | B26: iPhone | C26: =VLOOKUP(B26,{"iPhone",1;"Motorola",2;"Nokia",3;"Samsung",4;"Sony Erickson",5;"Sprint",6},2,0) -> 1 | H26: Student 22 | I26: OK | J26: =VLOOKUP(I26,{"Excellent",4;"Poor",1;"Good",3;"OK",2},2,0) -> 2 | O26: 199 | P26: 92.77777778 | X26: 365.9277778
A27: Student 23 | B27: Nokia | C27: =VLOOKUP(B27,{"iPhone",1;"Motorola",2;"Nokia",3;"Samsung",4;"Sony Erickson",5;"Sprint",6},2,0) -> 3 | H27: Student 23 | I27: OK | J27: =VLOOKUP(I27,{"Excellent",4;"Poor",1;"Good",3;"OK",2},2,0) -> 2 | O27: 198 | P27: 92.22222222 | X27: 365.3722222
A28: Student 24 | B28: Samsung | C28: =VLOOKUP(B28,{"iPhone",1;"Motorola",2;"Nokia",3;"Samsung",4;"Sony Erickson",5;"Sprint",6},2,0) -> 4 | H28: Student 24 | I28: Excellent | J28: =VLOOKUP(I28,{"Excellent",4;"Poor",1;"Good",3;"OK",2},2,0) -> 4 | O28: 197 | P28: 91.66666667 | X28: 364.8166667
A29: Student 25 | B29: iPhone | C29: =VLOOKUP(B29,{"iPhone",1;"Motorola",2;"Nokia",3;"Samsung",4;"Sony Erickson",5;"Sprint",6},2,0) -> 1 | H29: Student 25 | I29: OK | J29: =VLOOKUP(I29,{"Excellent",4;"Poor",1;"Good",3;"OK",2},2,0) -> 2 | O29: 196 | P29: 91.11111111 | X29: 364.2611111
A30: Student 26 | B30: iPhone | C30: =VLOOKUP(B30,{"iPhone",1;"Motorola",2;"Nokia",3;"Samsung",4;"Sony Erickson",5;"Sprint",6},2,0) -> 1 | H30: Student 26 | I30: OK | J30: =VLOOKUP(I30,{"Excellent",4;"Poor",1;"Good",3;"OK",2},2,0) -> 2 | O30: 195 | P30: 90.55555556 | X30: 363.7055556
A31: Student 27 | B31: iPhone | C31: =VLOOKUP(B31,{"iPhone",1;"Motorola",2;"Nokia",3;"Samsung",4;"Sony Erickson",5;"Sprint",6},2,0) -> 1 | H31: Student 27 | I31: Poor | J31: =VLOOKUP(I31,{"Excellent",4;"Poor",1;"Good",3;"OK",2},2,0) -> 1 | O31: 194 | P31: 90 | X31: 363.15
A32: Student 28 | B32: Sprint | C32: =VLOOKUP(B32,{"iPhone",1;"Motorola",2;"Nokia",3;"Samsung",4;"Sony Erickson",5;"Sprint",6},2,0) -> 6 | H32: Student 28 | I32: OK | J32: =VLOOKUP(I32,{"Excellent",4;"Poor",1;"Good",3;"OK",2},2,0) -> 2 | O32: 193 | P32: 89.44444444 | X32: 362.5944444
A33: Student 29 | B33: iPhone | C33: =VLOOKUP(B33,{"iPhone",1;"Motorola",2;"Nokia",3;"Samsung",4;"Sony Erickson",5;"Sprint",6},2,0) -> 1 | H33: Student 29 | I33: Good | J33: =VLOOKUP(I33,{"Excellent",4;"Poor",1;"Good",3;"OK",2},2,0) -> 3 | O33: 192 | P33: 88.88888889 | X33: 362.0388889
A34: Student 30 | B34: Sony Erickson | C34: =VLOOKUP(B34,{"iPhone",1;"Motorola",2;"Nokia",3;"Samsung",4;"Sony Erickson",5;"Sprint",6},2,0) -> 5 | H34: Student 30 | I34: Excellent | J34: =VLOOKUP(I34,{"Excellent",4;"Poor",1;"Good",3;"OK",2},2,0) -> 4 | O34: 191 | P34: 88.33333333 | X34: 361.4833333
A35: Student 31 | B35: Samsung | C35: =VLOOKUP(B35,{"iPhone",1;"Motorola",2;"Nokia",3;"Samsung",4;"Sony Erickson",5;"Sprint",6},2,0) -> 4 | H35: Student 31 | I35: Excellent | J35: =VLOOKUP(I35,{"Excellent",4;"Poor",1;"Good",3;"OK",2},2,0) -> 4 | O35: 190 | P35: 87.77777778 | X35: 360.9277778
A36: Student 32 | B36: Nokia | C36: =VLOOKUP(B36,{"iPhone",1;"Motorola",2;"Nokia",3;"Samsung",4;"Sony Erickson",5;"Sprint",6},2,0) -> 3 | H36: Student 32 | I36: OK | J36: =VLOOKUP(I36,{"Excellent",4;"Poor",1;"Good",3;"OK",2},2,0) -> 2 | O36: 189 | P36: 87.22222222 | X36: 360.3722222
A37: Student 33 | B37: iPhone | C37: =VLOOKUP(B37,{"iPhone",1;"Motorola",2;"Nokia",3;"Samsung",4;"Sony Erickson",5;"Sprint",6},2,0) -> 1 | H37: Student 33 | I37: Good | J37: =VLOOKUP(I37,{"Excellent",4;"Poor",1;"Good",3;"OK",2},2,0) -> 3 | O37: 188 | P37: 86.66666667 | X37: 359.8166667
A38: Student 34 | B38: Nokia | C38: =VLOOKUP(B38,{"iPhone",1;"Motorola",2;"Nokia",3;"Samsung",4;"Sony Erickson",5;"Sprint",6},2,0) -> 3 | H38: Student 34 | I38: Poor | J38: =VLOOKUP(I38,{"Excellent",4;"Poor",1;"Good",3;"OK",2},2,0) -> 1 | O38: 187 | P38: 86.11111111 | X38: 359.2611111
A39: Student 35 | B39: iPhone | C39: =VLOOKUP(B39,{"iPhone",1;"Motorola",2;"Nokia",3;"Samsung",4;"Sony Erickson",5;"Sprint",6},2,0) -> 1 | H39: Student 35 | I39: Poor | J39: =VLOOKUP(I39,{"Excellent",4;"Poor",1;"Good",3;"OK",2},2,0) -> 1 | O39: 186 | P39: 85.55555556 | X39: 358.7055556
A40: Student 36 | B40: Samsung | C40: =VLOOKUP(B40,{"iPhone",1;"Motorola",2;"Nokia",3;"Samsung",4;"Sony Erickson",5;"Sprint",6},2,0) -> 4 | H40: Student 36 | I40: Poor | J40: =VLOOKUP(I40,{"Excellent",4;"Poor",1;"Good",3;"OK",2},2,0) -> 1 | O40: 185 | P40: 85 | X40: 358.15
A41: Student 37 | B41: Sony Erickson | C41: =VLOOKUP(B41,{"iPhone",1;"Motorola",2;"Nokia",3;"Samsung",4;"Sony Erickson",5;"Sprint",6},2,0) -> 5 | H41: Student 37 | I41: Excellent | J41: =VLOOKUP(I41,{"Excellent",4;"Poor",1;"Good",3;"OK",2},2,0) -> 4 | O41: 184 | P41: 84.44444444 | X41: 357.5944444
A42: Student 38 | B42: iPhone | C42: =VLOOKUP(B42,{"iPhone",1;"Motorola",2;"Nokia",3;"Samsung",4;"Sony Erickson",5;"Sprint",6},2,0) -> 1 | H42: Student 38 | I42: Poor | J42: =VLOOKUP(I42,{"Excellent",4;"Poor",1;"Good",3;"OK",2},2,0) -> 1 | O42: 183 | P42: 83.88888889 | X42: 357.0388889
A43: Student 39 | B43: Sony Erickson | C43: =VLOOKUP(B43,{"iPhone",1;"Motorola",2;"Nokia",3;"Samsung",4;"Sony Erickson",5;"Sprint",6},2,0) -> 5 | H43: Student 39 | I43: OK | J43: =VLOOKUP(I43,{"Excellent",4;"Poor",1;"Good",3;"OK",2},2,0) -> 2 | O43: 182 | P43: 83.33333333 | X43: 356.4833333
A44: Student 40 | B44: Nokia | C44: =VLOOKUP(B44,{"iPhone",1;"Motorola",2;"Nokia",3;"Samsung",4;"Sony Erickson",5;"Sprint",6},2,0) -> 3 | H44: Student 40 | I44: Poor | J44: =VLOOKUP(I44,{"Excellent",4;"Poor",1;"Good",3;"OK",2},2,0) -> 1 | O44: 181 | P44: 82.77777778 | X44: 355.9277778
A45: Student 41 | B45: Nokia | C45: =VLOOKUP(B45,{"iPhone",1;"Motorola",2;"Nokia",3;"Samsung",4;"Sony Erickson",5;"Sprint",6},2,0) -> 3 | H45: Student 41 | I45: Excellent | J45: =VLOOKUP(I45,{"Excellent",4;"Poor",1;"Good",3;"OK",2},2,0) -> 4 | O45: 180 | P45: 82.22222222 | X45: 355.3722222
A46: Student 42 | B46: Sony Erickson | C46: =VLOOKUP(B46,{"iPhone",1;"Motorola",2;"Nokia",3;"Samsung",4;"Sony Erickson",5;"Sprint",6},2,0) -> 5 | H46: Student 42 | I46: OK | J46: =VLOOKUP(I46,{"Excellent",4;"Poor",1;"Good",3;"OK",2},2,0) -> 2 | O46: 179 | P46: 81.66666667 | X46: 354.8166667
A47: Student 43 | B47: Sprint | C47: =VLOOKUP(B47,{"iPhone",1;"Motorola",2;"Nokia",3;"Samsung",4;"Sony Erickson",5;"Sprint",6},2,0) -> 6 | H47: Student 43 | I47: OK | J47: =VLOOKUP(I47,{"Excellent",4;"Poor",1;"Good",3;"OK",2},2,0) -> 2 | O47: 178 | P47: 81.11111111 | X47: 354.2611111
A48: Student 44 | B48: Nokia | C48: =VLOOKUP(B48,{"iPhone",1;"Motorola",2;"Nokia",3;"Samsung",4;"Sony Erickson",5;"Sprint",6},2,0) -> 3 | H48: Student 44 | I48: Poor | J48: =VLOOKUP(I48,{"Excellent",4;"Poor",1;"Good",3;"OK",2},2,0) -> 1 | O48: 177 | P48: 80.55555556 | X48: 353.7055556
A49: Student 45 | B49: Nokia | C49: =VLOOKUP(B49,{"iPhone",1;"Motorola",2;"Nokia",3;"Samsung",4;"Sony Erickson",5;"Sprint",6},2,0) -> 3 | H49: Student 45 | I49: Poor | J49: =VLOOKUP(I49,{"Excellent",4;"Poor",1;"Good",3;"OK",2},2,0) -> 1 | O49: 176 | P49: 80 | X49: 353.15
A50: Student 46 | B50: Motorola | C50: =VLOOKUP(B50,{"iPhone",1;"Motorola",2;"Nokia",3;"Samsung",4;"Sony Erickson",5;"Sprint",6},2,0) -> 2 | H50: Student 46 | I50: Poor | J50: =VLOOKUP(I50,{"Excellent",4;"Poor",1;"Good",3;"OK",2},2,0) -> 1 | O50: 175 | P50: 79.44444444 | X50: 352.5944444
A51: Student 47 | B51: Samsung | C51: =VLOOKUP(B51,{"iPhone",1;"Motorola",2;"Nokia",3;"Samsung",4;"Sony Erickson",5;"Sprint",6},2,0) -> 4 | H51: Student 47 | I51: OK | J51: =VLOOKUP(I51,{"Excellent",4;"Poor",1;"Good",3;"OK",2},2,0) -> 2 | O51: 174 | P51: 78.88888889 | X51: 352.0388889
A52: Student 48 | B52: iPhone | C52: =VLOOKUP(B52,{"iPhone",1;"Motorola",2;"Nokia",3;"Samsung",4;"Sony Erickson",5;"Sprint",6},2,0) -> 1 | H52: Student 48 | I52: Good | J52: =VLOOKUP(I52,{"Excellent",4;"Poor",1;"Good",3;"OK",2},2,0) -> 3 | O52: 173 | P52: 78.33333333 | X52: 351.4833333
A53: Student 49 | B53: Nokia | C53: =VLOOKUP(B53,{"iPhone",1;"Motorola",2;"Nokia",3;"Samsung",4;"Sony Erickson",5;"Sprint",6},2,0) -> 3 | H53: Student 49 | I53: Good | J53: =VLOOKUP(I53,{"Excellent",4;"Poor",1;"Good",3;"OK",2},2,0) -> 3 | O53: 172 | P53: 77.77777778 | X53: 350.9277778
A54: Student 50 | B54: Nokia | C54: =VLOOKUP(B54,{"iPhone",1;"Motorola",2;"Nokia",3;"Samsung",4;"Sony Erickson",5;"Sprint",6},2,0) -> 3 | H54: Student 50 | I54: OK | J54: =VLOOKUP(I54,{"Excellent",4;"Poor",1;"Good",3;"OK",2},2,0) -> 2 | O54: 171 | P54: 77.22222222 | X54: 350.3722222
A55: Student 51 | B55: Sprint | C55: =VLOOKUP(B55,{"iPhone",1;"Motorola",2;"Nokia",3;"Samsung",4;"Sony Erickson",5;"Sprint",6},2,0) -> 6 | H55: Student 51 | I55: Excellent | J55: =VLOOKUP(I55,{"Excellent",4;"Poor",1;"Good",3;"OK",2},2,0) -> 4 | O55: 170 | P55: 76.66666667 | X55: 349.8166667
A56: Student 52 | B56: Nokia | C56: =VLOOKUP(B56,{"iPhone",1;"Motorola",2;"Nokia",3;"Samsung",4;"Sony Erickson",5;"Sprint",6},2,0) -> 3 | H56: Student 52 | I56: Poor | J56: =VLOOKUP(I56,{"Excellent",4;"Poor",1;"Good",3;"OK",2},2,0) -> 1 | O56: 169 | P56: 76.11111111 | X56: 349.2611111
A57: Student 53 | B57: Nokia | C57: =VLOOKUP(B57,{"iPhone",1;"Motorola",2;"Nokia",3;"Samsung",4;"Sony Erickson",5;"Sprint",6},2,0) -> 3 | H57: Student 53 | I57: Excellent | J57: =VLOOKUP(I57,{"Excellent",4;"Poor",1;"Good",3;"OK",2},2,0) -> 4 | O57: 168 | P57: 75.55555556 | X57: 348.7055556
A58: Student 54 | B58: Sprint | C58: =VLOOKUP(B58,{"iPhone",1;"Motorola",2;"Nokia",3;"Samsung",4;"Sony Erickson",5;"Sprint",6},2,0) -> 6 | H58: Student 54 | I58: Good | J58: =VLOOKUP(I58,{"Excellent",4;"Poor",1;"Good",3;"OK",2},2,0) -> 3 | O58: 167 | P58: 75 | X58: 348.15
A59: Student 55 | B59: Sony Erickson | C59: =VLOOKUP(B59,{"iPhone",1;"Motorola",2;"Nokia",3;"Samsung",4;"Sony Erickson",5;"Sprint",6},2,0) -> 5 | H59: Student 55 | I59: Poor | J59: =VLOOKUP(I59,{"Excellent",4;"Poor",1;"Good",3;"OK",2},2,0) -> 1 | O59: 166 | P59: 74.44444444 | X59: 347.5944444
A60: Student 56 | B60: Nokia | C60: =VLOOKUP(B60,{"iPhone",1;"Motorola",2;"Nokia",3;"Samsung",4;"Sony Erickson",5;"Sprint",6},2,0) -> 3 | H60: Student 56 | I60: Poor | J60: =VLOOKUP(I60,{"Excellent",4;"Poor",1;"Good",3;"OK",2},2,0) -> 1 | O60: 165 | P60: 73.88888889 | X60: 347.0388889
A61: Student 57 | B61: iPhone | C61: =VLOOKUP(B61,{"iPhone",1;"Motorola",2;"Nokia",3;"Samsung",4;"Sony Erickson",5;"Sprint",6},2,0) -> 1 | H61: Student 57 | I61: Good | J61: =VLOOKUP(I61,{"Excellent",4;"Poor",1;"Good",3;"OK",2},2,0) -> 3 | O61: 164 | P61: 73.33333333 | X61: 346.4833333
A62: Student 58 | B62: Samsung | C62: =VLOOKUP(B62,{"iPhone",1;"Motorola",2;"Nokia",3;"Samsung",4;"Sony Erickson",5;"Sprint",6},2,0) -> 4 | H62: Student 58 | I62: Poor | J62: =VLOOKUP(I62,{"Excellent",4;"Poor",1;"Good",3;"OK",2},2,0) -> 1 | O62: 163 | P62: 72.77777778 | X62: 345.9277778
A63: Student 59 | B63: Motorola | C63: =VLOOKUP(B63,{"iPhone",1;"Motorola",2;"Nokia",3;"Samsung",4;"Sony Erickson",5;"Sprint",6},2,0) -> 2 | H63: Student 59 | I63: OK | J63: =VLOOKUP(I63,{"Excellent",4;"Poor",1;"Good",3;"OK",2},2,0) -> 2 | O63: 162 | P63: 72.22222222 | X63: 345.3722222
A64: Student 60 | B64: iPhone | C64: =VLOOKUP(B64,{"iPhone",1;"Motorola",2;"Nokia",3;"Samsung",4;"Sony Erickson",5;"Sprint",6},2,0) -> 1 | H64: Student 60 | I64: Poor | J64: =VLOOKUP(I64,{"Excellent",4;"Poor",1;"Good",3;"OK",2},2,0) -> 1 | O64: 161 | P64: 71.66666667 | X64: 344.8166667
A65: Student 61 | B65: Sony Erickson | C65: =VLOOKUP(B65,{"iPhone",1;"Motorola",2;"Nokia",3;"Samsung",4;"Sony Erickson",5;"Sprint",6},2,0) -> 5 | H65: Student 61 | I65: Poor | J65: =VLOOKUP(I65,{"Excellent",4;"Poor",1;"Good",3;"OK",2},2,0) -> 1 | O65: 160 | P65: 71.11111111 | X65: 344.2611111
A66: Student 62 | B66: Nokia | C66: =VLOOKUP(B66,{"iPhone",1;"Motorola",2;"Nokia",3;"Samsung",4;"Sony Erickson",5;"Sprint",6},2,0) -> 3 | H66: Student 62 | I66: OK | J66: =VLOOKUP(I66,{"Excellent",4;"Poor",1;"Good",3;"OK",2},2,0) -> 2 | O66: 159 | P66: 70.55555556 | X66: 343.7055556
A67: Student 63 | B67: Nokia | C67: =VLOOKUP(B67,{"iPhone",1;"Motorola",2;"Nokia",3;"Samsung",4;"Sony Erickson",5;"Sprint",6},2,0) -> 3 | H67: Student 63 | I67: Poor | J67: =VLOOKUP(I67,{"Excellent",4;"Poor",1;"Good",3;"OK",2},2,0) -> 1 | O67: 158 | P67: 70 | X67: 343.15
A68: Student 64 | B68: iPhone | C68: =VLOOKUP(B68,{"iPhone",1;"Motorola",2;"Nokia",3;"Samsung",4;"Sony Erickson",5;"Sprint",6},2,0) -> 1 | H68: Student 64 | I68: Poor | J68: =VLOOKUP(I68,{"Excellent",4;"Poor",1;"Good",3;"OK",2},2,0) -> 1 | O68: 157 | P68: 69.44444444 | X68: 342.5944444
A69: Student 65 | B69: iPhone | C69: =VLOOKUP(B69,{"iPhone",1;"Motorola",2;"Nokia",3;"Samsung",4;"Sony Erickson",5;"Sprint",6},2,0) -> 1 | H69: Student 65 | I69: Poor | J69: =VLOOKUP(I69,{"Excellent",4;"Poor",1;"Good",3;"OK",2},2,0) -> 1 | O69: 156 | P69: =CONVERT(O69,"F","C") -> 68.88888889 | X69: 342.0388889
A70: Student 66 | B70: iPhone | C70: =VLOOKUP(B70,{"iPhone",1;"Motorola",2;"Nokia",3;"Samsung",4;"Sony Erickson",5;"Sprint",6},2,0) -> 1 | H70: Student 66 | I70: Poor | J70: =VLOOKUP(I70,{"Excellent",4;"Poor",1;"Good",3;"OK",2},2,0) -> 1 | O70: 155 | P70: 68.33333333 | X70: =CONVERT(O70,"F","K") -> 341.4833333
A71: Student 67 | B71: iPhone | C71: =VLOOKUP(B71,{"iPhone",1;"Motorola",2;"Nokia",3;"Samsung",4;"Sony Erickson",5;"Sprint",6},2,0) -> 1 | H71: Student 67 | I71: OK | J71: =VLOOKUP(I71,{"Excellent",4;"Poor",1;"Good",3;"OK",2},2,0) -> 2 | O71: 154 | P71: 67.77777778 | X71: 340.9277778
A72: Student 68 | B72: Sprint | C72: =VLOOKUP(B72,{"iPhone",1;"Motorola",2;"Nokia",3;"Samsung",4;"Sony Erickson",5;"Sprint",6},2,0) -> 6 | H72: Student 68 | I72: Poor | J72: =VLOOKUP(I72,{"Excellent",4;"Poor",1;"Good",3;"OK",2},2,0) -> 1 | O72: 153 | P72: 67.22222222 | X72: 340.3722222
A73: Student 69 | B73: iPhone | C73: =VLOOKUP(B73,{"iPhone",1;"Motorola",2;"Nokia",3;"Samsung",4;"Sony Erickson",5;"Sprint",6},2,0) -> 1 | H73: Student 69 | I73: Poor | J73: =VLOOKUP(I73,{"Excellent",4;"Poor",1;"Good",3;"OK",2},2,0) -> 1 | O73: 152 | P73: 66.66666667 | X73: 339.8166667
A74: Student 70 | B74: Nokia | C74: =VLOOKUP(B74,{"iPhone",1;"Motorola",2;"Nokia",3;"Samsung",4;"Sony Erickson",5;"Sprint",6},2,0) -> 3 | H74: Student 70 | I74: Poor | J74: =VLOOKUP(I74,{"Excellent",4;"Poor",1;"Good",3;"OK",2},2,0) -> 1 | O74: 151 | P74: 66.11111111 | X74: 339.2611111
A75: Student 71 | B75: Motorola | C75: =VLOOKUP(B75,{"iPhone",1;"Motorola",2;"Nokia",3;"Samsung",4;"Sony Erickson",5;"Sprint",6},2,0) -> 2 | H75: Student 71 | I75: Poor | J75: =VLOOKUP(I75,{"Excellent",4;"Poor",1;"Good",3;"OK",2},2,0) -> 1 | O75: 150 | P75: 65.55555556 | X75: 338.7055556
A76: Student 72 | B76: Sprint | C76: =VLOOKUP(B76,{"iPhone",1;"Motorola",2;"Nokia",3;"Samsung",4;"Sony Erickson",5;"Sprint",6},2,0) -> 6 | H76: Student 72 | I76: Good | J76: =VLOOKUP(I76,{"Excellent",4;"Poor",1;"Good",3;"OK",2},2,0) -> 3 | O76: 149 | P76: 65 | X76: 338.15
A77: Student 73 | B77: iPhone | C77: =VLOOKUP(B77,{"iPhone",1;"Motorola",2;"Nokia",3;"Samsung",4;"Sony Erickson",5;"Sprint",6},2,0) -> 1 | H77: Student 73 | I77: OK | J77: =VLOOKUP(I77,{"Excellent",4;"Poor",1;"Good",3;"OK",2},2,0) -> 2 | O77: 148 | P77: 64.44444444 | X77: 337.5944444
A78: Student 74 | B78: Sony Erickson | C78: =VLOOKUP(B78,{"iPhone",1;"Motorola",2;"Nokia",3;"Samsung",4;"Sony Erickson",5;"Sprint",6},2,0) -> 5 | H78: Student 74 | I78: Excellent | J78: =VLOOKUP(I78,{"Excellent",4;"Poor",1;"Good",3;"OK",2},2,0) -> 4 | O78: 147 | P78: 63.88888889 | X78: 337.0388889
A79: Student 75 | B79: Nokia | C79: =VLOOKUP(B79,{"iPhone",1;"Motorola",2;"Nokia",3;"Samsung",4;"Sony Erickson",5;"Sprint",6},2,0) -> 3 | H79: Student 75 | I79: Poor | J79: =VLOOKUP(I79,{"Excellent",4;"Poor",1;"Good",3;"OK",2},2,0) -> 1 | O79: 146 | P79: 63.33333333 | X79: 336.4833333
A80: Student 76 | B80: Motorola | C80: =VLOOKUP(B80,{"iPhone",1;"Motorola",2;"Nokia",3;"Samsung",4;"Sony Erickson",5;"Sprint",6},2,0) -> 2 | H80: Student 76 | I80: Good | J80: =VLOOKUP(I80,{"Excellent",4;"Poor",1;"Good",3;"OK",2},2,0) -> 3 | O80: 145 | P80: 62.77777778 | X80: 335.9277778
A81: Student 77 | B81: iPhone | C81: =VLOOKUP(B81,{"iPhone",1;"Motorola",2;"Nokia",3;"Samsung",4;"Sony Erickson",5;"Sprint",6},2,0) -> 1 | H81: Student 77 | I81: Poor | J81: =VLOOKUP(I81,{"Excellent",4;"Poor",1;"Good",3;"OK",2},2,0) -> 1 | O81: 144 | P81: 62.22222222 | X81: 335.3722222
A82: Student 78 | B82: Motorola | C82: =VLOOKUP(B82,{"iPhone",1;"Motorola",2;"Nokia",3;"Samsung",4;"Sony Erickson",5;"Sprint",6},2,0) -> 2 | H82: Student 78 | I82: OK | J82: =VLOOKUP(I82,{"Excellent",4;"Poor",1;"Good",3;"OK",2},2,0) -> 2 | O82: 143 | P82: 61.66666667 | X82: 334.8166667
A83: Student 79 | B83: Nokia | C83: =VLOOKUP(B83,{"iPhone",1;"Motorola",2;"Nokia",3;"Samsung",4;"Sony Erickson",5;"Sprint",6},2,0) -> 3 | H83: Student 79 | I83: Good | J83: =VLOOKUP(I83,{"Excellent",4;"Poor",1;"Good",3;"OK",2},2,0) -> 3 | O83: 142 | P83: 61.11111111 | X83: 334.2611111
A84: Student 80 | B84: Motorola | C84: =VLOOKUP(B84,{"iPhone",1;"Motorola",2;"Nokia",3;"Samsung",4;"Sony Erickson",5;"Sprint",6},2,0) -> 2 | H84: Student 80 | I84: Poor | J84: =VLOOKUP(I84,{"Excellent",4;"Poor",1;"Good",3;"OK",2},2,0) -> 1 | O84: 141 | P84: 60.55555556 | X84: 333.7055556
A85: Student 81 | B85: Nokia | C85: =VLOOKUP(B85,{"iPhone",1;"Motorola",2;"Nokia",3;"Samsung",4;"Sony Erickson",5;"Sprint",6},2,0) -> 3 | H85: Student 81 | I85: Poor | J85: =VLOOKUP(I85,{"Excellent",4;"Poor",1;"Good",3;"OK",2},2,0) -> 1 | O85: 140 | P85: 60 | X85: 333.15
A86: Student 82 | B86: Sprint | C86: =VLOOKUP(B86,{"iPhone",1;"Motorola",2;"Nokia",3;"Samsung",4;"Sony Erickson",5;"Sprint",6},2,0) -> 6 | H86: Student 82 | I86: Poor | J86: =VLOOKUP(I86,{"Excellent",4;"Poor",1;"Good",3;"OK",2},2,0) -> 1 | O86: 139 | P86: 59.44444444 | X86: 332.5944444
A87: Student 83 | B87: Sprint | C87: =VLOOKUP(B87,{"iPhone",1;"Motorola",2;"Nokia",3;"Samsung",4;"Sony Erickson",5;"Sprint",6},2,0) -> 6 | H87: Student 83 | I87: Poor | J87: =VLOOKUP(I87,{"Excellent",4;"Poor",1;"Good",3;"OK",2},2,0) -> 1 | O87: 138 | P87: 58.88888889 | X87: 332.0388889
A88: Student 84 | B88: iPhone | C88: =VLOOKUP(B88,{"iPhone",1;"Motorola",2;"Nokia",3;"Samsung",4;"Sony Erickson",5;"Sprint",6},2,0) -> 1 | H88: Student 84 | I88: Poor | J88: =VLOOKUP(I88,{"Excellent",4;"Poor",1;"Good",3;"OK",2},2,0) -> 1 | O88: 137 | P88: 58.33333333 | X88: 331.4833333
A89: Student 85 | B89: iPhone | C89: =VLOOKUP(B89,{"iPhone",1;"Motorola",2;"Nokia",3;"Samsung",4;"Sony Erickson",5;"Sprint",6},2,0) -> 1 | H89: Student 85 | I89: Good | J89: =VLOOKUP(I89,{"Excellent",4;"Poor",1;"Good",3;"OK",2},2,0) -> 3 | O89: 136 | P89: 57.77777778 | X89: 330.9277778
A90: Student 86 | B90: iPhone | C90: =VLOOKUP(B90,{"iPhone",1;"Motorola",2;"Nokia",3;"Samsung",4;"Sony Erickson",5;"Sprint",6},2,0) -> 1 | H90: Student 86 | I90: OK | J90: =VLOOKUP(I90,{"Excellent",4;"Poor",1;"Good",3;"OK",2},2,0) -> 2 | O90: 135 | P90: 57.22222222 | X90: 330.3722222
A91: Student 87 | B91: iPhone | C91: =VLOOKUP(B91,{"iPhone",1;"Motorola",2;"Nokia",3;"Samsung",4;"Sony Erickson",5;"Sprint",6},2,0) -> 1 | H91: Student 87 | I91: OK | J91: =VLOOKUP(I91,{"Excellent",4;"Poor",1;"Good",3;"OK",2},2,0) -> 2 | O91: 134 | P91: 56.66666667 | X91: 329.8166667
A92: Student 88 | B92: Sprint | C92: =VLOOKUP(B92,{"iPhone",1;"Motorola",2;"Nokia",3;"Samsung",4;"Sony Erickson",5;"Sprint",6},2,0) -> 6 | H92: Student 88 | I92: Good | J92: =VLOOKUP(I92,{"Excellent",4;"Poor",1;"Good",3;"OK",2},2,0) -> 3 | O92: 133 | P92: 56.11111111 | X92: 329.2611111
A93: Student 89 | B93: Motorola | C93: =VLOOKUP(B93,{"iPhone",1;"Motorola",2;"Nokia",3;"Samsung",4;"Sony Erickson",5;"Sprint",6},2,0) -> 2 | H93: Student 89 | I93: Poor | J93: =VLOOKUP(I93,{"Excellent",4;"Poor",1;"Good",3;"OK",2},2,0) -> 1 | O93: 132 | P93: 55.55555556 | X93: 328.7055556
A94: Student 90 | B94: Sony Erickson | C94: =VLOOKUP(B94,{"iPhone",1;"Motorola",2;"Nokia",3;"Samsung",4;"Sony Erickson",5;"Sprint",6},2,0) -> 5 | H94: Student 90 | I94: OK | J94: =VLOOKUP(I94,{"Excellent",4;"Poor",1;"Good",3;"OK",2},2,0) -> 2 | O94: 131 | P94: 55 | X94: 328.15
A95: Student 91 | B95: Motorola | C95: =VLOOKUP(B95,{"iPhone",1;"Motorola",2;"Nokia",3;"Samsung",4;"Sony Erickson",5;"Sprint",6},2,0) -> 2 | H95: Student 91 | I95: Poor | J95: =VLOOKUP(I95,{"Excellent",4;"Poor",1;"Good",3;"OK",2},2,0) -> 1 | O95: 130 | P95: 54.44444444 | X95: 327.5944444
A96: Student 92 | B96: Samsung | C96: =VLOOKUP(B96,{"iPhone",1;"Motorola",2;"Nokia",3;"Samsung",4;"Sony Erickson",5;"Sprint",6},2,0) -> 4 | H96: Student 92 | I96: Good | J96: =VLOOKUP(I96,{"Excellent",4;"Poor",1;"Good",3;"OK",2},2,0) -> 3 | O96: 129 | P96: 53.88888889 | X96: 327.0388889
A97: Student 93 | B97: Nokia | C97: =VLOOKUP(B97,{"iPhone",1;"Motorola",2;"Nokia",3;"Samsung",4;"Sony Erickson",5;"Sprint",6},2,0) -> 3 | H97: Student 93 | I97: Good | J97: =VLOOKUP(I97,{"Excellent",4;"Poor",1;"Good",3;"OK",2},2,0) -> 3 | O97: 128 | P97: 53.33333333 | X97: 326.4833333
A98: Student 94 | B98: Sony Erickson | C98: =VLOOKUP(B98,{"iPhone",1;"Motorola",2;"Nokia",3;"Samsung",4;"Sony Erickson",5;"Sprint",6},2,0) -> 5 | H98: Student 94 | I98: Poor | J98: =VLOOKUP(I98,{"Excellent",4;"Poor",1;"Good",3;"OK",2},2,0) -> 1 | O98: 127 | P98: 52.77777778 | X98: 325.9277778
A99: Student 95 | B99: iPhone | C99: =VLOOKUP(B99,{"iPhone",1;"Motorola",2;"Nokia",3;"Samsung",4;"Sony Erickson",5;"Sprint",6},2,0) -> 1 | H99: Student 95 | I99: OK | J99: =VLOOKUP(I99,{"Excellent",4;"Poor",1;"Good",3;"OK",2},2,0) -> 2 | O99: 126 | P99: 52.22222222 | X99: 325.3722222
A100: Student 96 | B100: Nokia | C100: =VLOOKUP(B100,{"iPhone",1;"Motorola",2;"Nokia",3;"Samsung",4;"Sony Erickson",5;"Sprint",6},2,0) -> 3 | H100: Student 96 | I100: Poor | J100: =VLOOKUP(I100,{"Excellent",4;"Poor",1;"Good",3;"OK",2},2,0) -> 1 | O100: 125 | P100: 51.66666667 | X100: 324.8166667
A101: Student 97 | B101: iPhone | C101: =VLOOKUP(B101,{"iPhone",1;"Motorola",2;"Nokia",3;"Samsung",4;"Sony Erickson",5;"Sprint",6},2,0) -> 1 | H101: Student 97 | I101: Poor | J101: =VLOOKUP(I101,{"Excellent",4;"Poor",1;"Good",3;"OK",2},2,0) -> 1 | O101: 124 | P101: 51.11111111 | X101: 324.2611111
A102: Student 98 | B102: Nokia | C102: =VLOOKUP(B102,{"iPhone",1;"Motorola",2;"Nokia",3;"Samsung",4;"Sony Erickson",5;"Sprint",6},2,0) -> 3 | H102: Student 98 | I102: Poor | J102: =VLOOKUP(I102,{"Excellent",4;"Poor",1;"Good",3;"OK",2},2,0) -> 1 | O102: 123 | P102: 50.55555556 | X102: 323.7055556
A103: Student 99 | B103: Sony Erickson | C103: =VLOOKUP(B103,{"iPhone",1;"Motorola",2;"Nokia",3;"Samsung",4;"Sony Erickson",5;"Sprint",6},2,0) -> 5 | H103: Student 99 | I103: Poor | J103: =VLOOKUP(I103,{"Excellent",4;"Poor",1;"Good",3;"OK",2},2,0) -> 1 | O103: 122 | P103: 50 | X103: 323.15
A104: Student 100 | B104: Sprint | C104: =VLOOKUP(B104,{"iPhone",1;"Motorola",2;"Nokia",3;"Samsung",4;"Sony Erickson",5;"Sprint",6},2,0) -> 6 | H104: Student 100 | I104: Poor | J104: =VLOOKUP(I104,{"Excellent",4;"Poor",1;"Good",3;"OK",2},2,0) -> 1 | O104: 121 | P104: 49.44444444 | X104: 322.5944444
A105: Student 101 | B105: Nokia | C105: =VLOOKUP(B105,{"iPhone",1;"Motorola",2;"Nokia",3;"Samsung",4;"Sony Erickson",5;"Sprint",6},2,0) -> 3 | H105: Student 101 | I105: Poor | J105: =VLOOKUP(I105,{"Excellent",4;"Poor",1;"Good",3;"OK",2},2,0) -> 1 | O105: 120 | P105: 48.88888889 | X105: 322.0388889
A106: Student 102 | B106: iPhone | C106: =VLOOKUP(B106,{"iPhone",1;"Motorola",2;"Nokia",3;"Samsung",4;"Sony Erickson",5;"Sprint",6},2,0) -> 1 | H106: Student 102 | I106: Poor | J106: =VLOOKUP(I106,{"Excellent",4;"Poor",1;"Good",3;"OK",2},2,0) -> 1 | O106: 119 | P106: 48.33333333 | X106: 321.4833333
A107: Student 103 | B107: Sprint | C107: =VLOOKUP(B107,{"iPhone",1;"Motorola",2;"Nokia",3;"Samsung",4;"Sony Erickson",5;"Sprint",6},2,0) -> 6 | H107: Student 103 | I107: Poor | J107: =VLOOKUP(I107,{"Excellent",4;"Poor",1;"Good",3;"OK",2},2,0) -> 1 | O107: 118 | P107: 47.77777778 | X107: 320.9277778
A108: Student 104 | B108: Sony Erickson | C108: =VLOOKUP(B108,{"iPhone",1;"Motorola",2;"Nokia",3;"Samsung",4;"Sony Erickson",5;"Sprint",6},2,0) -> 5 | H108: Student 104 | I108: Poor | J108: =VLOOKUP(I108,{"Excellent",4;"Poor",1;"Good",3;"OK",2},2,0) -> 1 | O108: 117 | P108: 47.22222222 | X108: 320.3722222
A109: Student 105 | B109: Motorola | C109: =VLOOKUP(B109,{"iPhone",1;"Motorola",2;"Nokia",3;"Samsung",4;"Sony Erickson",5;"Sprint",6},2,0) -> 2 | H109: Student 105 | I109: Poor | J109: =VLOOKUP(I109,{"Excellent",4;"Poor",1;"Good",3;"OK",2},2,0) -> 1 | O109: 116 | P109: 46.66666667 | X109: 319.8166667
A110: Student 106 | B110: Nokia | C110: =VLOOKUP(B110,{"iPhone",1;"Motorola",2;"Nokia",3;"Samsung",4;"Sony Erickson",5;"Sprint",6},2,0) -> 3 | H110: Student 106 | I110: Poor | J110: =VLOOKUP(I110,{"Excellent",4;"Poor",1;"Good",3;"OK",2},2,0) -> 1 | O110: 115 | P110: 46.11111111 | X110: 319.2611111
A111: Student 107 | B111: iPhone | C111: =VLOOKUP(B111,{"iPhone",1;"Motorola",2;"Nokia",3;"Samsung",4;"Sony Erickson",5;"Sprint",6},2,0) -> 1 | H111: Student 107 | I111: OK | J111: =VLOOKUP(I111,{"Excellent",4;"Poor",1;"Good",3;"OK",2},2,0) -> 2 | O111: 114 | P111: 45.55555556 | X111: 318.7055556
A112: Student 108 | B112: Nokia | C112: =VLOOKUP(B112,{"iPhone",1;"Motorola",2;"Nokia",3;"Samsung",4;"Sony Erickson",5;"Sprint",6},2,0) -> 3 | H112: Student 108 | I112: Excellent | J112: =VLOOKUP(I112,{"Excellent",4;"Poor",1;"Good",3;"OK",2},2,0) -> 4 | O112: 113 | P112: 45 | X112: 318.15
A113: Student 109 | B113: Nokia | C113: =VLOOKUP(B113,{"iPhone",1;"Motorola",2;"Nokia",3;"Samsung",4;"Sony Erickson",5;"Sprint",6},2,0) -> 3 | H113: Student 109 | I113: Poor | J113: =VLOOKUP(I113,{"Excellent",4;"Poor",1;"Good",3;"OK",2},2,0) -> 1 | O113: 112 | P113: 44.44444444 | X113: 317.5944444
A114: Student 110 | B114: Motorola | C114: =VLOOKUP(B114,{"iPhone",1;"Motorola",2;"Nokia",3;"Samsung",4;"Sony Erickson",5;"Sprint",6},2,0) -> 2 | H114: Student 110 | I114: Excellent | J114: =VLOOKUP(I114,{"Excellent",4;"Poor",1;"Good",3;"OK",2},2,0) -> 4 | O114: 111 | P114: 43.88888889 | X114: 317.0388889
A115: Student 111 | B115: iPhone | C115: =VLOOKUP(B115,{"iPhone",1;"Motorola",2;"Nokia",3;"Samsung",4;"Sony Erickson",5;"Sprint",6},2,0) -> 1 | H115: Student 111 | I115: OK | J115: =VLOOKUP(I115,{"Excellent",4;"Poor",1;"Good",3;"OK",2},2,0) -> 2 | O115: 110 | P115: 43.33333333 | X115: 316.4833333
A116: Student 112 | B116: Nokia | C116: =VLOOKUP(B116,{"iPhone",1;"Motorola",2;"Nokia",3;"Samsung",4;"Sony Erickson",5;"Sprint",6},2,0) -> 3 | H116: Student 112 | I116: Good | J116: =VLOOKUP(I116,{"Excellent",4;"Poor",1;"Good",3;"OK",2},2,0) -> 3 | O116: 109 | P116: 42.77777778 | X116: 315.9277778
A117: Student 113 | B117: Nokia | C117: =VLOOKUP(B117,{"iPhone",1;"Motorola",2;"Nokia",3;"Samsung",4;"Sony Erickson",5;"Sprint",6},2,0) -> 3 | H117: Student 113 | I117: Poor | J117: =VLOOKUP(I117,{"Excellent",4;"Poor",1;"Good",3;"OK",2},2,0) -> 1 | O117: 108 | P117: 42.22222222 | X117: 315.3722222
A118: Student 114 | B118: Nokia | C118: =VLOOKUP(B118,{"iPhone",1;"Motorola",2;"Nokia",3;"Samsung",4;"Sony Erickson",5;"Sprint",6},2,0) -> 3 | H118: Student 114 | I118: Good | J118: =VLOOKUP(I118,{"Excellent",4;"Poor",1;"Good",3;"OK",2},2,0) -> 3 | O118: 107 | P118: 41.66666667 | X118: 314.8166667
A119: Student 115 | B119: Motorola | C119: =VLOOKUP(B119,{"iPhone",1;"Motorola",2;"Nokia",3;"Samsung",4;"Sony Erickson",5;"Sprint",6},2,0) -> 2 | H119: Student 115 | I119: OK | J119: =VLOOKUP(I119,{"Excellent",4;"Poor",1;"Good",3;"OK",2},2,0) -> 2 | O119: 106 | P119: 41.11111111 | X119: 314.2611111
A120: Student 116 | B120: Sprint | C120: =VLOOKUP(B120,{"iPhone",1;"Motorola",2;"Nokia",3;"Samsung",4;"Sony Erickson",5;"Sprint",6},2,0) -> 6 | H120: Student 116 | I120: OK | J120: =VLOOKUP(I120,{"Excellent",4;"Poor",1;"Good",3;"OK",2},2,0) -> 2 | O120: 105 | P120: 40.55555556 | X120: 313.7055556
A121: Student 117 | B121: Sprint | C121: =VLOOKUP(B121,{"iPhone",1;"Motorola",2;"Nokia",3;"Samsung",4;"Sony Erickson",5;"Sprint",6},2,0) -> 6 | H121: Student 117 | I121: Poor | J121: =VLOOKUP(I121,{"Excellent",4;"Poor",1;"Good",3;"OK",2},2,0) -> 1 | O121: 104 | P121: 40 | X121: 313.15
A122: Student 118 | B122: Sprint | C122: =VLOOKUP(B122,{"iPhone",1;"Motorola",2;"Nokia",3;"Samsung",4;"Sony Erickson",5;"Sprint",6},2,0) -> 6 | H122: Student 118 | I122: Excellent | J122: =VLOOKUP(I122,{"Excellent",4;"Poor",1;"Good",3;"OK",2},2,0) -> 4 | O122: 103 | P122: 39.44444444 | X122: 312.5944444
A123: Student 119 | B123: Nokia | C123: =VLOOKUP(B123,{"iPhone",1;"Motorola",2;"Nokia",3;"Samsung",4;"Sony Erickson",5;"Sprint",6},2,0) -> 3 | H123: Student 119 | I123: Excellent | J123: =VLOOKUP(I123,{"Excellent",4;"Poor",1;"Good",3;"OK",2},2,0) -> 4 | O123: 102 | P123: 38.88888889 | X123: 312.0388889
A124: Student 120 | B124: Nokia | C124: =VLOOKUP(B124,{"iPhone",1;"Motorola",2;"Nokia",3;"Samsung",4;"Sony Erickson",5;"Sprint",6},2,0) -> 3 | H124: Student 120 | I124: Excellent | J124: =VLOOKUP(I124,{"Excellent",4;"Poor",1;"Good",3;"OK",2},2,0) -> 4 | O124: 101 | P124: 38.33333333 | X124: 311.4833333
A125: Student 121 | B125: Sprint | C125: =VLOOKUP(B125,{"iPhone",1;"Motorola",2;"Nokia",3;"Samsung",4;"Sony Erickson",5;"Sprint",6},2,0) -> 6 | H125: Student 121 | I125: Excellent | J125: =VLOOKUP(I125,{"Excellent",4;"Poor",1;"Good",3;"OK",2},2,0) -> 4 | O125: 100 | P125: 37.77777778 | X125: 310.9277778
A126: Student 122 | B126: Nokia | C126: =VLOOKUP(B126,{"iPhone",1;"Motorola",2;"Nokia",3;"Samsung",4;"Sony Erickson",5;"Sprint",6},2,0) -> 3 | H126: Student 122 | I126: OK | J126: =VLOOKUP(I126,{"Excellent",4;"Poor",1;"Good",3;"OK",2},2,0) -> 2 | O126: 99 | P126: 37.22222222 | X126: 310.3722222
A127: Student 123 | B127: Samsung | C127: =VLOOKUP(B127,{"iPhone",1;"Motorola",2;"Nokia",3;"Samsung",4;"Sony Erickson",5;"Sprint",6},2,0) -> 4 | H127: Student 123 | I127: Good | J127: =VLOOKUP(I127,{"Excellent",4;"Poor",1;"Good",3;"OK",2},2,0) -> 3 | O127: 98 | P127: 36.66666667 | X127: 309.8166667
A128: Student 124 | B128: Samsung | C128: =VLOOKUP(B128,{"iPhone",1;"Motorola",2;"Nokia",3;"Samsung",4;"Sony Erickson",5;"Sprint",6},2,0) -> 4 | H128: Student 124 | I128: Poor | J128: =VLOOKUP(I128,{"Excellent",4;"Poor",1;"Good",3;"OK",2},2,0) -> 1 | O128: 97 | P128: 36.11111111 | X128: 309.2611111
A129: Student 125 | B129: Samsung | C129: =VLOOKUP(B129,{"iPhone",1;"Motorola",2;"Nokia",3;"Samsung",4;"Sony Erickson",5;"Sprint",6},2,0) -> 4 | H129: Student 125 | I129: Poor | J129: =VLOOKUP(I129,{"Excellent",4;"Poor",1;"Good",3;"OK",2},2,0) -> 1 | O129: 96 | P129: 35.55555556 | X129: 308.7055556
A130: Student 126 | B130: Samsung | C130: =VLOOKUP(B130,{"iPhone",1;"Motorola",2;"Nokia",3;"Samsung",4;"Sony Erickson",5;"Sprint",6},2,0) -> 4 | H130: Student 126 | I130: Excellent | J130: =VLOOKUP(I130,{"Excellent",4;"Poor",1;"Good",3;"OK",2},2,0) -> 4 | O130: 95 | P130: 35 | X130: 308.15
A131: Student 127 | B131: Motorola | C131: =VLOOKUP(B131,{"iPhone",1;"Motorola",2;"Nokia",3;"Samsung",4;"Sony Erickson",5;"Sprint",6},2,0) -> 2 | H131: Student 127 | I131: Poor | J131: =VLOOKUP(I131,{"Excellent",4;"Poor",1;"Good",3;"OK",2},2,0) -> 1 | O131: 94 | P131: 34.44444444 | X131: 307.5944444
A132: Student 128 | B132: Sony Erickson | C132: =VLOOKUP(B132,{"iPhone",1;"Motorola",2;"Nokia",3;"Samsung",4;"Sony Erickson",5;"Sprint",6},2,0) -> 5 | H132: Student 128 | I132: Poor | J132: =VLOOKUP(I132,{"Excellent",4;"Poor",1;"Good",3;"OK",2},2,0) -> 1 | O132: 93 | P132: 33.88888889 | X132: 307.0388889
A133: Student 129 | B133: Motorola | C133: =VLOOKUP(B133,{"iPhone",1;"Motorola",2;"Nokia",3;"Samsung",4;"Sony Erickson",5;"Sprint",6},2,0) -> 2 | H133: Student 129 | I133: OK | J133: =VLOOKUP(I133,{"Excellent",4;"Poor",1;"Good",3;"OK",2},2,0) -> 2 | O133: 92 | P133: =CONVERT(O133,"F","C") -> 33.33333333 | X133: 306.4833333
A134: Student 130 | B134: iPhone | C134: =VLOOKUP(B134,{"iPhone",1;"Motorola",2;"Nokia",3;"Samsung",4;"Sony Erickson",5;"Sprint",6},2,0) -> 1 | H134: Student 130 | I134: Poor | J134: =VLOOKUP(I134,{"Excellent",4;"Poor",1;"Good",3;"OK",2},2,0) -> 1 | O134: 91 | P134: 32.77777778 | X134: =CONVERT(O134,"F","K") -> 305.9277778
A135: Student 131 | B135: iPhone | C135: =VLOOKUP(B135,{"iPhone",1;"Motorola",2;"Nokia",3;"Samsung",4;"Sony Erickson",5;"Sprint",6},2,0) -> 1 | H135: Student 131 | I135: Poor | J135: =VLOOKUP(I135,{"Excellent",4;"Poor",1;"Good",3;"OK",2},2,0) -> 1 | O135: 90 | P135: 32.22222222 | X135: 305.3722222
A136: Student 132 | B136: Sprint | C136: =VLOOKUP(B136,{"iPhone",1;"Motorola",2;"Nokia",3;"Samsung",4;"Sony Erickson",5;"Sprint",6},2,0) -> 6 | H136: Student 132 | I136: Poor | J136: =VLOOKUP(I136,{"Excellent",4;"Poor",1;"Good",3;"OK",2},2,0) -> 1 | O136: 89 | P136: 31.66666667 | X136: 304.8166667
A137: Student 133 | B137: Samsung | C137: =VLOOKUP(B137,{"iPhone",1;"Motorola",2;"Nokia",3;"Samsung",4;"Sony Erickson",5;"Sprint",6},2,0) -> 4 | H137: Student 133 | I137: OK | J137: =VLOOKUP(I137,{"Excellent",4;"Poor",1;"Good",3;"OK",2},2,0) -> 2 | O137: 88 | P137: 31.11111111 | X137: 304.2611111
A138: Student 134 | B138: Nokia | C138: =VLOOKUP(B138,{"iPhone",1;"Motorola",2;"Nokia",3;"Samsung",4;"Sony Erickson",5;"Sprint",6},2,0) -> 3 | H138: Student 134 | I138: Poor | J138: =VLOOKUP(I138,{"Excellent",4;"Poor",1;"Good",3;"OK",2},2,0) -> 1 | O138: 87 | P138: 30.55555556 | X138: 303.7055556
A139: Student 135 | B139: Motorola | C139: =VLOOKUP(B139,{"iPhone",1;"Motorola",2;"Nokia",3;"Samsung",4;"Sony Erickson",5;"Sprint",6},2,0) -> 2 | H139: Student 135 | I139: OK | J139: =VLOOKUP(I139,{"Excellent",4;"Poor",1;"Good",3;"OK",2},2,0) -> 2 | O139: 86 | P139: 30 | X139: 303.15
A140: Student 136 | B140: Nokia | C140: =VLOOKUP(B140,{"iPhone",1;"Motorola",2;"Nokia",3;"Samsung",4;"Sony Erickson",5;"Sprint",6},2,0) -> 3 | H140: Student 136 | I140: Poor | J140: =VLOOKUP(I140,{"Excellent",4;"Poor",1;"Good",3;"OK",2},2,0) -> 1 | O140: 85 | P140: 29.44444444 | X140: 302.5944444
A141: Student 137 | B141: Motorola | C141: =VLOOKUP(B141,{"iPhone",1;"Motorola",2;"Nokia",3;"Samsung",4;"Sony Erickson",5;"Sprint",6},2,0) -> 2 | H141: Student 137 | I141: Poor | J141: =VLOOKUP(I141,{"Excellent",4;"Poor",1;"Good",3;"OK",2},2,0) -> 1 | O141: 84 | P141: 28.88888889 | X141: 302.0388889
A142: Student 138 | B142: Sony Erickson | C142: =VLOOKUP(B142,{"iPhone",1;"Motorola",2;"Nokia",3;"Samsung",4;"Sony Erickson",5;"Sprint",6},2,0) -> 5 | H142: Student 138 | I142: OK | J142: =VLOOKUP(I142,{"Excellent",4;"Poor",1;"Good",3;"OK",2},2,0) -> 2 | O142: 83 | P142: 28.33333333 | X142: 301.4833333
A143: Student 139 | B143: Samsung | C143: =VLOOKUP(B143,{"iPhone",1;"Motorola",2;"Nokia",3;"Samsung",4;"Sony Erickson",5;"Sprint",6},2,0) -> 4 | H143: Student 139 | I143: Excellent | J143: =VLOOKUP(I143,{"Excellent",4;"Poor",1;"Good",3;"OK",2},2,0) -> 4 | O143: 82 | P143: 27.77777778 | X143: 300.9277778
A144: Student 140 | B144: Nokia | C144: =VLOOKUP(B144,{"iPhone",1;"Motorola",2;"Nokia",3;"Samsung",4;"Sony Erickson",5;"Sprint",6},2,0) -> 3 | H144: Student 140 | I144: OK | J144: =VLOOKUP(I144,{"Excellent",4;"Poor",1;"Good",3;"OK",2},2,0) -> 2 | O144: 81 | P144: 27.22222222 | X144: 300.3722222
A145: Student 141 | B145: iPhone | C145: =VLOOKUP(B145,{"iPhone",1;"Motorola",2;"Nokia",3;"Samsung",4;"Sony Erickson",5;"Sprint",6},2,0) -> 1 | H145: Student 141 | I145: Poor | J145: =VLOOKUP(I145,{"Excellent",4;"Poor",1;"Good",3;"OK",2},2,0) -> 1 | O145: 80 | P145: 26.66666667 | X145: 299.8166667
A146: Student 142 | B146: Motorola | C146: =VLOOKUP(B146,{"iPhone",1;"Motorola",2;"Nokia",3;"Samsung",4;"Sony Erickson",5;"Sprint",6},2,0) -> 2 | H146: Student 142 | I146: Poor | J146: =VLOOKUP(I146,{"Excellent",4;"Poor",1;"Good",3;"OK",2},2,0) -> 1 | O146: 79 | P146: 26.11111111 | X146: 299.2611111
A147: Student 143 | B147: iPhone | C147: =VLOOKUP(B147,{"iPhone",1;"Motorola",2;"Nokia",3;"Samsung",4;"Sony Erickson",5;"Sprint",6},2,0) -> 1 | H147: Student 143 | I147: Poor | J147: =VLOOKUP(I147,{"Excellent",4;"Poor",1;"Good",3;"OK",2},2,0) -> 1 | O147: 78 | P147: 25.55555556 | X147: 298.7055556
A148: Student 144 | B148: Samsung | C148: =VLOOKUP(B148,{"iPhone",1;"Motorola",2;"Nokia",3;"Samsung",4;"Sony Erickson",5;"Sprint",6},2,0) -> 4 | H148: Student 144 | I148: Poor | J148: =VLOOKUP(I148,{"Excellent",4;"Poor",1;"Good",3;"OK",2},2,0) -> 1 | O148: 77 | P148: 25 | X148: 298.15
A149: Student 145 | B149: Motorola | C149: =VLOOKUP(B149,{"iPhone",1;"Motorola",2;"Nokia",3;"Samsung",4;"Sony Erickson",5;"Sprint",6},2,0) -> 2 | H149: Student 145 | I149: OK | J149: =VLOOKUP(I149,{"Excellent",4;"Poor",1;"Good",3;"OK",2},2,0) -> 2 | O149: 76 | P149: 24.44444444 | X149: 297.5944444
A150: Student 146 | B150: Nokia | C150: =VLOOKUP(B150,{"iPhone",1;"Motorola",2;"Nokia",3;"Samsung",4;"Sony Erickson",5;"Sprint",6},2,0) -> 3 | H150: Student 146 | I150: Poor | J150: =VLOOKUP(I150,{"Excellent",4;"Poor",1;"Good",3;"OK",2},2,0) -> 1 | O150: 75 | P150: 23.88888889 | X150: 297.0388889
A151: Student 147 | B151: Motorola | C151: =VLOOKUP(B151,{"iPhone",1;"Motorola",2;"Nokia",3;"Samsung",4;"Sony Erickson",5;"Sprint",6},2,0) -> 2 | H151: Student 147 | I151: Poor | J151: =VLOOKUP(I151,{"Excellent",4;"Poor",1;"Good",3;"OK",2},2,0) -> 1 | O151: 74 | P151: 23.33333333 | X151: 296.4833333
A152: Student 148 | B152: Samsung | C152: =VLOOKUP(B152,{"iPhone",1;"Motorola",2;"Nokia",3;"Samsung",4;"Sony Erickson",5;"Sprint",6},2,0) -> 4 | H152: Student 148 | I152: OK | J152: =VLOOKUP(I152,{"Excellent",4;"Poor",1;"Good",3;"OK",2},2,0) -> 2 | O152: 73 | P152: 22.77777778 | X152: 295.9277778
A153: Student 149 | B153: Sprint | C153: =VLOOKUP(B153,{"iPhone",1;"Motorola",2;"Nokia",3;"Samsung",4;"Sony Erickson",5;"Sprint",6},2,0) -> 6 | H153: Student 149 | I153: Poor | J153: =VLOOKUP(I153,{"Excellent",4;"Poor",1;"Good",3;"OK",2},2,0) -> 1 | O153: 72 | P153: 22.22222222 | X153: 295.3722222
A154: Student 150 | B154: Samsung | C154: =VLOOKUP(B154,{"iPhone",1;"Motorola",2;"Nokia",3;"Samsung",4;"Sony Erickson",5;"Sprint",6},2,0) -> 4 | H154: Student 150 | I154: Excellent | J154: =VLOOKUP(I154,{"Excellent",4;"Poor",1;"Good",3;"OK",2},2,0) -> 4 | O154: 71 | P154: 21.66666667 | X154: 294.8166667
A155: Student 151 | B155: Sony Erickson | C155: =VLOOKUP(B155,{"iPhone",1;"Motorola",2;"Nokia",3;"Samsung",4;"Sony Erickson",5;"Sprint",6},2,0) -> 5 | H155: Student 151 | I155: Excellent | J155: =VLOOKUP(I155,{"Excellent",4;"Poor",1;"Good",3;"OK",2},2,0) -> 4 | O155: 70 | P155: 21.11111111 | X155: 294.2611111
A156: Student 152 | B156: Nokia | C156: =VLOOKUP(B156,{"iPhone",1;"Motorola",2;"Nokia",3;"Samsung",4;"Sony Erickson",5;"Sprint",6},2,0) -> 3 | H156: Student 152 | I156: Excellent | J156: =VLOOKUP(I156,{"Excellent",4;"Poor",1;"Good",3;"OK",2},2,0) -> 4 | O156: 69 | P156: 20.55555556 | X156: 293.7055556
A157: Student 153 | B157: iPhone | C157: =VLOOKUP(B157,{"iPhone",1;"Motorola",2;"Nokia",3;"Samsung",4;"Sony Erickson",5;"Sprint",6},2,0) -> 1 | H157: Student 153 | I157: OK | J157: =VLOOKUP(I157,{"Excellent",4;"Poor",1;"Good",3;"OK",2},2,0) -> 2 | O157: 68 | P157: 20 | X157: 293.15
A158: Student 154 | B158: Sprint | C158: =VLOOKUP(B158,{"iPhone",1;"Motorola",2;"Nokia",3;"Samsung",4;"Sony Erickson",5;"Sprint",6},2,0) -> 6 | H158: Student 154 | I158: Poor | J158: =VLOOKUP(I158,{"Excellent",4;"Poor",1;"Good",3;"OK",2},2,0) -> 1 | O158: 67 | P158: 19.44444444 | X158: 292.5944444
A159: Student 155 | B159: iPhone | C159: =VLOOKUP(B159,{"iPhone",1;"Motorola",2;"Nokia",3;"Samsung",4;"Sony Erickson",5;"Sprint",6},2,0) -> 1 | H159: Student 155 | I159: OK | J159: =VLOOKUP(I159,{"Excellent",4;"Poor",1;"Good",3;"OK",2},2,0) -> 2 | O159: 66 | P159: 18.88888889 | X159: 292.0388889
A160: Student 156 | B160: iPhone | C160: =VLOOKUP(B160,{"iPhone",1;"Motorola",2;"Nokia",3;"Samsung",4;"Sony Erickson",5;"Sprint",6},2,0) -> 1 | H160: Student 156 | I160: Poor | J160: =VLOOKUP(I160,{"Excellent",4;"Poor",1;"Good",3;"OK",2},2,0) -> 1 | O160: 65 | P160: 18.33333333 | X160: 291.4833333
A161: Student 157 | B161: Samsung | C161: =VLOOKUP(B161,{"iPhone",1;"Motorola",2;"Nokia",3;"Samsung",4;"Sony Erickson",5;"Sprint",6},2,0) -> 4 | H161: Student 157 | I161: Poor | J161: =VLOOKUP(I161,{"Excellent",4;"Poor",1;"Good",3;"OK",2},2,0) -> 1 | O161: 64 | P161: 17.77777778 | X161: 290.9277778
A162: Student 158 | B162: Nokia | C162: =VLOOKUP(B162,{"iPhone",1;"Motorola",2;"Nokia",3;"Samsung",4;"Sony Erickson",5;"Sprint",6},2,0) -> 3 | H162: Student 158 | I162: Poor | J162: =VLOOKUP(I162,{"Excellent",4;"Poor",1;"Good",3;"OK",2},2,0) -> 1 | O162: 63 | P162: 17.22222222 | X162: 290.3722222
A163: Student 159 | B163: Nokia | C163: =VLOOKUP(B163,{"iPhone",1;"Motorola",2;"Nokia",3;"Samsung",4;"Sony Erickson",5;"Sprint",6},2,0) -> 3 | H163: Student 159 | I163: Poor | J163: =VLOOKUP(I163,{"Excellent",4;"Poor",1;"Good",3;"OK",2},2,0) -> 1 | O163: 62 | P163: 16.66666667 | X163: 289.8166667
A164: Student 160 | B164: iPhone | C164: =VLOOKUP(B164,{"iPhone",1;"Motorola",2;"Nokia",3;"Samsung",4;"Sony Erickson",5;"Sprint",6},2,0) -> 1 | H164: Student 160 | I164: Poor | J164: =VLOOKUP(I164,{"Excellent",4;"Poor",1;"Good",3;"OK",2},2,0) -> 1 | O164: 61 | P164: 16.11111111 | X164: 289.2611111
A165: Student 161 | B165: Sony Erickson | C165: =VLOOKUP(B165,{"iPhone",1;"Motorola",2;"Nokia",3;"Samsung",4;"Sony Erickson",5;"Sprint",6},2,0) -> 5 | H165: Student 161 | I165: OK | J165: =VLOOKUP(I165,{"Excellent",4;"Poor",1;"Good",3;"OK",2},2,0) -> 2 | O165: 60 | P165: 15.55555556 | X165: 288.7055556
A166: Student 162 | B166: Nokia | C166: =VLOOKUP(B166,{"iPhone",1;"Motorola",2;"Nokia",3;"Samsung",4;"Sony Erickson",5;"Sprint",6},2,0) -> 3 | H166: Student 162 | I166: Poor | J166: =VLOOKUP(I166,{"Excellent",4;"Poor",1;"Good",3;"OK",2},2,0) -> 1 | O166: 59 | P166: 15 | X166: 288.15
A167: Student 163 | B167: Sprint | C167: =VLOOKUP(B167,{"iPhone",1;"Motorola",2;"Nokia",3;"Samsung",4;"Sony Erickson",5;"Sprint",6},2,0) -> 6 | H167: Student 163 | I167: Poor | J167: =VLOOKUP(I167,{"Excellent",4;"Poor",1;"Good",3;"OK",2},2,0) -> 1 | O167: 58 | P167: 14.44444444 | X167: 287.5944444
A168: Student 164 | B168: Nokia | C168: =VLOOKUP(B168,{"iPhone",1;"Motorola",2;"Nokia",3;"Samsung",4;"Sony Erickson",5;"Sprint",6},2,0) -> 3 | H168: Student 164 | I168: Excellent | J168: =VLOOKUP(I168,{"Excellent",4;"Poor",1;"Good",3;"OK",2},2,0) -> 4 | O168: 57 | P168: 13.88888889 | X168: 287.0388889
A169: Student 165 | B169: Samsung | C169: =VLOOKUP(B169,{"iPhone",1;"Motorola",2;"Nokia",3;"Samsung",4;"Sony Erickson",5;"Sprint",6},2,0) -> 4 | H169: Student 165 | I169: Good | J169: =VLOOKUP(I169,{"Excellent",4;"Poor",1;"Good",3;"OK",2},2,0) -> 3 | O169: 56 | P169: 13.33333333 | X169: 286.4833333
A170: Student 166 | B170: iPhone | C170: =VLOOKUP(B170,{"iPhone",1;"Motorola",2;"Nokia",3;"Samsung",4;"Sony Erickson",5;"Sprint",6},2,0) -> 1 | H170: Student 166 | I170: OK | J170: =VLOOKUP(I170,{"Excellent",4;"Poor",1;"Good",3;"OK",2},2,0) -> 2 | O170: 55 | P170: 12.77777778 | X170: 285.9277778
A171: Student 167 | B171: Samsung | C171: =VLOOKUP(B171,{"iPhone",1;"Motorola",2;"Nokia",3;"Samsung",4;"Sony Erickson",5;"Sprint",6},2,0) -> 4 | H171: Student 167 | I171: Good | J171: =VLOOKUP(I171,{"Excellent",4;"Poor",1;"Good",3;"OK",2},2,0) -> 3 | O171: 54 | P171: 12.22222222 | X171: 285.3722222
A172: Student 168 | B172: Motorola | C172: =VLOOKUP(B172,{"iPhone",1;"Motorola",2;"Nokia",3;"Samsung",4;"Sony Erickson",5;"Sprint",6},2,0) -> 2 | H172: Student 168 | I172: OK | J172: =VLOOKUP(I172,{"Excellent",4;"Poor",1;"Good",3;"OK",2},2,0) -> 2 | O172: 53 | P172: 11.66666667 | X172: 284.8166667
A173: Student 169 | B173: Sony Erickson | C173: =VLOOKUP(B173,{"iPhone",1;"Motorola",2;"Nokia",3;"Samsung",4;"Sony Erickson",5;"Sprint",6},2,0) -> 5 | H173: Student 169 | I173: Poor | J173: =VLOOKUP(I173,{"Excellent",4;"Poor",1;"Good",3;"OK",2},2,0) -> 1 | O173: 52 | P173: 11.11111111 | X173: 284.2611111
A174: Student 170 | B174: Nokia | C174: =VLOOKUP(B174,{"iPhone",1;"Motorola",2;"Nokia",3;"Samsung",4;"Sony Erickson",5;"Sprint",6},2,0) -> 3 | H174: Student 170 | I174: Poor | J174: =VLOOKUP(I174,{"Excellent",4;"Poor",1;"Good",3;"OK",2},2,0) -> 1 | O174: 51 | P174: 10.55555556 | X174: 283.7055556
A175: Student 171 | B175: Nokia | C175: =VLOOKUP(B175,{"iPhone",1;"Motorola",2;"Nokia",3;"Samsung",4;"Sony Erickson",5;"Sprint",6},2,0) -> 3 | H175: Student 171 | I175: OK | J175: =VLOOKUP(I175,{"Excellent",4;"Poor",1;"Good",3;"OK",2},2,0) -> 2 | O175: 50 | P175: 10 | X175: 283.15
A176: Student 172 | B176: Nokia | C176: =VLOOKUP(B176,{"iPhone",1;"Motorola",2;"Nokia",3;"Samsung",4;"Sony Erickson",5;"Sprint",6},2,0) -> 3 | H176: Student 172 | I176: OK | J176: =VLOOKUP(I176,{"Excellent",4;"Poor",1;"Good",3;"OK",2},2,0) -> 2 | O176: 49 | P176: 9.444444444 | X176: 282.5944444
A177: Student 173 | B177: Nokia | C177: =VLOOKUP(B177,{"iPhone",1;"Motorola",2;"Nokia",3;"Samsung",4;"Sony Erickson",5;"Sprint",6},2,0) -> 3 | H177: Student 173 | I177: Poor | J177: =VLOOKUP(I177,{"Excellent",4;"Poor",1;"Good",3;"OK",2},2,0) -> 1 | O177: 48 | P177: 8.888888889 | X177: 282.0388889
A178: Student 174 | B178: iPhone | C178: =VLOOKUP(B178,{"iPhone",1;"Motorola",2;"Nokia",3;"Samsung",4;"Sony Erickson",5;"Sprint",6},2,0) -> 1 | H178: Student 174 | I178: OK | J178: =VLOOKUP(I178,{"Excellent",4;"Poor",1;"Good",3;"OK",2},2,0) -> 2 | O178: 47 | P178: 8.333333333 | X178: 281.4833333
A179: Student 175 | B179: Motorola | C179: =VLOOKUP(B179,{"iPhone",1;"Motorola",2;"Nokia",3;"Samsung",4;"Sony Erickson",5;"Sprint",6},2,0) -> 2 | H179: Student 175 | I179: Good | J179: =VLOOKUP(I179,{"Excellent",4;"Poor",1;"Good",3;"OK",2},2,0) -> 3 | O179: 46 | P179: 7.777777778 | X179: 280.9277778
A180: Student 176 | B180: Sprint | C180: =VLOOKUP(B180,{"iPhone",1;"Motorola",2;"Nokia",3;"Samsung",4;"Sony Erickson",5;"Sprint",6},2,0) -> 6 | H180: Student 176 | I180: Poor | J180: =VLOOKUP(I180,{"Excellent",4;"Poor",1;"Good",3;"OK",2},2,0) -> 1 | O180: 45 | P180: 7.222222222 | X180: 280.3722222
A181: Student 177 | B181: iPhone | C181: =VLOOKUP(B181,{"iPhone",1;"Motorola",2;"Nokia",3;"Samsung",4;"Sony Erickson",5;"Sprint",6},2,0) -> 1 | H181: Student 177 | I181: Excellent | J181: =VLOOKUP(I181,{"Excellent",4;"Poor",1;"Good",3;"OK",2},2,0) -> 4 | O181: 44 | P181: 6.666666667 | X181: 279.8166667
A182: Student 178 | B182: Motorola | C182: =VLOOKUP(B182,{"iPhone",1;"Motorola",2;"Nokia",3;"Samsung",4;"Sony Erickson",5;"Sprint",6},2,0) -> 2 | H182: Student 178 | I182: Poor | J182: =VLOOKUP(I182,{"Excellent",4;"Poor",1;"Good",3;"OK",2},2,0) -> 1 | O182: 43 | P182: 6.111111111 | X182: 279.2611111
A183: Student 179 | B183: Nokia | C183: =VLOOKUP(B183,{"iPhone",1;"Motorola",2;"Nokia",3;"Samsung",4;"Sony Erickson",5;"Sprint",6},2,0) -> 3 | H183: Student 179 | I183: Poor | J183: =VLOOKUP(I183,{"Excellent",4;"Poor",1;"Good",3;"OK",2},2,0) -> 1 | O183: 42 | P183: 5.555555556 | X183: 278.7055556
A184: Student 180 | B184: iPhone | C184: =VLOOKUP(B184,{"iPhone",1;"Motorola",2;"Nokia",3;"Samsung",4;"Sony Erickson",5;"Sprint",6},2,0) -> 1 | H184: Student 180 | I184: Poor | J184: =VLOOKUP(I184,{"Excellent",4;"Poor",1;"Good",3;"OK",2},2,0) -> 1 | O184: 41 | P184: 5 | X184: 278.15
A185: Student 181 | B185: iPhone | C185: =VLOOKUP(B185,{"iPhone",1;"Motorola",2;"Nokia",3;"Samsung",4;"Sony Erickson",5;"Sprint",6},2,0) -> 1 | H185: Student 181 | I185: OK | J185: =VLOOKUP(I185,{"Excellent",4;"Poor",1;"Good",3;"OK",2},2,0) -> 2 | O185: 40 | P185: 4.444444444 | X185: 277.5944444
A186: Student 182 | B186: iPhone | C186: =VLOOKUP(B186,{"iPhone",1;"Motorola",2;"Nokia",3;"Samsung",4;"Sony Erickson",5;"Sprint",6},2,0) -> 1 | H186: Student 182 | I186: Poor | J186: =VLOOKUP(I186,{"Excellent",4;"Poor",1;"Good",3;"OK",2},2,0) -> 1 | O186: 39 | P186: 3.888888889 | X186: 277.0388889
A187: Student 183 | B187: Sprint | C187: =VLOOKUP(B187,{"iPhone",1;"Motorola",2;"Nokia",3;"Samsung",4;"Sony Erickson",5;"Sprint",6},2,0) -> 6 | H187: Student 183 | I187: Poor | J187: =VLOOKUP(I187,{"Excellent",4;"Poor",1;"Good",3;"OK",2},2,0) -> 1 | O187: 38 | P187: 3.333333333 | X187: 276.4833333
A188: Student 184 | B188: Nokia | C188: =VLOOKUP(B188,{"iPhone",1;"Motorola",2;"Nokia",3;"Samsung",4;"Sony Erickson",5;"Sprint",6},2,0) -> 3 | H188: Student 184 | I188: Poor | J188: =VLOOKUP(I188,{"Excellent",4;"Poor",1;"Good",3;"OK",2},2,0) -> 1 | O188: 37 | P188: 2.777777778 | X188: 275.9277778
A189: Student 185 | B189: iPhone | C189: =VLOOKUP(B189,{"iPhone",1;"Motorola",2;"Nokia",3;"Samsung",4;"Sony Erickson",5;"Sprint",6},2,0) -> 1 | H189: Student 185 | I189: Poor | J189: =VLOOKUP(I189,{"Excellent",4;"Poor",1;"Good",3;"OK",2},2,0) -> 1 | O189: 36 | P189: 2.222222222 | X189: 275.3722222
A190: Student 186 | B190: iPhone | C190: =VLOOKUP(B190,{"iPhone",1;"Motorola",2;"Nokia",3;"Samsung",4;"Sony Erickson",5;"Sprint",6},2,0) -> 1 | H190: Student 186 | I190: OK | J190: =VLOOKUP(I190,{"Excellent",4;"Poor",1;"Good",3;"OK",2},2,0) -> 2 | O190: 35 | P190: 1.666666667 | X190: 274.8166667
A191: Student 187 | B191: Sprint | C191: =VLOOKUP(B191,{"iPhone",1;"Motorola",2;"Nokia",3;"Samsung",4;"Sony Erickson",5;"Sprint",6},2,0) -> 6 | H191: Student 187 | I191: Poor | J191: =VLOOKUP(I191,{"Excellent",4;"Poor",1;"Good",3;"OK",2},2,0) -> 1 | O191: 34 | P191: 1.111111111 | X191: 274.2611111
A192: Student 188 | B192: Motorola | C192: =VLOOKUP(B192,{"iPhone",1;"Motorola",2;"Nokia",3;"Samsung",4;"Sony Erickson",5;"Sprint",6},2,0) -> 2 | H192: Student 188 | I192: Poor | J192: =VLOOKUP(I192,{"Excellent",4;"Poor",1;"Good",3;"OK",2},2,0) -> 1 | O192: 33 | P192: 0.5555555556 | X192: 273.7055556
A193: Student 189 | B193: iPhone | C193: =VLOOKUP(B193,{"iPhone",1;"Motorola",2;"Nokia",3;"Samsung",4;"Sony Erickson",5;"Sprint",6},2,0) -> 1 | H193: Student 189 | I193: Good | J193: =VLOOKUP(I193,{"Excellent",4;"Poor",1;"Good",3;"OK",2},2,0) -> 3 | O193: 32 | P193: 0 | X193: 273.15
A194: Student 190 | B194: iPhone | C194: =VLOOKUP(B194,{"iPhone",1;"Motorola",2;"Nokia",3;"Samsung",4;"Sony Erickson",5;"Sprint",6},2,0) -> 1 | H194: Student 190 | I194: Good | J194: =VLOOKUP(I194,{"Excellent",4;"Poor",1;"Good",3;"OK",2},2,0) -> 3 | O194: 31 | P194: -0.5555555556 | X194: 272.5944444
A195: Student 191 | B195: iPhone | C195: =VLOOKUP(B195,{"iPhone",1;"Motorola",2;"Nokia",3;"Samsung",4;"Sony Erickson",5;"Sprint",6},2,0) -> 1 | H195: Student 191 | I195: OK | J195: =VLOOKUP(I195,{"Excellent",4;"Poor",1;"Good",3;"OK",2},2,0) -> 2 | O195: 30 | P195: -1.111111111 | X195: 272.0388889
A196: Student 192 | B196: Sony Erickson | C196: =VLOOKUP(B196,{"iPhone",1;"Motorola",2;"Nokia",3;"Samsung",4;"Sony Erickson",5;"Sprint",6},2,0) -> 5 | H196: Student 192 | I196: Good | J196: =VLOOKUP(I196,{"Excellent",4;"Poor",1;"Good",3;"OK",2},2,0) -> 3 | O196: 29 | P196: -1.666666667 | X196: 271.4833333
A197: Student 193 | B197: iPhone | C197: =VLOOKUP(B197,{"iPhone",1;"Motorola",2;"Nokia",3;"Samsung",4;"Sony Erickson",5;"Sprint",6},2,0) -> 1 | H197: Student 193 | I197: Poor | J197: =VLOOKUP(I197,{"Excellent",4;"Poor",1;"Good",3;"OK",2},2,0) -> 1 | O197: 28 | P197: =CONVERT(O197,"F","C") -> -2.222222222 | X197: 270.9277778
A198: Student 194 | B198: Motorola | C198: =VLOOKUP(B198,{"iPhone",1;"Motorola",2;"Nokia",3;"Samsung",4;"Sony Erickson",5;"Sprint",6},2,0) -> 2 | H198: Student 194 | I198: OK | J198: =VLOOKUP(I198,{"Excellent",4;"Poor",1;"Good",3;"OK",2},2,0) -> 2 | O198: 27 | P198: -2.777777778 | X198: =CONVERT(O198,"F","K") -> 270.3722222
A199: Student 195 | B199: iPhone | C199: =VLOOKUP(B199,{"iPhone",1;"Motorola",2;"Nokia",3;"Samsung",4;"Sony Erickson",5;"Sprint",6},2,0) -> 1 | H199: Student 195 | I199: Good | J199: =VLOOKUP(I199,{"Excellent",4;"Poor",1;"Good",3;"OK",2},2,0) -> 3 | O199: 26 | P199: -3.333333333 | X199: 269.8166667
A200: Student 196 | B200: Nokia | C200: =VLOOKUP(B200,{"iPhone",1;"Motorola",2;"Nokia",3;"Samsung",4;"Sony Erickson",5;"Sprint",6},2,0) -> 3 | H200: Student 196 | I200: Poor | J200: =VLOOKUP(I200,{"Excellent",4;"Poor",1;"Good",3;"OK",2},2,0) -> 1 | O200: 25 | P200: -3.888888889 | X200: 269.2611111
A201: Student 197 | B201: Sony Erickson | C201: =VLOOKUP(B201,{"iPhone",1;"Motorola",2;"Nokia",3;"Samsung",4;"Sony Erickson",5;"Sprint",6},2,0) -> 5 | H201: Student 197 | I201: OK | J201: =VLOOKUP(I201,{"Excellent",4;"Poor",1;"Good",3;"OK",2},2,0) -> 2 | O201: 24 | P201: -4.444444444 | X201: 268.7055556
... 484 more rows

Sheet CS Data
A1: Cross-Sectional:
A2: Data collected at the same or nearly the same point in time.
A4: Stock | B4: Market Cap: | C4: Employees: | D4: Qtrly Rev Growth (yoy): | E4: Revenue (ttm): | F4: Gross Margin (ttm): | G4: EBITDA (ttm): | H4: Operating Margin (ttm): | I4: Net Income (ttm): | J4: EPS (ttm): | K4: P/E (ttm): | L4: PEG (5 yr expected): | M4: P/S (ttm):
A5: GOOG | B5: 350.27B | C5: 51564 | D5: 0.2 | E5: 67.91B | F5: 0.58 | G5: 19.96B | H5: 0.23 | I5: 12.89B | J5: 19 | K5: 27.17 | L5: 1.34 | M5: 5.11
A6: FB | B6: 222.69B | C6: 8348 | D6: 0.59 | E6: 11.20B | F6: 0.82 | G6: 6.05B | H6: 0.44 | I6: 2.75B | J6: 1.08 | K6: 74.17 | L6: 1.3 | M6: 19.51
A7: YHOO | B7: 48.20B | C7: 12200 | D7: 0.01 | E7: 4.63B | F7: 0.72 | G7: 720.70M | H7: 0.06 | I7: 7.70B | J7: 7.48 | K7: 6.8 | L7: 5.63 | M7: 10.41
A8: Industry | B8: 276.33B | C8: 51.56K | D8: 0.56 | E8: 67.91B | F8: 0.58 | G8: 19.96B | H8: 0.25 | I8: N/A | J8: 19 | K8: 21.44 | L8: 1.34 | M8: 5.06
B10: Stock
B11: GOOG | C11: FB | D11: YHOO | E11: Industry
A12: Market Cap: | B12: 350.27B | C12: 222.69B | D12: 48.20B | E12: 276.33B
A13: Employees: | B13: 51564 | C13: 8348 | D13: 12200 | E13: 51.56K
A14: Qtrly Rev Growth (yoy): | B14: 0.2 | C14: 0.59 | D14: 0.01 | E14: 0.56
A15: Revenue (ttm): | B15: 67.91B | C15: 11.20B | D15: 4.63B | E15: 67.91B
A16: Gross Margin (ttm): | B16: 0.58 | C16: 0.82 | D16: 0.72 | E16: 0.58
A17: EBITDA (ttm): | B17: 19.96B | C17: 6.05B | D17: 720.70M | E17: 19.96B
A18: Operating Margin (ttm): | B18: 0.23 | C18: 0.44 | D18: 0.06 | E18: 0.25
A19: Net Income (ttm): | B19: 12.89B | C19: 2.75B | D19: 7.70B | E19: N/A
A20: EPS (ttm): | B20: 19 | C20: 1.08 | D20: 7.48 | E20: 19
A21: P/E (ttm): | B21: 27.17 | C21: 74.17 | D21: 6.8 | E21: 21.44
A22: PEG (5 yr expected): | B22: 1.34 | C22: 1.3 | D22: 5.63 | E22: 1.34
A23: P/S (ttm): | B23: 5.11 | C23: 19.51 | D23: 10.41 | E23: 5.06

Sheet TS Data
A1: Time Series Data:
A2: Data collected over time
A3: Useful for seeing trends in the past that may help us to estimate what trends there may be in the near future
A5: Yahoo Historical Stock Price Data:
A7: Date | B7: Adj Close
A8: 1996-04-12 | B8: 1.38
A9: 1996-04-15 | B9: 1.34
A10: 1996-04-16 | B10: 1.2
A11: 1996-04-17 | B11: 1.12
A12: 1996-04-18 | B12: 1.22
A13: 1996-04-19 | B13: 1.2
A14: 1996-04-22 | B14: 1.18
A15: 1996-04-23 | B15: 1.17
A16: 1996-04-24 | B16: 1.21
A17: 1996-04-25 | B17: 1.3
A18: 1996-04-26 | B18: 1.32
A19: 1996-04-29 | B19: 1.29
A20: 1996-04-30 | B20: 1.24
A21: 1996-05-01 | B21: 1.32
A22: 1996-05-02 | B22: 1.37
A23: 1996-05-03 | B23: 1.33
A24: 1996-05-06 | B24: 1.26
A25: 1996-05-07 | B25: 1.27
A26: 1996-05-08 | B26: 1.26
A27: 1996-05-09 | B27: 1.28
A28: 1996-05-10 | B28: 1.3
A29: 1996-05-13 | B29: 1.26
A30: 1996-05-14 | B30: 1.23
A31: 1996-05-15 | B31: 1.26
A32: 1996-05-16 | B32: 1.26
A33: 1996-05-17 | B33: 1.25
A34: 1996-05-20 | B34: 1.21
A35: 1996-05-21 | B35: 1.17
A36: 1996-05-22 | B36: 1.15
A37: 1996-05-23 | B37: 1.23
A38: 1996-05-24 | B38: 1.23
A39: 1996-05-28 | B39: 1.21
A40: 1996-05-29 | B40: 1.15
A41: 1996-05-30 | B41: 1.18
A42: 1996-05-31 | B42: 1.17
A43: 1996-06-03 | B43: 1.14
A44: 1996-06-04 | B44: 1.13
A45: 1996-06-05 | B45: 1.13
A46: 1996-06-06 | B46: 1.16
A47: 1996-06-07 | B47: 1.12
A48: 1996-06-10 | B48: 1.1
A49: 1996-06-11 | B49: 1.06
A50: 1996-06-12 | B50: 1.08
A51: 1996-06-13 | B51: 1.06
A52: 1996-06-14 | B52: 1.03
A53: 1996-06-17 | B53: 0.96
A54: 1996-06-18 | B54: 0.85
A55: 1996-06-19 | B55: 0.86
A56: 1996-06-20 | B56: 0.91
A57: 1996-06-21 | B57: 0.93
A58: 1996-06-24 | B58: 0.91
A59: 1996-06-25 | B59: 0.91
A60: 1996-06-26 | B60: 0.88
A61: 1996-06-27 | B61: 0.76
A62: 1996-06-28 | B62: 0.88
A63: 1996-07-01 | B63: 0.91
A64: 1996-07-02 | B64: 0.89
A65: 1996-07-03 | B65: 0.88
A66: 1996-07-05 | B66: 0.83
A67: 1996-07-08 | B67: 0.83
A68: 1996-07-09 | B68: 0.77
A69: 1996-07-10 | B69: 0.68
A70: 1996-07-11 | B70: 0.72
A71: 1996-07-12 | B71: 0.73
A72: 1996-07-15 | B72: 0.74
A73: 1996-07-16 | B73: 0.75
A74: 1996-07-17 | B74: 0.8
A75: 1996-07-18 | B75: 0.8
A76: 1996-07-19 | B76: 0.79
A77: 1996-07-22 | B77: 0.75
A78: 1996-07-23 | B78: 0.68
A79: 1996-07-24 | B79: 0.66
A80: 1996-07-25 | B80: 0.68
A81: 1996-07-26 | B81: 0.69
A82: 1996-07-29 | B82: 0.67
A83: 1996-07-30 | B83: 0.71
A84: 1996-07-31 | B84: 0.75
A85: 1996-08-01 | B85: 0.79
A86: 1996-08-02 | B86: 0.79
A87: 1996-08-05 | B87: 0.79
A88: 1996-08-06 | B88: 0.76
A89: 1996-08-07 | B89: 0.75
A90: 1996-08-08 | B90: 0.77
A91: 1996-08-09 | B91: 0.74
A92: 1996-08-12 | B92: 0.72
A93: 1996-08-13 | B93: 0.83
A94: 1996-08-14 | B94: 0.85
A95: 1996-08-15 | B95: 0.83
A96: 1996-08-16 | B96: 0.81
A97: 1996-08-19 | B97: 0.82
A98: 1996-08-20 | B98: 0.8
A99: 1996-08-21 | B99: 0.78
A100: 1996-08-22 | B100: 0.83
A101: 1996-08-23 | B101: 0.82
A102: 1996-08-26 | B102: 0.82
A103: 1996-08-27 | B103: 0.84
A104: 1996-08-28 | B104: 0.88
A105: 1996-08-29 | B105: 0.82
A106: 1996-08-30 | B106: 0.82
A107: 1996-09-03 | B107: 0.79
A108: 1996-09-04 | B108: 0.79
A109: 1996-09-05 | B109: 0.77
A110: 1996-09-06 | B110: 0.77
A111: 1996-09-09 | B111: 0.78
A112: 1996-09-10 | B112: 0.77
A113: 1996-09-11 | B113: 0.79
A114: 1996-09-12 | B114: 0.81
A115: 1996-09-13 | B115: 0.86
A116: 1996-09-16 | B116: 0.86
A117: 1996-09-17 | B117: 0.9
A118: 1996-09-18 | B118: 0.86
A119: 1996-09-19 | B119: 0.9
A120: 1996-09-20 | B120: 1
A121: 1996-09-23 | B121: 0.99
A122: 1996-09-24 | B122: 0.95
A123: 1996-09-25 | B123: 0.91
A124: 1996-09-26 | B124: 0.91
A125: 1996-09-27 | B125: 0.91
A126: 1996-09-30 | B126: 0.89
A127: 1996-10-01 | B127: 0.82
A128: 1996-10-02 | B128: 0.91
A129: 1996-10-03 | B129: 0.94
A130: 1996-10-04 | B130: 0.92
A131: 1996-10-07 | B131: 0.93
A132: 1996-10-08 | B132: 0.87
A133: 1996-10-09 | B133: 0.94
A134: 1996-10-10 | B134: 0.85
A135: 1996-10-11 | B135: 0.86
A136: 1996-10-14 | B136: 0.9
A137: 1996-10-15 | B137: 0.9
A138: 1996-10-16 | B138: 0.88
A139: 1996-10-17 | B139: 0.92
A140: 1996-10-18 | B140: 0.92
A141: 1996-10-21 | B141: 0.91
A142: 1996-10-22 | B142: 0.89
A143: 1996-10-23 | B143: 0.88
A144: 1996-10-24 | B144: 0.87
A145: 1996-10-25 | B145: 0.85
A146: 1996-10-28 | B146: 0.86
A147: 1996-10-29 | B147: 0.85
A148: 1996-10-30 | B148: 0.84
A149: 1996-10-31 | B149: 0.82
A150: 1996-11-01 | B150: 0.81
A151: 1996-11-04 | B151: 0.79
A152: 1996-11-05 | B152: 0.76
A153: 1996-11-06 | B153: 0.75
A154: 1996-11-07 | B154: 0.76
A155: 1996-11-08 | B155: 0.81
A156: 1996-11-11 | B156: 0.84
A157: 1996-11-12 | B157: 0.82
A158: 1996-11-13 | B158: 0.79
A159: 1996-11-14 | B159: 0.76
A160: 1996-11-15 | B160: 0.77
A161: 1996-11-18 | B161: 0.76
A162: 1996-11-19 | B162: 0.74
A163: 1996-11-20 | B163: 0.74
A164: 1996-11-21 | B164: 0.72
A165: 1996-11-22 | B165: 0.73
A166: 1996-11-25 | B166: 0.8
A167: 1996-11-26 | B167: 0.79
A168: 1996-11-27 | B168: 0.77
A169: 1996-11-29 | B169: 0.8
A170: 1996-12-02 | B170: 0.79
A171: 1996-12-03 | B171: 0.83
A172: 1996-12-04 | B172: 0.82
A173: 1996-12-05 | B173: 0.89
A174: 1996-12-06 | B174: 0.85
A175: 1996-12-09 | B175: 0.89
A176: 1996-12-10 | B176: 0.84
A177: 1996-12-11 | B177: 0.81
A178: 1996-12-12 | B178: 0.83
A179: 1996-12-13 | B179: 0.83
A180: 1996-12-16 | B180: 0.78
A181: 1996-12-17 | B181: 0.76
A182: 1996-12-18 | B182: 0.77
A183: 1996-12-19 | B183: 0.75
A184: 1996-12-20 | B184: 0.71
A185: 1996-12-23 | B185: 0.75
A186: 1996-12-24 | B186: 0.76
A187: 1996-12-26 | B187: 0.74
A188: 1996-12-27 | B188: 0.76
A189: 1996-12-30 | B189: 0.75
A190: 1996-12-31 | B190: 0.71
A191: 1997-01-02 | B191: 0.73
A192: 1997-01-03 | B192: 0.77
A193: 1997-01-06 | B193: 0.83
A194: 1997-01-07 | B194: 0.84
A195: 1997-01-08 | B195: 0.79
A196: 1997-01-09 | B196: 0.81
A197: 1997-01-10 | B197: 0.8
A198: 1997-01-13 | B198: 0.91
A199: 1997-01-14 | B199: 0.87
A200: 1997-01-15 | B200: 1.06
A201: 1997-01-16 | B201: 1.09
A202: 1997-01-17 | B202: 1.11
... 4506 more rows

Sheet Data Diagram

Sheet Entering Data In Excel
A1: Tablet | B1: Cost ($) | C1: Operating System | D1: Display Size (inches) | E1: Battery Life (hours) | F1: CPU Manufacturer
A2: Acer Iconia W510 | B2: 599 | D2: 10.1 | E2: 8.5 | F2: Intel
A3: Amazon Kindle Fire HD | B3: 299 | D3: 8.9 | E3: 9 | F3: TI OMAP
A4: Apple iPad 4 | B4: 499 | D4: 9.7 | E4: 11 | F4: Apple
A5: HP Envy X2 | B5: 860 | D5: 11.6 | E5: 8
A6: Lenono Think Pad | B6: 668 | D6: 10.1 | E6: 10.5
A7: MS Surface Pro | B7: 899 | D7: 10.6 | E7: 4
A8: Motorola Driod Xyboard | B8: 530 | D8: 10.1 | E8: 9
A9: Samsung Ativ Smart PC | B9: 590 | D9: 11.6 | E9: 7
A10: Samsung Galaxy Tab | B10: 525 | D10: 10.1 | E10: 10
A11: Sony S | B11: 360 | D11: 9.4 | E11: 8
